Workbook

Sheet 护理（锦华）
A1: 护理耗材目录
A2: 1、注射器、输液器类
A3: 序号 | B3: 名称 | C3: 规格描述 | D3: 单位 | E3: 生产企业 | F3: 单价
A4: 1 | B4: 一次性使用无菌注射器 | C4: 1ml | D4: 支 | E4: 威海威高 | F4: 0.3
A5: 2 | B5: 一次性使用无菌注射器 | C5: 2ml | D5: 支 | E5: 威海威高 | F5: 0.3
A6: 3 | B6: 一次性使用无菌注射器 | C6: 5ml | D6: 支 | E6: 山东新华安得 | F6: 0.28
A7: 4 | B7: 一次性使用无菌注射器 | C7: 10ml | D7: 支 | E7: 威海威高 | F7: 0.4
A8: 5 | B8: 一次性使用无菌注射器 | C8: 20ml | D8: 支 | E8: 威海威高 | F8: 0.64
A9: 7 | B9: 一次性使用无菌注射器 | C9: 50ml | D9: 支 | E9: 山东新华安得 | F9: 1.1625
A10: 8 | B10: 一次性使用无菌避光注射器 | C10: 50ml | D10: 支 | E10: 山东新华安得 | F10: 5.58
A11: 9 | B11: 预充式冲管注射器 | C11: 5ml | D11: 个 | E11: 山东威海威高 | F11: 4.4
A12: 11 | B12: 一次性口腔注射器 | C12: 5ml | D12: 支 | E12: 山东新华安得 | F12: 0.28
A13: 12 | B13: 眼用冲洗器 | C13: 5ml | D13: 支 | E13: 威海威高 | F13: 0.6
A14: 13 | B14: 鼻饲用注射器 | C14: 50ml | D14: 个 | E14: 河南圣光 | F14: 3.72
A15: 14 | B15: 一次性使用输液器 | C15: 5.5# | E15: 山东新华安得 | F15: 0.75
A16: 15 | B16: 一次性使用输液器 | C16: 6# | E16: 山东新华安得 | F16: 0.75
A17: 16 | B17: 一次性使用输液器 | C17: 7# | E17: 山东新华安得 | F17: 0.75
A18: 17 | B18: 一次性使用自动止液输液器 | C18: 5.5#/6#/7# | D18: 个 | E18: 山东新华安得 | F18: 2.95
A19: 18 | B19: 一次性使用避光输液器 | C19: 5.5#/6#/7# | D19: 个 | E19: 山东新华安得 | F19: 6.95
A20: 19 | B20: 一次性使用微调输液器 | D20: 个 | E20: 山东新华安得 | F20: 10.23
A21: 20 | B21: 一次性使用输血器 | C21: 9# | D21: 支 | E21: 山东威高集团医用高分子制品股份有限公司 | F21: 0.3
A22: 21 | B22: 灌注器 | C22: 50ml | D22: 个 | E22: 山东新华安得 | F22: 3.72
A23: 22 | B23: 一次性注射针头 | C23: 4.5#/7#/12# | D23: 支 | E23: 山东新华安得 | F23: 0.1116
A24: 23 | B24: 一次性使用静脉输液针 | C24: 5.5#/6#/ 7# | D24: 支 | E24: 山东新华安得 | F24: 0.279
A25: 24 | B25: 一次性静脉血样采集针 | C25: 7#/5.5# | D25: 支 | E25: 山东新华安得 | F25: 0.21
A26: 25 | B26: 一次性使用静脉留置针 | C26: 18G/20G/22G/24G/26G | D26: 支 | E26: 威海威高 | F26: 5.5
A27: 27 | B27: 一次性使用静脉留置针 | C27: 18G三通A型 | D27: 支 | E27: 山东新华安得 | F27: 17.205
A28: 28 | B28: 一次性动脉采血器 | D28: 个 | E28: 美国碧迪 | F28: 9.3
A29: 29 | B29: 一次性使用微量延长管 | C29: 150cm | D29: 根 | E29: 河南曙光 | F29: 0.6975
A30: 30 | B30: 一次性使用避光压力延长管 | C30: 150cm | D30: 根 | E30: 山东新华安得 | F30: 4.65
A31: 31 | B31: 一次性静脉输液包 | D31: 个 | E31: 河南省豫北卫材有限公司 | F31: 2.325
A32: 32 | B32: 一次性使用胰岛素泵注射组件（储药器） | C32: CY-30 | D32: 个 | E32: 郑州瑞宇科技有限公司 | F32: 18.6
A33: 33 | B33: 一次性使用胰岛素泵注射组件（输注管道） | C33: GKL-65B | D33: 个 | E33: 郑州瑞宇科技有限公司 | F33: 39.99
A34: 34 | B34: 一次性使用注射笔用针头 | C34: 0.25*5mm | D34: 支 | E34: 诺和诺德 | F34: 1.395
A35: 35 | B35: PICC接头（正压接头） | D35: 个 | E35: 青岛爱迪 | F35: 18.6
A36: 36 | B36: 一次性使用肝素帽 | D36: 支 | E36: 河南驼人贝斯特医疗器械有限公司 | F36: 0.837
A37: 37 | B37: 一次性使用三通阀 | D37: 个 | E37: 广东百合医疗科技股份有限公司 | F37: 1.209
A38: 2、卫生材料类
A39: 序号 | B39: 名称 | C39: 规格描述 | D39: 单位 | E39: 生产企业 | F39: 单价
A40: 1 | B40: 一次性乳胶检查手套 | C40: M/S | D40: 副/盒 | E40: 河南省奥邦医疗器械有限公司 | F40: 1.6368
A41: 2 | B41: 一次性薄膜（PE）卫生手套 | C41: 100支 | D41: 包 | E41: 振德 | F41: 4.185
A42: 3 | B42: 一次性使用灭菌橡胶外科手套 | C42: 6.5/7/7.5/8 | D42: 副 | E42: 上海科邦 | F42: 2.046
A43: 4 | B43: 医用口罩 | C43: 挂耳式 | D43: 个 | E43: 河南亿信 | F43: 0.4185
A44: 5 | B44: 医用口罩 | C44: 系带式 | D44: 个 | E44: 河南亿信 | F44: 0.4185
A45: 6 | B45: 医用外科口罩 | C45: 挂耳式 | D45: 个 | E45: 河南亿信 | F45: 0.6975
A46: 7 | B46: 医用外科口罩 | C46: 系带式 | D46: 个 | E46: 河南亿信 | F46: 0.6975
A47: 8 | B47: 外科手术口罩 | C47: 独立包装 | D47: 包 | E47: 河南亿信 | F47: 0.93
A48: 9 | B48: 医用防护口罩 | C48: 系带式 | D48: 个 | E48: 河南亿信 | F48: 4.65
A49: 10 | B49: 医用无菌手术帽 | C49: 圆帽 | D49: 个 | E49: 振德 | F49: 0.465
A50: 11 | B50: 医用无菌手术帽 | C50: 松紧式 | D50: 个 | E50: 河南亿信 | F50: 0.3255
A51: 12 | B51: 外科手术帽 | C51: 男士、女士 | D51: 包 | E51: 河南亿信 | F51: 0.4464
A52: 13 | B52: 一次性无菌手术衣 | C52: 独立包装 | D52: 件 | E52: 振德 | F52: 18.6
A53: 14 | B53: 一次性无菌手术衣 | C53: 120*120 | D53: 件 | E53: 振德 | F53: 10.23
A54: 15 | B54: 一次性鞋套 | D54: 支 | E54: 河南健琪医疗器械有限公司 | F54: 0.279
A55: 16 | B55: 一次性使用中单 | C55: 100cm*200cm | D55: 个 | E55: 河南健琪医疗器械有限公司 | F55: 1.86
A56: 17 | B56: 一次性使用中单 | C56: 50*60cm | D56: 个 | E56: 河南健琪医疗器械有限公司 | F56: 0.4185
A57: 18 | B57: 医用护理垫 | C57: 150cm*90cm | D57: 个 | E57: 威海威高 | F57: 2.325
A58: 19 | B58: 医用护理垫 | C58: 60*60cm | D58: 个 | E58: 河南健琪医疗器械有限公司 | F58: 1.395
A59: 20 | B59: 医用护理垫 | C59: 50*60cm | D59: 个 | E59: 河南健琪医疗器械有限公司 | F59: 0.93
A60: 21 | B60: 医用检查垫（产后计血量型) | C60: 一片装（含计量秤） | D60: 片 | E60: 河南健琪医疗器械有限公司 | F60: 1.86
A61: 22 | B61: 一次性治疗巾（洞巾） | C61: 50cm*50cm | D61: 张 | E61: 河南健琪医疗器械有限公司 | F61: 0.5115
A62: 23 | B62: 一次性治疗巾（洞巾） | C62: 60cm*60cm | D62: 张 | E62: 河南健琪医疗器械有限公司 | F62: 0.6045
A63: 24 | B63: 一次性治疗巾（洞巾） | C63: 80cm*80cm | D63: 张 | E63: 河南健琪医疗器械有限公司 | F63: 0.6975
A64: 25 | B64: 割症巾 | C64: 60*40 | D64: 张 | E64: 河南健琪医疗器械有限公司 | F64: 0.465
A65: 26 | B65: 一次性防水担架罩 | C65: 169*55*3cm(担架垫实际尺寸） | D65: 个 | E65: 河南健琪医疗器械有限公司 | F65: 2.79
A66: 27 | B66: 医用转移垫 | C66: 198cm*84cm | D66: 个 | E66: 河南健琪医疗器械有限公司 | F66: 44.64
A67: 28 | B67: 一次性使用床罩 | C67: 150cm*240cm*10CM | D67: 个 | E67: 河南健琪医疗器械有限公司 | F67: 6.51
A68: 29 | B68: 一次性使用床罩 | C68: 80cm*210cm*10CM | D68: 个 | E68: 河南健琪医疗器械有限公司 | F68: 3.72
A69: 30 | B69: 一次性被套 | C69: 150*210cm | D69: 个 | E69: 河南健琪医疗器械有限公司 | F69: 16.74
A70: 31 | B70: 一次性被罩 | C70: 1.5*1.2m | D70: 包 | E70: 河南健琪医疗器械有限公司 | F70: 6.975
A71: 32 | B71: 一次性医用无菌扫床刷 | D71: 把 | E71: 河南健琪医疗器械有限公司 | F71: 18.6
A72: 33 | B72: 一次性医用无菌刷套 | C72: 10cm*25cm，50个/包 | D72: 包 | E72: 河南健琪医疗器械有限公司 | F72: 0.279
A73: 34 | B73: 医用透气胶带 | C73: 防过敏型、无纺布1.25cm | D73: 卷 | E73: 浙江康力迪 | F73: 1.395
A74: 35 | B74: 医用透气胶带 | C74: 防过敏型、无纺布2.5cm | D74: 卷 | E74: 浙江康力迪 | F74: 2.325
A75: 36 | B75: 医用透气胶带 | C75: 防过敏、PE打孔1.25cm | D75: 卷 | E75: 浙江康力迪 | F75: 1.674
A76: 37 | B76: 医用透气胶带 | C76: 防过敏、PE打孔2.5cm | D76: 卷 | E76: 浙江康力迪 | F76: 2.604
A77: 38 | B77: 医用纱布绷带 | C77: 6cm*6m，8cm*6m，10cm*6m | D77: 卷 | E77: 曹县华鲁 | F77: 1.012/1.288/1.518
A78: 39 | B78: 自粘弹力绷带 | C78: 2.5cm*100cm | D78: 卷 | E78: 山东海纯 | F78: 1.302
A79: 40 | B79: 自粘弹力绷带 | C79: 2.5cm*450cm | D79: 卷 | E79: 安吉宏德 | F79: 2.79
A80: 41 | B80: 管状弹力绷带 | C80: 宽8cm、12cm | D80: 卷 | E80: 天津华澳 | F80: 9.2/138
A81: 42 | B81: 压敏胶带 | C81: 26cm*500cm | D81: 卷 | E81: 济宁凯威医疗科技有限公司 | F81: 6.51
A82: 43 | B82: 弹性绷带 | C82: 7.5cm*450cm | D82: 卷 | E82: 菏泽卫美健 | F82: 2.325
A83: 44 | B83: 弹性绷带 | C83: 10cm*450cm | D83: 卷 | E83: 菏泽卫美健 | F83: 11.16
A84: 45 | B84: 弹性绷带 | C84: 15cm*450cm | D84: 卷 | E84: 菏泽卫美健 | F84: 3.255
A85: 46 | B85: 石膏绷带 | C85: 7.5cm*450cm | D85: 卷 | E85: 河南安邦医疗器械有限公司 | F85: 5.58
A86: 47 | B86: 石膏绷带 | C86: 10cm*450cm | D86: 卷 | E86: 河南安邦医疗器械有限公司 | F86: 5.58
A87: 48 | B87: 石膏绷带 | C87: 15cm*450cm | D87: 卷 | E87: 河南安邦医疗器械有限公司 | F87: 5.58
A88: 49 | B88: 3M弹性柔棉宽胶带 | C88: 7.5cm*450cm | D88: 卷 | E88: 3M中国有限公司 | F88: 130.2
A89: 50 | B89: 网状弹力帽 | D89: 个 | E89: 河北晟宇 | F89: 0.837
A90: 51 | B90: 医用无菌棉球 | C90: 小号 10个/包 | D90: 包 | E90: 河南健琪医疗器械有限公司 | F90: 0.558
A91: 52 | B91: 非无菌脱脂棉球 | C91: 0.5g/1g/2g/1.5g/粒 500g/包 | D91: 包 | E91: 曹县华鲁 | F91: 27.9
A92: 53 | B92: 石蜡油棉球 | C92: 无菌，独立包装 | D92: 小包 | E92: 河南健琪医疗器械有限公司 | F92: 2.325
A93: 54 | B93: 医用无菌棉签 | C93: 10cm，4根/包 | D93: 包 | E93: 河南健琪医疗器械有限公司 | F93: 0.186
A94: 55 | B94: 医用棉签 | C94: 10cm 20根/包 | D94: 包 | E94: 河南健琪医疗器械有限公司 | F94: 0.372
A95: 56 | B95: 医用棉签 | C95: 10cm 10根/包 | D95: 包 | E95: 河南健琪医疗器械有限公司 | F95: 0.1581
A96: 57 | B96: 医用棉签 | C96: 20cm 10根/包 | D96: 包 | E96: 河南健琪医疗器械有限公司 | F96: 0.8835
A97: 58 | B97: 碘伏棉签 | C97: 独立包装 | D97: 支 | E97: 河南健琪医疗器械有限公司 | F97: 0.1395
A98: 59 | B98: 一次性防护服 | D98: 套 | E98: 河南圣宏 | F98: 60.45
A99: 60 | B99: 医用隔离眼罩 | D99: 副 | E99: 河南博创医疗科技有限公司 | F99: 16.74
A100: 61 | B100: 防护服鞋套 | D100: 双 | E100: 振德 | F100: 11.16
A101: 62 | B101: 医用隔离面屏 | D101: 个 | E101: 振德 | F101: 7.905
A102: 3、医用包、导管、引流类
A103: 序号 | B103: 名称 | C103: 规格描述 | D103: 单位 | E103: 生产企业 | F103: 单价
A104: 1 | B104: 一次性使用气流雾化器 | C104: 成人/儿童 | D104: 套 | E104: 河南曙光健士 | F104: 6.51
A105: 2 | B105: 一次性吸氧面罩 | C105: 成人/儿童/婴幼儿 | D105: 套 | E105: 江苏康久安医疗器械有限公司 | F105: 8.556
A106: 3 | B106: 墙式氧气吸入器 | C106: 普通绿瓶、国标 | D106: 套 | E106: 宇峰/登月 | F106: 83.7
A107: 4 | B107: 一次性氧气湿化瓶 | D107: 套 | E107: 河南驼人贝斯特医疗器械有限公司 | F107: 10.16
A108: 5 | B108: 一次性使用无菌鼻氧管 | C108: 单头/双头 | D108: 根 | E108: 河南驼人贝斯特医疗器械有限公司 | F108: 1.116
A109: 6 | B109: 一次性使用无菌鼻氧管 | C109: 单头/双头 | D109: 根 | E109: 河南驼人贝斯特医疗器械有限公司 | F109: 0.744
A110: 7 | B110: 婴幼儿吸氧管 | D110: 根 | E110: 河南驼人贝斯特医疗器械有限公司 | F110: 1.86
A111: 8 | B111: 一次性会阴护理包 | D111: 个 | E111: 扬州龙虎医疗器械有限公司 | F111: 2.976
A112: 9 | B112: 一次性口腔护理包 | D112: 套 | E112: 河南省健琪医疗科技有限公司 | F112: 2.79
A113: 10 | B113: 一次性无菌换药包 | D113: 套 | E113: 振德医疗用品股份有限公司 | F113: 4.464
A114: 11 | B114: 一次性使用无菌导尿包 | C114: 双腔导尿管，可选型号8#/12#/16# /18#/20#/22# | D114: 套 | E114: 河南驼人贝斯特医疗器械有限公司 | F114: 13.206
A115: 12 | B115: 一次性备皮包 | D115: 套 | E115: 河南省健琪医疗科技有限公司 | F115: 2.325
A116: 13 | B116: 一次性脑压包 | D116: 套 | E116: 江苏华星医疗器械有限公司 | F116: 23.25
A117: 14 | B117: 一次性产包 | D117: 套 | E117: 河南省健琪医疗科技有限公司 | F117: 36.27
A118: 15 | B118: 一次性脐带包 | D118: 套 | E118: 河南康民 | F118: 2.046
A119: 16 | B119: 一次性无菌拆线包 | D119: 套 | E119: 河南省健琪医疗科技有限公司 | F119: 4.65
A120: 17 | B120: 一次性使用缝合包 | C120: 治疗碗1个、弯盘1个、持针器1个、刀柄1个、镊子2个（皮镊1个、组织镊1个。）止血钳1个、剪刀1个、橡胶套1副、纱布4块、碘伏棉球1包（6个）、酒精棉球1包（6个）、治疗巾、外科缝线和针各一个、手术洞巾1个。 | D120: 套 | E120: 河南省健琪医疗科技有限公司 | F120: 5.58
A121: 18 | B121: 一次性使用输液护理包 | D121: 套 | E121: 河南省蓝天医疗器械有限公司 | F121: 1.86
A122: 19 | B122: 一次性使用胸腔穿刺包 | D122: 套 | E122: 河南驼人贝斯特医疗器械有限公司 | F122: 20.46
A123: 20 | B123: 一次性使用诊断腰椎穿刺包 | D123: 套 | E123: 沈阳汇德医疗器械有限公司 | F123: 23.25
A124: 21 | B124: 一次性使用腹腔穿刺包 | C124: 12#/14#/16# | D124: 套 | E124: 河南驼人贝斯特医疗器械有限公司 | F124: 33.48
A125: 22 | B125: PICC中心静脉置管一次性换药包 | D125: 个 | E125: 美国3M | F125: 36.27
A126: 23 | B126: 一次性中心静脉导管穿刺包（维护用） | D126: 套 | E126: 美国3M | F126: 36.27
A127: 24 | B127: 中心静脉置管护理套件 | D127: 套 | E127: 北京康宇建医疗器械有限公司 | F127: 36.27
A128: 25 | B128: 经外周中心静脉导管套装 | D128: 套 | E128: 山东百多安 | F128: 91.14
A129: 26 | B129: 经外周中心静脉导管套装配件（塞丁格包） | C129: 长度 35/40/45/50/55/60/65cm | D129: 套 | E129: 山东百多安 | F129: 545.91
A130: 27 | B130: 一次性使用无菌手术包 | C130: 含治疗巾、中单、洞巾、治疗碗、弯盘 | D130: 套 | E130: 河南健琪医疗器械有限公司 | F130: 93
A131: 28 | B131: 中心静脉导管包 | C131: 单腔、双腔 | D131: 套 | E131: 广东百合医疗科技股份有限公司 | F131: 96.6/138
A132: 29 | B132: 中心静脉导管包 | C132: 单腔、双腔 | D132: 套 | E132: 广东百合医疗科技股份有限公司 | F132: 96.6/138
A133: 30 | B133: 一次性胸腔闭式引流瓶 | C133: 1500ml单腔 | D133: 个 | E133: 河南驼人贝斯特医疗器械有限公司 | F133: 16.74
A134: 31 | B134: 一次性使用吸痰包 | C134: 6#/8#/12# | D134: 个 | E134: 河南省健琪医疗科技有限公司 | F134: 4.278
A135: 32 | B135: 一次性使用吸痰管 | C135: 6#/8#/12#/14# | D135: 根 | E135: 河南省健琪医疗科技有限公司 | F135: 1.209
A136: 33 | B136: 一次性使用肠道冲洗袋 | C136: 1000ml | D136: 个 | E136: 苏州新明区明基高分子医疗器械有限公司 | F136: 4.464
A137: 34 | B137: 一次性使用痰液收集器 | C137: 25ml | D137: 个 | E137: 扬州信达/苏州天平 | F137: 4.65
A138: 35 | B138: 洗胃机附件包 | C138: TJCB-A-1型全自动洗胃机使用 | D138: 套 | F138: 88.35
A139: 36 | B139: 一次性使用引流袋 | C139: 精密/普通 1000ml | D139: 个 | E139: 扬州双菱 | F139: 1.395
A140: 37 | B140: 一次性硅橡胶引流球 | C140: 100ml | E140: 江苏江扬 | F140: 5.58
A141: 38 | B141: 一次性使用负压引流器 | C141: 1000ml | D141: 个 | E141: 河南驼人贝斯特医疗器械有限公司 | F141: 2.325
A142: 39 | B142: 一次性负压引流袋 | C142: 2000ml | D142: 个 | E142: 苏州佳洲医疗器械有限公司 | F142: 14.88
A143: 40 | B143: 一次性负压引流袋 | C143: 3500ml | D143: 个 | E143: 苏州佳洲医疗器械有限公司 | F143: 4.65
A144: 41 | B144: 一次性硅胶胃管 | C144: 16#/18#/20# | D144: 根 | E144: 浙江简成医疗科技有限公司 | F144: 65
A145: 42 | B145: 一次性硅胶胃管 | C145: 6#/8#/10#/16#/18#/20# | D145: 根 | E145: 河南驼人贝斯特医疗器械有限公司 | F145: 2.325
A146: 43 | B146: 一次性使用无菌导尿管 | C146: 6#/8#/10#/12#/14#/18# | D146: 根 | E146: 湛江事达实业有限公司 | F146: 3.255
A147: 44 | B147: 一次性螺旋型鼻肠管 | C147: 3.33mm（CH10-145） | D147: 根 | E147: 江苏嘉鼎诚医疗器械有限公司 | F147: 186
A148: 45 | B148: 一次性鼻肠营养管 | C148: 直型145cm | D148: 根 | E148: 江苏嘉鼎诚医疗器械有限公司 | F148: 111.6
A149: 46 | B149: 洗胃用胃管 | C149: 28号 | D149: 根 | E149: 江苏嘉鼎诚医疗器械有限公司 | F149: 4.65
A150: 47 | B150: 一次性使用吸引连接管 | C150: 直径10mm，长2500mm | D150: 根 | E150: 河南省健琪医疗科技有限公司 | F150: 2.604
A151: 48 | B151: 一次性使用乳胶T型胆管引流管 | C151: 8Fr 10Fr 12Fr 14Fr 16Fr 18Fr 20Fr 22Fr 24Fr 26Fr 28Fr | D151: 根 | E151: 湛江事达实业有限公司 | F151: 7.44
A152: 49 | B152: 双腔导尿管（硅胶） | C152: 6F.8F.10F.12F | D152: 根 | E152: 山东百多安 | F152: 14
A153: 50 | B153: 三腔导尿管（硅胶） | C153: 20F.22F | D153: 根 | E153: 山东百多安 | F153: 15
A154: 4、敷料类
A155: 序号 | B155: 名称 | C155: 规格描述 | D155: 单位 | E155: 生产企业 | F155: 单价
A156: 1 | B156: 一次性医用输液瓶口贴 | C156: 28mm*16mm | D156: 贴 | E156: 河南省健琪医疗科技有限公司 | F156: 0.0372
A157: 2 | B157: 一次性医用输液贴 | C157: 70mm*45mm | D157: 贴 | E157: 河南省健琪医疗科技有限公司 | F157: 0.0279
A158: 3 | B158: 医用橡皮膏 | C158: 26cm*500cm | D158: 筒 | E158: 济宁凯威 | F158: 13.95
A159: 4 | B159: 一次性使用无菌敷料 | C159: 10cm*12cm | D159: 片 | E159: 山东海纯 | F159: 2.418
A160: 5 | B160: 一次性使用无菌敷料 | C160: 6cm*7cm | D160: 片 | E160: 河南驼人贝斯特医疗器械有限公司 | F160: 0.651
A161: 6 | B161: 医用自粘敷贴 | C161: 6*7cm | D161: 片 | E161: 山东海纯 | F161: 0.465
A162: 7 | B162: 医用自粘敷贴 | C162: 10*10cm | D162: 片 | E162: 山东海纯 | F162: 0.744
A163: 8 | B163: 医用自粘敷贴 | C163: 10*15cm | D163: 片 | E163: 山东海纯 | F163: 0.93
A164: 9 | B164: 医用自粘敷贴 | C164: 10*20cm | D164: 片 | E164: 山东海纯 | F164: 1.209
A165: 10 | B165: 透气胶贴 | C165: 固定尿管、引流管用 | D165: 片 | E165: 河南博创医疗科技有限公司 | F165: 6.045
A166: 11 | B166: 无菌医用纱布 | C166: 6cm*8cm-8p | D166: 片 | E166: 河南省健琪医疗科技有限公司 | F166: 0.1116
A167: 12 | B167: 无菌医用纱布 | C167: 10cm*12cm-8p | D167: 片 | E167: 河南省健琪医疗科技有限公司 | F167: 0.3441
A168: 13 | B168: 无菌医用纱布 | C168: 30cm*40cm-6p | D168: 片 | E168: 河南省健琪医疗科技有限公司 | F168: 3.999
A169: 14 | B169: 无菌带显影医用纱布 | C169: 10cm*12cm-12p | D169: 片 | E169: 曹县华鲁 | F169: 0.5859
A170: 15 | B170: 无菌带显影医用纱布 | C170: 30*40cm-6p | D170: 片 | E170: 曹县华鲁 | F170: 3.999
A171: 16 | B171: 非无菌医用纱布块 | C171: 6cm*8cm-8p | D171: 片 | E171: 河南省健琪医疗科技有限公司 | F171: 0.1209
A172: 17 | B172: 非无菌医用纱布块 | C172: 10cm*12cm-8p | D172: 片 | E172: 河南省健琪医疗科技有限公司 | F172: 0.3162
A173: 18 | B173: 非无菌带显影医用纱布块 | C173: 10*12cm-12p | D173: 片 | E173: 曹县华鲁 | F173: 0.3162
A174: 19 | B174: 非无菌带显影医用纱布垫 | C174: 30*40cm-6p | D174: 片 | E174: 曹县华鲁 | F174: 3.999
A175: 20 | B175: 气管切开无菌纱布 | C175: 8cm*8cm-8p | D175: 片 | E175: 河南省健琪医疗科技有限公司 | F175: 0.93
A176: 21 | B176: 碘仿纱布 | C176: 6*30 | D176: 片 | E176: 河南省健琪医疗科技有限公司 | F176: 7.44
A177: 22 | B177: 医用凡士林敷料 | C177: 10cm*20cm单片包装 | D177: 块 | E177: 河南省健琪医疗科技有限公司 | F177: 0.93
A178: 23 | B178: 医用凡士林敷料 | C178: 8cm*8cm单片包装 | D178: 块 | E178: 河南省健琪医疗科技有限公司 | F178: 0.93
A179: 24 | B179: 赛肤润 | C179: 20ml | D179: 瓶 | E179: 法国优格 | F179: 88.35
A180: 25 | B180: 液体辅料 | C180: 50ml | D180: 瓶 | E180: 康派医疗用品有限公司 | F180: 195.3
A181: 26 | B181: 水胶体敷料 | C181: 10cm*10cm | D181: 片 | E181: 河南驼人贝斯特医疗器械有限公司 | F181: 12.09
A182: 27 | B182: 藻酸盐敷料 | C182: 10cm*10cm、5cm*5cm | D182: 片 | E182: 山东星之诚生物科技有限公司 | F182: 257.6/184
A183: 28 | B183: 软聚硅酮泡沫敷料（有边型） | C183: 10*10 15*15 | D183: 个 | E183: 施乐辉 | F183: 120.9/288.3
A184: 29 | B184: 含银敷料 | C184: 10*10 5*5 15*15 | D184: 个 | E184: 安信生物科技有限公司 | F184: 111.6/74.4/186
A185: 30 | B185: 藻酸钙敷料 | C185: 10*10 5*5 10*20 | D185: 个 | E185: 山东星之诚生物科技有限公司 | F185: 119.6/92/138
A186: 31 | B186: 高渗盐水凝胶 | D186: 个 | E186: 瑞典墨尼克 | F186: 223.2
A187: 32 | B187: 银离子伤口敷料 | C187: 10cm*10cm | D187: 片 | E187: 安信生物科技有限公司 | F187: 186
A188: 5、消毒类
A189: 序号 | B189: 名称 | C189: 规格描述 | D189: 单位 | E189: 生产企业 | F189: 单价
A190: 1 | B190: 酒精 | C190: 500ml,95% | D190: 瓶 | E190: 利尔康 | F190: 4.185
A191: 2 | B191: 酒精 | C191: 100ml 75% | D191: 瓶 | E191: 利尔康 | F191: 1.395
A192: 3 | B192: 酒精 | C192: 500ml 75% | D192: 瓶 | E192: 利尔康 | F192: 3.72
A193: 4 | B193: 碘伏 | C193: 100ml | D193: 瓶 | E193: 利尔康 | F193: 1.209
A194: 5 | B194: 碘伏 | C194: 500ml | D194: 瓶 | E194: 利尔康 | F194: 3.255
A195: 6 | B195: 2%碘酊 | C195: 60ml/500ml | D195: 瓶 | E195: 山东名德医疗科技有限公司 | F195: 18.4
A196: 7 | B196: 双氧水 | C196: 100ml | D196: 瓶 | E196: 利尔康 | F196: 0.4185
A197: 8 | B197: 双氧水 | C197: 500ml | E197: 利尔康 | F197: 1.86
A198: 9 | B198: 84消毒片 | C198: 100片/瓶 | D198: 瓶 | E198: 利尔康 | F198: 7.905
A199: 10 | B199: 过氧乙酸 | C199: 5L | D199: 桶 | E199: 山东名德医疗科技有限公司 | F199: 334.8
A200: 12 | B200: 消毒湿巾 | C200: 规格：20片/包 尺寸：20cm*20cm | D200: 包 | E200: 上海利康 | F200: 6.51
... 107 more rows

Sheet 放射（弘业、康美达）
A1: 放射科耗材目录
A2: 序号 | B2: 产品注册证名称 | C2: 规格型号 | D2: 单位 | E2: 品牌 | F2: 生产企业 | G2: 单价
A3: 1 | B3: 一次性使用高压造影注射器及附件 | C3: CM-200/200 | D3: 套 | E3: 深圳迈威 | F3: 深圳市迈威生物科技有限公司 | G3: 139.5
A4: 2 | B4: 一次性使用高压造影注射器及附件 | C4: B01305 CM-60/60 | D4: 套 | E4: 深圳迈威 | F4: 深圳市迈威生物科技有限公司 | G4: 130.2
A5: 3 | B5: 一次性使用心电电极 | C5: LT-S-301 | D5: 片 | E5: 上海励图 | F5: 上海励图医疗器材有限公司 | G5: 1.86
A6: 4 | B6: 柯尼达JG-FS胶片 | C6: 14*17 | D6: JG-FS | E6: 张 | F6: 深圳市柯尼达巨茂医疗设备有限公司 | G6: 12.09
A7: 5 | B7: 柯尼达JG-FS胶片 | C7: 8*10 | D7: JG-FS | E7: 张 | F7: 深圳市柯尼达巨茂医疗设备有限公司 | G7: 7.44

Sheet 消毒灭菌（弘业）
A1: 消毒灭菌耗材目录
A2: 序号 | B2: 产品注册证名称 | C2: 规格型号 | D2: 单位 | E2: 生产企业 | F2: 单价
A3: 1 | B3: 医用除胶剂 | C3: 250ML | D3: 桶 | E3: 山东新华医疗器械股份有限公司 | F3: 18
A4: 2 | B4: 新华牌医疗器械除锈剂 | C4: 2.5L | D4: 桶 | E4: 山东新华医疗器械股份有限公司 | F4: 216
A5: 3 | B5: 除锈湿巾 | C5: 50片/桶 | D5: 桶 | E5: 北京佳士力科技有限公司 | F5: 270
A6: 4 | B6: 医用手术钻清洗剂 | C6: 500ml | D6: 瓶 | E6: 山东新华医疗器械股份有限公司 | F6: 90
A7: 5 | B7: 新华牌医疗器械中性多酶清洗剂 | C7: 5L | D7: 桶 | E7: 山东新华医疗器械股份有限公司 | F7: 405
A8: 6 | B8: 新华牌医疗器械多效柔亮型润滑防锈剂 | C8: 5L（备注2.5L） | D8: 桶 | E8: 山东新华医疗器械股份有限公司 | F8: 288
A9: 7 | B9: 新华牌清洗效果检测系统检测卡 | C9: 50片 | D9: 片 | E9: 山东新华医疗器械股份有限公司 | F9: 450
A10: 8 | B10: G-1型消毒剂浓度试纸 | D10: 盒 | E10: 山东新华医疗器械股份有限公司 | F10: 99
A11: 9 | B11: 过氧化氢低温等离子体灭菌器100过氧化氢卡匣 | C11: 12*5ML | D11: 套 | E11: 山东新华医疗器械股份有限公司 | F11: 216
A12: 10 | B12: 新华牌III型过氧化氢低温等离子体灭菌过程指示标签 | C12: 60mm*25mm | D12: 袋 | E12: 山东新华医疗器械股份有限公司 | F12: 565.2
A13: 11 | B13: 型过氧化氢低温等离子体灭菌过程指示卡 | C13: 80mm*15mm | D13: 瓶 | E13: 山东新华医疗器械股份有限公司 | F13: 180
A14: 12 | B14: 新华牌过氧化氢低温等离子体灭菌1小时极速生物指示剂 | D14: 盒 | E14: 山东新华医疗器械股份有限公司 | F14: 153
A15: 13 | B15: 新华牌过氧化氢低温等离子体灭菌化学验证装置 | D15: 盒 | E15: 山东新华医疗器械股份有限公司 | F15: 990
A16: 14 | B16: 新华牌过氧化氢低温等离子体灭菌1小时极速生物指示剂 | D16: 盒 | E16: 山东新华医疗器械股份有限公司 | F16: 40.5
A17: 15 | B17: 过氧化氢低温等离子体灭菌过程指示卡 | C17: 100片/瓶 | D17: 瓶 | E17: 山东新华医疗器械股份有限公司 | F17: 207
A18: 16 | B18: 新华牌压力蒸汽灭菌化学指示标签 | C18: 61mm*34mm | D18: 卷 | E18: 山东新华医疗器械股份有限公司 | F18: 565.2
A19: 17 | B19: 新华牌压力蒸汽灭菌化学指示胶粘带（TY19501） | C19: 24mm*50mm | D19: 卷 | E19: 山东新华医疗器械股份有限公司 | F19: 54
A20: 18 | B20: 压力蒸汽灭菌化学指示卡 | C20: 132℃，防水型 | D20: 盒 | E20: 山东新华医疗器械股份有限公司 | F20: 72
A21: 19 | B21: 压力蒸气灭菌化学指示标签 | C21: 25mm*100mm | D21: 本 | E21: 山东新华医疗器械股份有限公司 | F21: 135
B22: 新华牌压力蒸汽灭菌化学指示标签 | C22: 61mm*34mm | D22: 卷 | E22: 山东新华医疗器械股份有限公司 | F22: 205.2
A23: 21 | B23: 压力蒸气灭菌爬行式化学指示卡 | C23: 200片/袋 | D23: 袋 | E23: 山东新华医疗器械股份有限公司 | F23: 223.2
A24: 22 | B24: 新华牌压力蒸汽灭菌过程化学验证装置 | D24: 套 | E24: 山东新华医疗器械股份有限公司 | F24: 1530
A25: 23 | B25: 新华牌B-D模拟测试装置 | D25: 套 | E25: 山东新华医疗器械股份有限公司 | F25: 1260
A26: 24 | B26: 新华牌压力蒸汽灭菌标准生物测试包 | C26: 15包/箱 | D26: 箱 | E26: 山东新华医疗器械股份有限公司 | F26: 540
A27: 25 | B27: 新华牌压力蒸汽灭菌极速综合挑战包 | D27: 箱 | E27: 山东新华医疗器械股份有限公司 | F27: 1485
A28: 26 | B28: 新华牌压力蒸汽灭菌封包胶粘带 | C28: 19mm*50mm | D28: 卷 | E28: 山东新华医疗器械股份有限公司 | F28: 16.2
A29: 27 | B29: 新华牌封口测试纸 | C29: 高温 | D29: 盒 | E29: 山东新华医疗器械股份有限公司 | F29: 324
A30: 28 | B30: 新华牌封口测试纸 | C30: 低温 | D30: 盒 | E30: 山东新华医疗器械股份有限公司 | F30: 324
A31: 29 | B31: 低温六项指示标签 | C31: 900片/张 | D31: 张 | E31: 山东新华医疗器械股份有限公司 | F31: 162
A32: 30 | B32: 高温六项指示标签 | C32: 900片/张 | D32: 张 | E32: 山东新华医疗器械股份有限公司 | F32: 216
A33: 31 | B33: 过氧化氢等离子灭菌打印纸 | C33: 80MM*50M | D33: 卷 | E33: 山东新华医疗器械股份有限公司 | F33: 31.5
A34: 32 | B34: 过氧化氢等离子灭菌打印纸 | C34: 57MM*30M | D34: 卷 | E34: 山东新华医疗器械股份有限公司 | F34: 31.5
A35: 33 | B35: 医用手术钻清洗剂 | C35: 500ml | D35: 瓶 | E35: 山东新华医疗器械股份有限公司 | F35: 81
A36: 34 | B36: 医用灭菌包装无纺布 | C36: 300mm*300mm | D36: 张 | E36: 山东新华医疗器械股份有限公司 | F36: 0.27
A37: 35 | B37: 医用灭菌包装无纺布 | C37: 500mm*500mm | D37: 张 | E37: 山东新华医疗器械股份有限公司 | F37: 0.72
A38: 36 | B38: 医用灭菌包装无纺布 | C38: 400mm*400mm | D38: 张 | E38: 山东新华医疗器械股份有限公司 | F38: 0.495
A39: 37 | B39: 医用灭菌包装无纺布 | C39: 600mm*600mm | D39: 张 | E39: 山东新华医疗器械股份有限公司 | F39: 1.08
A40: 38 | B40: 医用灭菌包装无纺布 | C40: 800mm*800mm | D40: 张 | E40: 山东新华医疗器械股份有限公司 | F40: 1.62
A41: 39 | B41: 医用灭菌包装无纺布 | C41: 1000mm*1000mm | D41: 张 | E41: 山东新华医疗器械股份有限公司 | F41: 2.25
A42: 40 | B42: 医用灭菌包装无纺布 | C42: 1200mm*1200mm | D42: 张 | E42: 山东新华医疗器械股份有限公司 | F42: 3.15
A43: 41 | B43: 灭菌包装材料 | C43: 50mm*100m | D43: 卷 | E43: 山东新华医疗器械股份有限公司 | F43: 58.5
A44: 42 | B44: 灭菌包装材料 | C44: 100mm*100m | D44: 卷 | E44: 山东新华医疗器械股份有限公司 | F44: 94.5
A45: 43 | B45: 灭菌包装材料 | C45: 150mm*100m | D45: 卷 | E45: 山东新华医疗器械股份有限公司 | F45: 128.7
A46: 44 | B46: 灭菌包装材料 | C46: 200mm*100m | D46: 卷 | E46: 山东新华医疗器械股份有限公司 | F46: 190.8
A47: 45 | B47: 灭菌包装材料 | C47: 250mm*100m | D47: 卷 | E47: 山东新华医疗器械股份有限公司 | F47: 218.7
A48: 46 | B48: 灭菌包装材料 | C48: 300mm*100m | D48: 卷 | E48: 山东新华医疗器械股份有限公司 | F48: 369
A49: 47 | B49: 灭菌包装材料 | C49: 400mm*100m | D49: 卷 | E49: 山东新华医疗器械股份有限公司 | F49: 306
A50: 48 | B50: 过氧化氢低温等离子包装袋 | C50: 100mm*100m | D50: 卷 | E50: 山东新华医疗器械股份有限公司 | F50: 342
A51: 49 | B51: 过氧化氢低温等离子包装袋 | C51: 150mm*100m | D51: 卷 | E51: 山东新华医疗器械股份有限公司 | F51: 437.4
A52: 50 | B52: 过氧化氢低温等离子包装袋 | C52: 200mm*100m | D52: 卷 | E52: 山东新华医疗器械股份有限公司 | F52: 558
A53: 51 | B53: 过氧化氢低温等离子包装袋 | C53: 250mm*100m | D53: 卷 | E53: 山东新华医疗器械股份有限公司 | F53: 765
A54: 52 | B54: 过氧化氢低温等离子包装袋 | C54: 400mm*100m | D54: 卷 | E54: 山东新华医疗器械股份有限公司 | F54: 1093.5
A55: 53 | B55: 过氧化氢低温等离子包装袋 | C55: 300mm*100m | D55: 卷 | E55: 山东新华医疗器械股份有限公司 | F55: 887.4
A56: 54 | B56: 过氧化氢低温等离子包装袋 | C56: 350mm*100m | D56: 卷 | E56: 山东新华医疗器械股份有限公司 | F56: 1755
A57: 55 | B57: 锐器保护套 | C57: 4mm*3.2mm | D57: 个 | E57: 山东新华医疗器械股份有限公司 | F57: 630
A58: 56 | B58: 锐器保护套 | C58: 4mm*4.6mm | D58: 个 | E58: 山东新华医疗器械股份有限公司 | F58: 315
A59: 57 | B59: 锐器保护套 | C59: 4mm*4.6mm | D59: 个 | E59: 山东新华医疗器械股份有限公司 | F59: 450
A60: 58 | B60: 锐器保护套 | C60: 4mm*3.2mm | D60: 个 | E60: 山东新华医疗器械股份有限公司 | F60: 247.5
A61: 59 | B61: 锐器保护套 | C61: 1.5MM*3MM*40mm | D61: 个 | E61: 山东新华医疗器械股份有限公司 | F61: 0.36
A62: 60 | B62: 锐器保护套 | C62: 4MM*6.2MM*40MM | D62: 个 | E62: 山东新华医疗器械股份有限公司 | F62: 1.08
A63: 61 | B63: 锐器保护套 | C63: 6MM*8.2MM*40MM | D63: 个 | E63: 山东新华医疗器械股份有限公司 | F63: 1.89
A64: 62 | B64: 锐器保护套 | C64: 7.5MM*10.2MM*40MM | D64: 个 | E64: 山东新华医疗器械股份有限公司 | F64: 0.81
A65: 63 | B65: 沉淀滤芯 | C65: 4mm*47mm | D65: 个 | E65: 山东新华医疗器械股份有限公司 | F65: 40.5
A66: 64 | B66: 锐器保护套 | C66: 3mm*40mm | D66: 个 | E66: 山东新华医疗器械股份有限公司
A67: 65 | B67: 湿化瓶刷 | C67: 毛外径60mm，毛长100mm，总长44cm | D67: 个 | E67: 山东新华医疗器械股份有限公司 | F67: 19.8
A68: 66 | B68: 单头除锈刷 | C68: 毛外径13mm，毛长55mm，总长19cm | D68: 个 | E68: 山东新华医疗器械股份有限公司 | F68: 19.8
A69: 67 | B69: 持物筒刷 | C69: 毛长15cm,总长25cm | D69: 个 | E69: 山东新华医疗器械股份有限公司 | F69: 13.5
A70: 68 | B70: 单头器械清洗刷 | C70: 毛长4cm总长220mm | D70: 个 | E70: 山东新华医疗器械股份有限公司 | F70: 22.5
A71: 69 | B71: 双头器械刷大号 | C71: 毛外径150mm毛段长450mm | D71: 个 | E71: 山东新华医疗器械股份有限公司 | F71: 22.5
A72: 70 | B72: 双头器械刷小号 | C72: 毛外径100mm毛段长350mm | D72: 个 | E72: 山东新华医疗器械股份有限公司 | F72: 22.5
A73: 71 | B73: 管腔刷 | C73: 毛外径2mm，毛长120mm， | D73: 个 | E73: 山东新华医疗器械股份有限公司 | F73: 18.9
A74: 72 | B74: 管腔刷 | C74: 毛外径3mm，毛长120mm， | D74: 个 | E74: 山东新华医疗器械股份有限公司 | F74: 18.9
A75: 73 | B75: 管腔刷 | C75: 毛外径6mm，毛长120mm， | D75: 个 | E75: 山东新华医疗器械股份有限公司 | F75: 18.9
A76: 74 | B76: 管腔刷 | C76: 毛外径7mm，毛长120mm | D76: 个 | E76: 山东新华医疗器械股份有限公司 | F76: 18.9
A77: 75 | B77: 管腔刷 | C77: 毛外径9mm，毛长120mm， | D77: 个 | E77: 山东新华医疗器械股份有限公司 | F77: 18.9
A78: 76 | B78: 管腔刷 | C78: 毛外径11mm，毛长120mm，总长44cm | D78: 个 | E78: 山东新华医疗器械股份有限公司 | F78: 18.9
A79: 77 | B79: 管腔刷 | C79: 毛外径13mm，毛长120mm，总长44cm | D79: 个 | E79: 山东新华医疗器械股份有限公司 | F79: 18.9
A80: 78 | B80: 管腔刷 | C80: 毛外径15mm，毛长120mm，总长44cm | D80: 个 | E80: 山东新华医疗器械股份有限公司 | F80: 18.9
A81: 79 | B81: 洗槽清洁刷 | C81: 毛外径23mm,毛长40mm,总长210mm | D81: 个 | E81: 山东新华医疗器械股份有限公司 | F81: 22.5
A82: 80 | B82: 锥形内窥镜双头刷 | C82: 刷毛直径6mm,总长1米 | D82: 个 | E82: 山东新华医疗器械股份有限公司 | F82: 9
A83: 81 | B83: 医用吸水纸 | C83: 25*25 | D83: 张 | E83: 山东新华医疗器械股份有限公司 | F83: 0.243
A84: 82 | B84: 医用吸水纸 | C84: 25*50 | D84: 张 | E84: 山东新华医疗器械股份有限公司 | F84: 0.477
A85: 83 | B85: 器械消毒筐 | C85: 25cm*25cm | D85: 个 | E85: 山东新华医疗器械股份有限公司 | F85: 189
A86: 84 | B86: 器械消毒筐 | C86: 25cm*50cm | D86: 个 | E86: 山东新华医疗器械股份有限公司 | F86: 211.5
A87: 85 | B87: 骨磨钻清洗剂 | C87: 500ml/瓶 | D87: 瓶 | E87: 山东新华医疗器械股份有限公司 | F87: 81
A88: 86 | B88: 生物膜清洗剂 | C88: 2.5L/桶 | D88: 桶 | E88: 山东新华医疗器械股份有限公司 | F88: 178.2
A89: 87 | B89: 黄斑清洗剂 | C89: 2.5L/桶 | D89: 桶 | E89: 山东新华医疗器械股份有限公司 | F89: 194.4
A90: 88 | B90: 除垢剂 | C90: 2.5L/桶 | D90: 桶 | E90: 山东新华医疗器械股份有限公司 | F90: 121.5
A91: 89 | B91: 除油剂 | C91: 2.5L/桶 | D91: 桶 | E91: 山东新华医疗器械股份有限公司 | F91: 202.5
A92: 90 | B92: 润滑防锈剂 | C92: 250ML/瓶 | D92: 瓶 | E92: 山东新华医疗器械股份有限公司 | F92: 288
A93: 91 | B93: 清洗润滑剂 | C93: 250ML /瓶 | D93: 瓶 | E93: 山东新华医疗器械股份有限公司 | F93: 170.1
A94: 92 | B94: 压力蒸汽灭菌化学指示卡 | C94: 70MM*15MM | D94: 张 | E94: 山东新华医疗器械股份有限公司 | F94: 0.45

Sheet 病理科（壁琅）
A1: 病理耗材目录
A2: 序号 | B2: 名称 | C2: 规格描述 | D2: 生产厂家 | E2: 单价
A3: 1 | B3: 带盖离心管 | C3: 50ml螺口锥形底 | D3: 北京金悦德利 | E3: 36
A4: 2 | B4: 带盖离心管 | C4: 15ml螺口锥形底 | D4: 北京金悦德利 | E4: 41.4
A5: 3 | B5: 带盖离心管 | C5: 1.5ml带盖 | D5: 北京金悦德利 | E5: 9
A6: 4 | B6: 带盖离心管 | C6: 0.2ml带盖 | D6: 北京金悦德利 | E6: 36
A7: 5 | B7: 激光打印包埋盒 | C7: 带激光粉包埋盒 | D7: 北京金悦德利 | E7: 0.54
A8: 6 | B8: 激光打印载玻片 | C8: 白色激光玻片打号机专用 | D8: 海门飞洋 | E8: 17.1
A9: 7 | B9: 液基薄层细胞保存液（离心沉降法） | C9: 200人份/箱 | D9: 上海蓝盎 | E9: 23.85
A11: 8 | B11: 一次性塑料滴管 | C11: 1ml 100个/袋 | D11: 北京金悦德利 | E11: 10.8
A12: 9 | B12: 松节油 | C12: 100ml/瓶 | D12: 南昌华鑫医药 | E12: 13.5
A13: 10 | B13: 免洗盖玻片（24*24mm） | C13: 200片/盒 | D13: 海门飞洋 | E13: 18
A14: 11 | B14: 免洗盖玻片（36*24mm） | C14: 100片/盒 | D14: 海门飞洋 | E14: 22.5
A15: 16 | B15: 石蜡 | C15: 500g/袋 | D15: 上海华灵 | E15: 27
A16: 17 | B16: 苏木素颗粒 | C16: 5G | D16: 上海蓝季 | E16: 135
A17: 18 | B17: 红Y（醇溶性） | C17: 25G | D17: 国药 | E17: 153
A18: 19 | B18: 环保封片胶 | C18: 50ml/瓶 | D18: 上海蓝盎 | E18: 135
A19: 20 | B19: 病理刀片 | C19: 50片/盒 | D19: 日本羽毛 | E19: 801
A20: 21 | B20: 分化液 | C20: 500ml/瓶 | D20: 南昌雨露 | E20: 144
A21: 22 | B21: 脱钙液 | C21: 500ml/瓶 | D21: 南昌雨露 | E21: 144
A22: 24 | B22: 硫酸铝钾 | C22: 500g | D22: 西陇化工 | E22: 0.9
A23: 25 | B23: 无水磷酸氢二钠 | C23: 500g | D23: 天津科密欧 | E23: 9
A24: 26 | B24: 二水合磷酸氢二钠 | C24: 500g | D24: 国药 | E24: 54
A25: 32 | B25: 定性滤纸 | C25: 中号或大号 | D25: 海门飞洋 | E25: 25.2
A26: 33 | B26: 瑞氏染液染色液 | C26: 4*250ml | D26: 珠海贝索 | E26: 90
A27: 34 | B27: 病理抗酸染色液 | C27: 4*20ml | D27: 珠海贝索 | E27: 88.2
A28: 35 | B28: 弹力纤维染色 | C28: 4*20ml | D28: 珠海贝索 | E28: 765
A29: 36 | B29: 病理糖原染色液（PAS） | C29: 3*20ml | D29: 珠海贝索 | E29: 270
A30: 37 | B30: 微量移液器吸头 | C30: 10微升 | D30: 北京金悦德利 | E30: 19.8
A31: 38 | B31: 微量移液器吸头 | C31: 50微升 | D31: 北京金悦德利 | E31: 19.8
A32: 39 | B32: 微量移液器吸头 | C32: 100微升 | D32: 北京金悦德利 | E32: 19.8
A33: 40 | B33: 微量移液器吸头 | C33: 200微升 | D33: 北京金悦德利 | E33: 19.8
A34: 41 | B34: 微量移液器吸头 | C34: 1000微升 | D34: 北京金悦德利 | E34: 22.5
A35: 42 | B35: 普通包埋盒 | C35: 带盖连体 | D35: 武汉天之瑞 | E35: 0.513
A36: 43 | B36: 载玻片 | C36: 50 | D36: 海门飞洋 | E36: 5.4
A37: 44 | B37: 粘附载玻片 | C37: 50片/盒 | D37: 江苏世泰 | E37: 49.5
A38: 45 | B38: 不锈钢包埋底膜 | C38: 微号 | D38: 北京金悦德利 | E38: 5.4
A39: 46 | B39: 不锈钢包埋底膜 | C39: 小号 | D39: 北京金悦德利 | E39: 5.4
A40: 47 | B40: 不锈钢包埋底膜 | C40: 中号 | D40: 北京金悦德利 | E40: 5.4
A41: 48 | B41: 不锈钢包埋底膜 | C41: 大号 | D41: 北京金悦德利 | E41: 5.4
A42: 49 | B42: 水杨酸 | C42: 250g | D42: 天津恒兴 | E42: 14.4
A43: 50 | B43: 碳酸锂返蓝液 | C43: 1000ml | D43: 珠海贝索 | E43: 324
A44: 51 | B44: 橘黄G染液 | C44: 500ml | D44: 珠海贝索 | E44: 432
A45: 52 | B45: EA50染液 | C45: 500ml | D45: 珠海贝索 | E45: 342
A46: 53 | B46: 病理标本袋 | C46: 微号 | D46: 北京金悦德利 | E46: 0.63
A47: 54 | B47: 病理标本袋 | C47: 小号 | D47: 北京金悦德利 | E47: 0.63
A48: 55 | B48: 病理标本袋 | C48: 中号 | D48: 北京金悦德利 | E48: 0.864
A49: 56 | B49: 病理标本袋 | C49: 大号 | D49: 北京金悦德利 | E49: 1.08
A50: 58 | B50: 染色缸 | C50: 带盖，装24片 | D50: 基因科技 | E50: 144
A51: 59 | B51: 染色架 | C51: 24格 | D51: 基因科技 | E51: 76.5
A52: 60 | B52: PBS清洗液 | C52: 2L/包,5包/套 | D52: 基因科技 | E52: 7.2
A53: 61 | B53: 免疫显色试剂(二抗) | C53: 50次测试/盒 | D53: 基因科技 | E53: 2520
A54: 62 | B54: DAB染色液 | C54: 100次测试/盒 | D54: 基因科技 | E54: 730
A55: 63 | B55: 免疫组化抗原修复缓冲液 | C55: 100ml/瓶 | D55: 基因科技 | E55: 61.2
A56: 64 | B56: ALK抗体试剂（免疫组织化学） | C56: 2mL/盒 | D56: 基因科技 | E56: 546.3
A57: 65 | B57: Alpha-1-Fetoprotein抗体试剂（免疫组织化学） | C57: 2mL/盒 | D57: 基因科技 | E57: 364.5
A58: 66 | B58: bcl-2抗体试剂（免疫组织化学） | C58: 2mL/盒 | D58: 基因科技 | E58: 637.2
A59: 67 | B59: bcl-6抗体试剂（免疫组织化学） | C59: 2mL/盒 | D59: 基因科技 | E59: 979.2
A60: 68 | B60: BRAF抗体试剂（免疫组织化学） | C60: 2mL/盒 | D60: 基因科技 | E60: 2546.1
A61: 69 | B61: CA 125抗体试剂（免疫组织化学） | C61: 2mL/盒 | D61: 基因科技 | E61: 683.1
A62: 70 | B62: CA 19-9抗体试剂（免疫组织化学） | C62: 2mL/盒 | D62: 基因科技 | E62: 626.4
A63: 71 | B63: Calcitonin降钙素抗体试剂（免疫组织化学） | C63: 2mL/盒 | D63: 基因科技 | E63: 227.7
A64: 72 | B64: Caldesmon抗体试剂（免疫组织化学） | C64: 2mL/盒 | D64: 基因科技 | E64: 734.4
A65: 73 | B65: Calponin抗体试剂（免疫组织化学） | C65: 2mL/盒 | D65: 基因科技 | E65: 489.6
A66: 74 | B66: Calretinin抗体试剂（免疫组织化学） | C66: 2mL/盒 | D66: 基因科技 | E66: 408.6
A67: 75 | B67: CD10抗体试剂（免疫组织化学） | C67: 2mL/盒 | D67: 基因科技 | E67: 1195.2
A68: 76 | B68: CD123抗体试剂（免疫组织化学） | C68: 2mL/盒 | D68: 基因科技 | E68: 1683
A69: 77 | B69: CD138抗体试剂（免疫组织化学） | C69: 2mL/盒 | D69: 基因科技 | E69: 580.5
A70: 78 | B70: CD14抗体试剂（免疫组织化学） | C70: 2mL/盒 | D70: 基因科技 | E70: 449.1
A71: 79 | B71: CD15抗体试剂（免疫组织化学） | C71: 2mL/盒 | D71: 基因科技 | E71: 773.1
A72: 80 | B72: CD163抗体试剂（免疫组织化学） | C72: 2mL/盒 | D72: 基因科技 | E72: 837
A73: 81 | B73: CD19抗体试剂（免疫组织化学） | C73: 2mL/盒 | D73: 基因科技 | E73: 1103.4
A74: 82 | B74: CD1a抗体试剂（免疫组织化学） | C74: 2mL/盒 | D74: 基因科技 | E74: 1992.6
A75: 83 | B75: CD21抗体试剂（免疫组织化学） | C75: 2mL/盒 | D75: 基因科技 | E75: 1309.5
A76: 84 | B76: CD23抗体试剂（免疫组织化学） | C76: 2mL/盒 | D76: 基因科技 | E76: 657.9
A77: 85 | B77: CD25抗体试剂（免疫组织化学） | C77: 2mL/盒 | D77: 基因科技 | E77: 766.8
A78: 86 | B78: CD2抗体试剂（免疫组织化学） | C78: 2mL/盒 | D78: 基因科技 | E78: 1422.9
A79: 87 | B79: CD30抗体试剂（免疫组织化学） | C79: 2mL/盒 | D79: 基因科技 | E79: 739.8
A80: 88 | B80: CD31抗体试剂（免疫组织化学） | C80: 2mL/盒 | D80: 基因科技 | E80: 660.6
A81: 89 | B81: CD34抗体试剂（免疫组织化学） | C81: 2mL/盒 | D81: 基因科技 | E81: 869.4
A82: 90 | B82: CD35抗体试剂（免疫组织化学） | C82: 2mL/盒 | D82: 基因科技 | E82: 600.3
A83: 91 | B83: CD38抗体试剂（免疫组织化学） | C83: 2mL/盒 | D83: 基因科技 | E83: 358.2
A84: 92 | B84: CD3抗体试剂（免疫组织化学） | C84: 2mL/盒 | D84: 基因科技 | E84: 452.7
A85: 93 | B85: CD43抗体试剂（免疫组织化学） | C85: 2mL/盒 | D85: 基因科技 | E85: 387
A86: 94 | B86: CD45RO抗体试剂（免疫组织化学） | C86: 2mL/盒 | D86: 基因科技 | E86: 364.5
A87: 95 | B87: CD45R抗体试剂（免疫组织化学） | C87: 2mL/盒 | D87: 基因科技 | E87: 392.4
A88: 96 | B88: CD45抗体试剂（免疫组织化学） | C88: 2mL/盒 | D88: 基因科技 | E88: 398.7
A89: 97 | B89: CD4抗体试剂（免疫组织化学） | C89: 2mL/盒 | D89: 基因科技 | E89: 2256.3
A90: 98 | B90: CD56抗体试剂（免疫组织化学） | C90: 2mL/盒 | D90: 基因科技 | E90: 630.9
A91: 99 | B91: CD5抗体试剂（免疫组织化学） | C91: 2mL/盒 | D91: 基因科技 | E91: 637.2
A92: 100 | B92: CD61抗体试剂（免疫组织化学） | C92: 2mL/盒 | D92: 基因科技 | E92: 543.6
A93: 101 | B93: CD68抗体试剂（免疫组织化学） | C93: 2mL/盒 | D93: 基因科技 | E93: 426.6
A94: 102 | B94: CD79a抗体试剂（免疫组织化学） | C94: 2mL/盒 | D94: 基因科技 | E94: 342
A95: 103 | B95: CD7抗体试剂（免疫组织化学） | C95: 2mL/盒 | D95: 基因科技 | E95: 704.7
A96: 104 | B96: CD8抗体试剂（免疫组织化学） | C96: 2mL/盒 | D96: 基因科技 | E96: 693
A97: 105 | B97: CD99抗体试剂（免疫组织化学） | C97: 2mL/盒 | D97: 基因科技 | E97: 660.6
A98: 106 | B98: CEA抗体试剂（免疫组织化学） | C98: 2mL/盒 | D98: 基因科技 | E98: 452.7
A99: 107 | B99: Chromogranin抗体试剂（免疫组织化学） | C99: 2mL/盒 | D99: 基因科技 | E99: 284.4
A100: 108 | B100: D2-40抗体试剂（免疫组织化学） | C100: 2mL/盒 | D100: 基因科技 | E100: 609.3
A101: 109 | B101: Desmin抗体试剂（免疫组织化学） | C101: 2mL/盒 | D101: 基因科技 | E101: 321.3
A102: 110 | B102: EGFR（表皮生长因子受体）抗体试剂（免疫组织化学） | C102: 2mL/盒 | D102: 基因科技 | E102: 535.5
A103: 111 | B103: EMA抗体试剂（免疫组织化学） | C103: 2mL/盒 | D103: 基因科技 | E103: 327.6
A104: 112 | B104: GCDFP-15抗体试剂（免疫组织化学） | C104: 2mL/盒 | D104: 基因科技 | E104: 753.3
A105: 113 | B105: Granzyme B抗体试剂（免疫组织化学） | C105: 2mL/盒 | D105: 基因科技 | E105: 945
A106: 114 | B106: HMB-45抗体试剂（免疫组织化学） | C106: 2mL/盒 | D106: 基因科技 | E106: 409.5
A107: 115 | B107: Kappa链抗体试剂（免疫组织化学） | C107: 2mL/盒 | D107: 基因科技 | E107: 409.5
A108: 116 | B108: Ki-67抗体试剂（免疫组织化学） | C108: 2mL/盒 | D108: 基因科技 | E108: 903.6
A109: 117 | B109: MART-1/melan A抗体试剂（免疫组织化学） | C109: 2mL/盒 | D109: 基因科技 | E109: 809.1
A110: 118 | B110: MUM1抗体试剂（免疫组织化学） | C110: 2mL/盒 | D110: 基因科技 | E110: 1070.1
A111: 119 | B111: Napsin A抗体试剂（免疫组织化学） | C111: 2mL/盒 | D111: 基因科技 | E111: 432.9
A112: 120 | B112: NSE抗体试剂（免疫组织化学） | C112: 2mL/盒 | D112: 基因科技 | E112: 432.9
A113: 121 | B113: p16抗体试剂（免疫组织化学） | C113: 2mL/盒 | D113: 基因科技 | E113: 797.4
A114: 122 | B114: p40抗体试剂（免疫组织化学） | C114: 2mL/盒 | D114: 基因科技 | E114: 1042.2
A115: 123 | B115: p53抗体试剂（免疫组织化学） | C115: 2mL/盒 | D115: 基因科技 | E115: 647.1
A116: 124 | B116: p63抗体试剂（免疫组织化学） | C116: 2mL/盒 | D116: 基因科技 | E116: 605.7
A117: 125 | B117: PLAP抗体试剂（免疫组织化学） | C117: 2mL/盒 | D117: 基因科技 | E117: 678.6
A118: 126 | B118: PSMA抗体试剂（免疫组织化学） | C118: 2mL/盒 | D118: 基因科技 | E118: 561.6
A119: 127 | B119: S100抗体试剂（免疫组织化学） | C119: 2mL/盒 | D119: 基因科技 | E119: 422.1
A120: 128 | B120: SMA抗体试剂（免疫组织化学） | C120: 2mL/盒 | D120: 基因科技 | E120: 523.8
A121: 129 | B121: Synaptophysin抗体试剂（免疫组织化学） | C121: 2mL/盒 | D121: 基因科技 | E121: 421.2
A122: 130 | B122: VEGF抗体试剂（免疫组织化学） | C122: 2mL/盒 | D122: 基因科技 | E122: 640.8
A123: 131 | B123: Vimentin抗体试剂（免疫组织化学） | C123: 2mL/盒 | D123: 基因科技 | E123: 654.3
A124: 132 | B124: 甲状腺转录因子-1 （TTF-1）抗体试剂（免疫组织化学） | C124: 2mL/盒 | D124: 基因科技 | E124: 523.8
A125: 133 | B125: 细胞角蛋白（广谱）抗体试剂（免疫组织化学） | C125: 2mL/盒 | D125: 基因科技 | E125: 499.5
A126: 134 | B126: 细胞角蛋白14抗体试剂（免疫组织化学） | C126: 2mL/盒 | D126: 基因科技 | E126: 495
A127: 135 | B127: 细胞角蛋白20抗体试剂（免疫组织化学） | C127: 2mL/盒 | D127: 基因科技 | E127: 639
A128: 136 | B128: 细胞角蛋白7抗体试剂（免疫组织化学） | C128: 2mL/盒 | D128: 基因科技 | E128: 392.4
A129: 137 | B129: 细胞角蛋白8&18抗体试剂（免疫组织化学） | C129: 2mL/盒 | D129: 基因科技 | E129: 375.3
A130: 138 | B130: 细胞角蛋白CK34Beta E（高分子量）抗体试剂（免疫组织化学） | C130: 2mL/盒 | D130: 基因科技 | E130: 446.4
A131: 139 | B131: 细胞周期蛋白D1抗体试剂（免疫组织化学） | C131: 2mL/盒 | D131: 基因科技 | E131: 705.6
A132: 140 | B132: AMACR/p504s抗体试剂（免疫组织化学） | C132: 2mL/盒 | D132: 基因科技 | E132: 698.4
A133: 141 | B133: CDX-2抗体试剂（免疫组织化学） | C133: 2mL/盒 | D133: 基因科技 | E133: 464.4
A134: 142 | B134: DOG1抗体试剂（免疫组织化学） | C134: 2mL/盒 | D134: 基因科技 | E134: 711.9
A135: 143 | B135: E-Cadherin抗体试剂（免疫组织化学） | C135: 2mL/盒 | D135: 基因科技 | E135: 671.4
A136: 144 | B136: Inhibin, alpha抗体试剂（免疫组织化学） | C136: 2mL/盒 | D136: 基因科技 | E136: 900
A137: 145 | B137: MLH1抗体试剂（免疫组织化学） | C137: 2mL/盒 | D137: 基因科技 | E137: 1170
A138: 146 | B138: MSH2抗体试剂（免疫组织化学） | C138: 2mL/盒 | D138: 基因科技 | E138: 1035
A139: 147 | B139: MSH6抗体试剂（免疫组织化学） | C139: 2mL/盒 | D139: 基因科技 | E139: 1138.5
A140: 148 | B140: Myeloperoxidase抗体试剂（免疫组织化学） | C140: 2mL/盒 | D140: 基因科技 | E140: 512.1
A141: 149 | B141: p120抗体试剂（免疫组织化学） | C141: 2mL/盒 | D141: 基因科技 | E141: 797.4
A142: 150 | B142: Pax-5抗体试剂（免疫组织化学） | C142: 2mL/盒 | D142: 基因科技 | E142: 637.2
A143: 151 | B143: Pax-8抗体试剂（免疫组织化学） | C143: 2mL/盒 | D143: 基因科技 | E143: 1469.7
A144: 152 | B144: PMS2抗体试剂（免疫组织化学） | C144: 2mL/盒 | D144: 基因科技 | E144: 825.3
A145: 153 | B145: TdT抗体试剂（免疫组织化学） | C145: 2mL/盒 | D145: 基因科技 | E145: 1076.4
A146: 154 | B146: Villin（微管素）抗体试剂（免疫组织化学） | C146: 2mL/盒 | D146: 基因科技 | E146: 580.5
A147: 155 | B147: WT1抗体试剂（免疫组织化学） | C147: 2mL/盒 | D147: 基因科技 | E147: 774
A148: 156 | B148: 细胞角蛋白18抗体试剂（免疫组织化学） | C148: 2mL/盒 | D148: 基因科技 | E148: 352.8
A149: 157 | B149: 细胞角蛋白19抗体试剂（免疫组织化学） | C149: 2mL/盒 | D149: 基因科技 | E149: 342.9
A150: 158 | B150: 细胞角蛋白5＆6抗体试剂（免疫组织化学） | C150: 2mL/盒 | D150: 基因科技 | E150: 593.1
A151: 159 | B151: CD57抗体试剂（免疫组织化学） | C151: 2mL/盒 | D151: 基因科技 | E151: 580.5
A152: 160 | B152: GATA3抗体试剂（免疫组织化学） | C152: 2mL/盒 | D152: 基因科技 | E152: 785.7
A153: 161 | B153: Hepatocyte抗体试剂（免疫组织化学） | C153: 2mL/盒 | D153: 基因科技 | E153: 910.8
A154: 162 | B154: LMO2抗体试剂（免疫组织化学） | C154: 2mL/盒 | D154: 基因科技 | E154: 747.9
A155: 163 | B155: Mammaglobin抗体试剂（免疫组织化学） | C155: 2mL/盒 | D155: 基因科技 | E155: 754.2
A156: 164 | B156: MUC2抗体试剂（免疫组织化学） | C156: 2mL/盒 | D156: 基因科技 | E156: 398.7
A157: 165 | B157: Myo D1抗体试剂（免疫组织化学） | C157: 2mL/盒 | D157: 基因科技 | E157: 421.2
A158: 166 | B158: Oct2抗体试剂（免疫组织化学） | C158: 2mL/盒 | D158: 基因科技 | E158: 1160.1
A159: 167 | B159: Oct4抗体试剂（免疫组织化学） | C159: 2mL/盒 | D159: 基因科技 | E159: 1208.7
A160: 168 | B160: Oligo-2抗体试剂（免疫组织化学） | C160: 2mL/盒 | D160: 基因科技 | E160: 910.8
A161: 169 | B161: Pax-2抗体试剂（免疫组织化学） | C161: 2mL/盒 | D161: 基因科技 | E161: 1008.9
A162: 170 | B162: PSA抗体试剂（免疫组织化学） | C162: 2mL/盒 | D162: 基因科技 | E162: 289.8
A163: 171 | B163: S100P抗体试剂（免疫组织化学） | C163: 2mL/盒 | D163: 基因科技 | E163: 2889.9
A164: 172 | B164: SALL4抗体试剂（免疫组织化学） | C164: 2mL/盒 | D164: 基因科技 | E164: 441
A165: 173 | B165: Smooth Muscle Myosin抗体试剂（免疫组织化学） | C165: 2mL/盒 | D165: 基因科技 | E165: 449.1
A166: 174 | B166: TFE3抗体试剂（免疫组织化学） | C166: 2mL/盒 | D166: 基因科技 | E166: 585
A167: 175 | B167: TIA-1抗体试剂（免疫组织化学） | C167: 2mL/盒 | D167: 基因科技 | E167: 842.4
A168: 176 | B168: 细胞角蛋白10抗体试剂（免疫组织化学） | C168: 2mL/盒 | D168: 基因科技 | E168: 244.8
A169: 177 | B169: 细胞角蛋白17抗体试剂（免疫组织化学） | C169: 2mL/盒 | D169: 基因科技 | E169: 808.2
A170: 178 | B170: 细胞角蛋白8抗体试剂（免疫组织化学） | C170: 2mL/盒 | D170: 基因科技 | E170: 387.9
A171: 179 | B171: 细胞角蛋白CAM 5.2抗体试剂（免疫组织化学） | C171: 2mL/盒 | D171: 基因科技 | E171: 1159.2
A172: 180 | B172: 雄激素受体（Androgen Receptor,AR）抗体试剂（免疫组织化学法） | C172: 2mL/盒 | D172: 基因科技 | E172: 1397.7
A173: 181 | B173: 胶质纤维酸性蛋白（Glial Fibrillary Acidic Protein，GFAP）抗体试剂（免疫组织化学） | C173: 2mL/盒 | D173: 基因科技 | E173: 401.4
A174: 182 | B174: Glypican 3抗体试剂（免疫组织化学） | C174: 2mL/盒 | D174: 基因科技 | E174: 603
A175: 183 | B175: INI-1抗体试剂（免疫组织化学法） | C175: 2mL/盒 | D175: 基因科技 | E175: 756
A176: 184 | B176: Lambda链抗体试剂（免疫组织化学） | C176: 2mL/盒 | D176: 基因科技 | E176: 250.2
A177: 185 | B177: 黑素瘤（Melanoma）抗体试剂（免疫组织化学法） | C177: 2mL/盒 | D177: 基因科技 | E177: 369
A178: 186 | B178: MUC-1抗体试剂（免疫组织化学） | C178: 2mL/盒 | D178: 基因科技 | E178: 421.2
A179: 187 | B179: 4型黏蛋白（MUC-4）抗体试剂（免疫组织化学法） | C179: 2mL/盒 | D179: 基因科技 | E179: 1480.5
A180: 188 | B180: MUC6抗体试剂（免疫组织化学） | C180: 2mL/盒 | D180: 基因科技 | E180: 416.7
A181: 189 | B181: 肌浆蛋白（Myogenin）抗体试剂（免疫组织化学法） | C181: 2mL/盒 | D181: 基因科技 | E181: 364.5
A182: 190 | B182: Nestin抗体试剂（免疫组织化学） | C182: 2mL/盒 | D182: 基因科技 | E182: 1242
A183: 191 | B183: SOX-10抗体试剂（免疫组织化学法） | C183: 2mL/盒 | D183: 基因科技 | E183: 1005.3
A184: 192 | B184: STAT6抗体试剂（免疫组织化学法） | C184: 2mL/盒 | D184: 基因科技 | E184: 934.2
A185: 193 | B185: HER-2抗体试剂（免疫组织化学） | C185: 7ml/支 | D185: 基因科技 | E185: 1057.5
A186: 194 | B186: 无水乙醇 | C186: 500ml | D186: 烟台精细化工 | E186: 9
A187: 195 | B187: 95%乙醇 | C187: 2.5L | D187: 烟台精细化工 | E187: 49.5
A188: 196 | B188: 甲醛 | C188: 500ml | D188: 烟台精细化工 | E188: 7.2
A189: 197 | B189: 二甲苯 | C189: 500ml | D189: 烟台精细化工 | E189: 10.8
A190: 198 | B190: 甲醇 | C190: 500ml | D190: 烟台精细化工 | E190: 7.2
A191: 199 | B191: 异丙醇 | C191: 500ml | D191: 烟台精细化工 | E191: 13.5
A192: 200 | B192: 丙三醇（甘油） | C192: 500ml | D192: 烟台精细化工 | E192: 12.6
A193: 201 | B193: 草酸 | C193: 500ml | D193: 烟台精细化工 | E193: 10.8
A194: 202 | B194: 冰醋酸 | C194: 500ml | D194: 烟台精细化工 | E194: 9
A195: 203 | B195: 氢氧化钠 | C195: 500g | D195: 烟台精细化工 | E195: 9
A196: 204 | B196: 人乳头瘤病毒核酸分型检测试剂盒（流式荧光杂交法） | C196: 48T | D196: 港龙生物科技（深圳）有限公司 | E196: 117
A197: 205 | B197: 孕激素受体抗体试剂（免疫组织化学） | C197: 70次测试/盒 | D197: 基因科技 | E197: 2264.4
A198: 206 | B198: 雌激素受体抗体试剂（免疫组织化学） | C198: 40次测试/盒 | D198: 基因科技 | E198: 2673.9

Sheet 骨科内固定（鸿运）
B1: 骨科内固定产品目录
A2: 序号 | B2: 名称 | C2: 规格型号 | D2: 单位 | E2: 生产企业 | F2: 单价
A3: 1 | B3: 加压锁定接骨板-1（下肢）/加压锁定接骨板-2（下肢） | C3: 2-24孔 | D3: 块 | E3: 山东威高骨科材料股份有限公司 | F3: 917.27
A4: 2 | B4: 股骨近端外侧加压锁定板-1 | C4: 左右2孔 | D4: 块 | E4: 山东威高骨科材料股份有限公司 | F4: 917.27
A5: 3 | B5: 股骨近端外侧加压锁定板-3 | C5: 左右2-19孔 | D5: 块 | E5: 山东威高骨科材料股份有限公司 | F5: 917.27
A6: 4 | B6: 股骨远端外侧加压锁定板-1/股骨内端外侧加压锁定板-1 | C6: 左右2-19孔 | D6: 块 | E6: 山东威高骨科材料股份有限公司 | F6: 917.27
A7: 5 | B7: 胫骨近端加压锁定板（低弯度） 胫骨近端外侧加压锁定板 胫骨近端外侧加压锁定板-2 | C7: 左右2-19孔 | D7: 块 | E7: 山东威高骨科材料股份有限公司 | F7: 943
A8: 6 | B8: 胫骨近端内侧加压锁定板-2 | C8: 左右2-19孔 | D8: 块 | E8: 山东威高骨科材料股份有限公司 | F8: 943
A9: 7 | B9: 胫骨近端后内侧加压锁定板 | C9: 2-19孔 | D9: 块 | E9: 山东威高骨科材料股份有限公司 | F9: 943
A10: 8 | B10: 胫骨远端外侧加压锁定板-1 | C10: 左右2-19孔 | D10: 块 | E10: 山东威高骨科材料股份有限公司 | F10: 943
A11: 9 | B11: 胫骨远端前外侧加压锁定板 | C11: 左右2-19孔 | D11: 块 | E11: 山东威高骨科材料股份有限公司 | F11: 943
A12: 10 | B12: 胫骨远端内侧加压锁定板-1/胫骨远端内侧加压锁定板-2 | C12: 左右2-19孔 | D12: 块 | E12: 山东威高骨科材料股份有限公司 | F12: 943
A13: 11 | B13: 腓骨远端外侧加压锁定板-1/腓骨远端外侧加压锁定板-2/腓骨远端外侧加压锁定板-3 | C13: 左右3-12孔 | D13: 块 | E13: 山东威高骨科材料股份有限公司 | F13: 841.31
A14: 12 | B14: 腓骨远端外侧钢板-2 | C14: 左右2-16孔 | D14: 块 | E14: 山东威高骨科材料股份有限公司 | F14: 841.31
A15: 13 | B15: 加压锁定接骨板-1（上肢）/加压锁定接骨板-2（上肢） | C15: 2-24孔 | D15: 块 | E15: 山东威高骨科材料股份有限公司 | F15: 885.18
A16: 14 | B16: 干骺端加压锁定板-1 | C16: 3-19孔 | D16: 块 | E16: 山东威高骨科材料股份有限公司 | F16: 917.27
A17: 15 | B17: 锁骨锁定板 锁骨加压锁定板-3 锁骨加压锁定板-2 锁骨钩加压锁定板 | C17: 左右2-15孔 | D17: 块 | E17: 山东威高骨科材料股份有限公司 | F17: 841.31
A18: 16 | B18: 跟骨钢板-1 跟骨钢板-2 跟骨钢板-3 | C18: GC1Z06 | D18: 块 | E18: 山东威高骨科材料股份有限公司 | F18: 864.88
A19: 17 | B19: 跟骨锁定板-3跟骨锁定板-4 | C19: 左右大中小 | D19: 块 | E19: 山东威高骨科材料股份有限公司 | F19: 864.88
A20: 18 | B20: 肱骨近端加压锁定板-2 肱骨近端加压锁定板-3 肱骨近端加压锁定板-4 | C20: 2-19孔 | D20: 块 | E20: 山东威高骨科材料股份有限公司 | F20: 895.26
A21: 19 | B21: 肱骨远端内侧加压锁定板-2肱骨远端背外侧加压锁定板-2 肱骨远端亚髁锁定板 | C21: 左右3-15孔 | D21: 块 | E21: 山东威高骨科材料股份有限公司 | F21: 895.26
A22: 20 | B22: 尺骨近端背侧加压锁定板 尺骨近端背侧加压锁定板-2 | C22: 左右2-18孔 | D22: 块 | E22: 山东威高骨科材料股份有限公司 | F22: 937.62
A23: 21 | B23: J型锁定重建板 髋臼锁定板-1 髋臼锁定板-2 | C23: 2-24孔 | D23: 块 | E23: 山东威高骨科材料股份有限公司 | F23: 949.88
A24: 22 | B24: 弯型锁定重建板3.5/锁定重建板3.5 | C24: 2-24孔 | D24: 块 | E24: 山东威高骨科材料股份有限公司 | F24: 949.88
A25: 23 | B25: 微型骨髁加压锁定板 微型加压锁定板 小T型加压锁定板小T型加压锁定重建板 小Y型加压锁定重建板 微型骨髁锁定板 | C25: 左右2-18孔 | D25: 块 | E25: 山东威高骨科材料股份有限公司 | F25: 885.18
A26: 24 | B26: L型加压锁定板-1 | C26: 2-10孔 | D26: 块 | E26: 山东威高骨科材料股份有限公司 | F26: 885.18
A27: 25 | B27: 胫骨近端加压锁定板-1 | C27: 2-19孔 | D27: 块 | E27: 山东威高骨科材料股份有限公司 | F27: 943
A28: 26 | B28: 股骨远端外侧万向锁定板-1 | C28: 左右2-19孔 | D28: 块 | E28: 山东威高骨科材料股份有限公司 | F28: 917.27
A29: 27 | B29: 股骨近端外侧万向加压锁定板-1 | C29: 左右2-19孔 | D29: 块 | E29: 山东威高骨科材料股份有限公司 | F29: 917.27
A30: 28 | B30: 带针索钉/ 无针缆索/ 单头弯针缆索 | C30: 1.3/1.7 | D30: 根 | E30: 山东威高骨科材料股份有限公司 | F30: 2375
A31: 29 | B31: 肱骨远端背外侧万向加压锁定板-1 肱骨远端内侧万向加压锁定板-2 | C31: 左右2-15孔 | D31: 块 | E31: 山东威高骨科材料股份有限公司 | F31: 895.26
A32: 30 | B32: 斜T型万向加压锁定板-1 桡骨远端背侧T型万向加压锁定板 桡骨远端掌侧双柱万向加压锁定板-1桡骨远端掌侧双柱万向加压锁定板-2桡骨远端掌侧缘万向加压锁定板-2 | C32: 左右2-10孔 | D32: 块 | E32: 山东威高骨科材料股份有限公司 | F32: 892.31
A33: 31 | B33: 锁骨万向锁定板/锁骨钩万向加压锁定板/ | C33: 左右2-15孔 | D33: 块 | E33: 山东威高骨科材料股份有限公司 | F33: 841.31
A34: 32 | B34: 肱骨近端万向加压锁定板-2 | C34: 2-15孔 | D34: 块 | E34: 山东威高骨科材料股份有限公司 | F34: 895.26
A35: 33 | B35: 万向加压锁定接骨板-2（上肢） 万向加压锁定接骨板-1（上肢） | C35: 2-24孔 | D35: 块 | E35: 山东威高骨科材料股份有限公司 | F35: 895.26
A36: 34 | B36: 尺骨近端背侧万向加压锁定板-2 | C36: 2-18孔 | D36: 块 | E36: 山东威高骨科材料股份有限公司 | F36: 937.62
A37: 35 | B37: 万向加压锁定重建板（上肢） 万向加压锁定重建板（下肢） 弯型万向锁定重建板-1 | C37: 2-24孔 | D37: 块 | E37: 山东威高骨科材料股份有限公司 | F37: 885.18
A38: 36 | B38: 股骨近端外侧万向加压锁定板-1 | C38: 2-19孔 | D38: 块 | E38: 山东威高骨科材料股份有限公司 | F38: 917.27
A39: 37 | B39: 万向加压锁定接骨板-1（下肢） 股骨干万向加压锁定板-1 | C39: 2-24孔 | D39: 块 | E39: 山东威高骨科材料股份有限公司 | F39: 943
A40: 38 | B40: 股骨远端外侧万向锁定板-1 | C40: 2-19孔 | D40: 块 | E40: 山东威高骨科材料股份有限公司 | F40: 917.27
A41: 39 | B41: 胫骨近端内侧万向加压锁定板-1 胫骨近端外侧万向加压锁定板-3 T型万向加压锁定板-2 L型万向加压锁定板 | C41: 2-21孔 | D41: 块 | E41: 山东威高骨科材料股份有限公司 | F41: 943
A42: 40 | B42: 胫骨远端内侧万向加压锁定板-1 胫骨远端前外侧万向加压锁定板 | C42: 左右2-21孔 | D42: 块 | E42: 山东威高骨科材料股份有限公司 | F42: 943
A43: 41 | B43: 腓骨远端外侧万向锁定板 | C43: 左右2-12孔 | D43: 块 | E43: 山东威高骨科材料股份有限公司 | F43: 841.31
A44: 42 | B44: 跟骨万向锁定板-1 | C44: 左右 | D44: 块 | E44: 山东威高骨科材料股份有限公司 | F44: 864.88
A45: 44 | B45: 拉力螺钉 | C45: 60-130 | D45: 枚 | E45: 山东威高骨科材料股份有限公司 | F45: 0
A46: 45 | B46: 自攻型锁定螺钉/自攻型万向锁定螺钉/ 平头自攻型锁定螺钉 | C46: 1.5-6.5 | D46: 枚 | E46: 山东威高骨科材料股份有限公司 | F46: 0
A47: 46 | B47: 直型复位钢板 | C47: 5-22孔 | D47: 块 | E47: 山东威高骨科材料股份有限公司 | F47: 376.45
A48: 47 | B48: 1/3管形钢板 | C48: 4-10孔 | D48: 块 | E48: 山东威高骨科材料股份有限公司 | F48: 357.14
A49: 48 | B49: 尺骨、桡骨钢板 | C49: 4-12孔 | D49: 块 | E49: 山东威高骨科材料股份有限公司 | F49: 343
A50: 49 | B50: 桡骨远端背侧T型加压锁定板/ 桡骨远端掌侧T型加压锁定板/ 桡骨远端掌侧锁定板-标准 | C50: 2-18孔 | D50: 块 | E50: 山东威高骨科材料股份有限公司 | F50: 892.31
A51: 50 | B51: 自攻型锥形头锁定螺钉/ 自攻型锥形头锁定螺钉/ 自攻型锥形头锁定螺钉/ 自攻型锥形头锁定螺钉 | C51: 1.5-5.0 | D51: 枚 | E51: 山东威高骨科材料股份有限公司 | F51: 0
A52: 51 | B52: 金属接骨螺钉 | C52: 1.5-4.5 | D52: 枚 | E52: 山东威高骨科材料股份有限公司 | F52: 11.31
A53: 52 | B53: 金属接骨螺钉 | C53: 3.0-6.5 | D53: 枚 | E53: 山东威高骨科材料股份有限公司 | F53: 17.05
A54: 53 | B54: 股骨髓内钉/ 股骨逆行髓内钉 | C54: 8--14 | D54: 枚 | E54: 山东威高骨科材料股份有限公司 | F54: 1271.68
A55: 54 | B55: 标准型胫骨髓内钉 低弯度胫骨髓内钉 | C55: 8--11 | D55: 枚 | E55: 山东威高骨科材料股份有限公司 | F55: 1162.39
A56: 55 | B56: 骨螺钉 | C56: 4.5-6.5 | D56: 枚 | E56: 山东威高骨科材料股份有限公司 | F56: 50
A57: 56 | B57: 股骨髓内钉 | C57: 9--14 | D57: 枚 | E57: 山东威高骨科材料股份有限公司 | F57: 1271.68
A58: 57 | B58: 拉力螺钉 | C58: 60-130 | D58: 枚 | E58: 山东威高骨科材料股份有限公司 | F58: 0
A59: 58 | B59: 拉力螺钉 | C59: 60-130 | D59: 枚 | E59: 山东威高骨科材料股份有限公司 | F59: 0
A60: 59 | B60: 股骨髓内钉 | C60: 9--14 | D60: 枚 | E60: 山东威高骨科材料股份有限公司 | F60: 1271.68
A61: 60 | B61: 拉力螺钉 | C61: 60-130 | D61: 枚 | E61: 山东威高骨科材料股份有限公司 | F61: 0
A62: 61 | B62: 球头中空螺钉/ 埋头中空螺钉 / 自攻型中空锁定螺钉/拉力螺钉 | C62: 2.4-7.3 | D62: 枚 | E62: 山东威高骨科材料股份有限公司 | F62: 124.89
A63: 62 | B63: 自攻型编剧螺纹中空螺钉 | C63: 3.0-7.0 | D63: 枚 | E63: 山东威高骨科材料股份有限公司 | F63: 124.89
A64: 63 | B64: 聚醚醚酮骨锚钉系统/ 钛合金缝线锚钉 | C64: 2.7-6.5 | D64: 套 | E64: Arthrex(锐适医疗器械上海有限公司） | F64: 3519.75
A65: 64 | B65: H型锁定板 | C65: 2-18孔 | D65: 块 | E65: 山东威高骨科材料股份有限公司 | F65: 841.31
A66: 65 | B66: 一次性使用负压引流护创材料包 | C66: AD-215*5*1 /AD-215*5*1 | D66: 套 | E66: 苏州爱得科技发展股份有限公司 | F66: 1425/1710
A67: 66 | B67: 骨牵引针 | C67: 0.6-4.0 | D67: 枚 | E67: 张家港市富康医械制造有限公司 | F67: 444.12
A68: 67 | B68: 弹性髓内钉 | C68: 1.5-4.0 | D68: 枚 | E68: 山东威高骨科材料股份有限公司 | F68: 454.82
A69: 68 | B69: 单侧一体式外固定支架/ 组合式外固定支架 | C69: 单侧-组合 | D69: 套 | E69: 苏州康腾精密医械有限公司 | F69: 4085/6175/10450/
A70: 69 | B70: 膝可调矫形器 | C70: KO-5041 | D70: 套 | E70: 西安博奥假肢医疗用品开发有限公司 | F70: 1520
A71: 70 | B71: 医用外固定夹板 | C71: F312/415/430/530/545 | D71: 个 | E71: 韩国Prime MedicaI Inc | F71: 94/122/163/200/270
A72: 71 | B72: 医用固定带 | C72: F3/F4/F5 | D72: 个 | E72: 韩国Prime MedicaI Inc | F72: 53/64/70
A73: 72 | B73: 医用诱导骨基质 | C73: 条型、颗粒 | D73: 盒 | E73: 上海骁博科技发展有限公司 | F73: 1615
A74: 73 | B74: 医用诱导骨基质 | C74: 膜片 | D74: 盒 | E74: 上海骁博科技发展有限公司 | F74: 1356.6
A75: 74 | B75: 自固化磷酸钙人工骨 | C75: RB-SK-03G | D75: 盒 | E75: 上海瑞邦生物材料有限公司 | F75: 3135
A76: 75 | B76: 自固化磷酸钙人工骨 | C76: RB-ZS-4G | D76: 盒 | E76: 上海瑞邦生物材料有限公司 | F76: 3135
A77: 76 | B77: 自固化磷酸钙人工骨 | C77: RB-a-SK-2V | D77: 盒 | E77: 上海瑞邦生物材料有限公司 | F77: 6175
A78: 77 | B78: 自固化磷酸钙人工骨 | C78: RB-a-DGB-100D | D78: 盒 | E78: 上海瑞邦生物材料有限公司 | F78: 24700
A79: 78 | B79: 自固化磷酸钙人工骨 | C79: RB-FM-06G | D79: 盒 | E79: 上海瑞邦生物材料有限公司 | F79: 5130
A80: 79 | B80: 椎弓根螺钉 | C80: WGB1Z 4.0；4.5；5.0；5.5；6.0；6.5；7.0；7.5 | D80: 枚 | E80: 山东威高骨科材料股份有限公司 | F80: 432
A81: 80 | B81: SINO万向复位螺钉 | C81: WGB1Z 4.0；4.5；5.0；5.5；6.0；6.5；7.0；7.5 | D81: 枚 | E81: 山东威高骨科材料股份有限公司 | F81: 480
A82: 81 | B82: 颈前路钉板系统（钛合金） | C82: WGB4Z02 | D82: 块 | E82: 山东威高骨科材料股份有限公司 | F82: 3244
A83: 82 | B83: 钢板Ⅵ/钢板Ⅲ/钢板Ⅳ/钢板Ⅴ /钢板Ⅷ/ 钢板Ⅶ | C83: YH013 | D83: 块 | E83: 北京威高亚华人工关节开发有限公司 | F83: 921
A84: 83 | B84: PCF万向螺钉 | C84: WGB1Z-4 | D84: 枚 | E84: 山东威高骨科材料股份有限公司 | F84: 545
A85: 84 | B85: Mispine骨水泥万向螺钉 | C85: WGB1Z-10 | D85: 枚 | E85: 山东威高骨科材料股份有限公司 | F85: 480
A86: 85 | B86: Mispine连接杆/Mispine弧形连接杆 | C86: WGB1Z-10 | D86: 枚 | E86: 山东威高骨科材料股份有限公司 | F86: 101
A87: 86 | B87: SINO连接杆 | C87: WGB1Z-1 | D87: 枚 | E87: 山东威高骨科材料股份有限公司 | F87: 100
A88: 87 | B88: SINO横连杆装配-3 | C88: WGB1Z-1 | D88: 枚 | E88: 山东威高骨科材料股份有限公司 | F88: 52
A89: 88 | B89: 颈椎融合器/ 腰椎融合器-1 | C89: WGB3Z02C1 / WGB3Z12L1 | D89: 枚 | E89: 山东威高骨科材料股份有限公司 | F89: 216/1152
A90: 89 | B90: 螺旋推进器/ 带锁穿刺针 | C90: 201型 | D90: 套 | E90: 山东冠龙医疗用品有限公司 | F90: 469/155
A91: 90 | B91: 扩张矫形器 | C91: ZC06 | D91: 个 | E91: 山东冠龙医疗用品有限公司 | F91: 4275
A92: 91 | B92: 骨填充网袋 | C92: GT-0520/0525/0530 | D92: 盒 | E92: 山东冠龙医疗用品有限公司 | F92: 16815
A93: 94 | B93: Mispine经皮微创万向复位螺钉 | C93: WGB1Z-10 | D93: 枚 | E93: 山东威高骨科材料股份有限公司 | F93: 656
A94: 95 | B94: 椎体间钛笼 | C94: GB3Z01 | D94: 个 | E94: 山东威高骨科材料股份有限公司 | F94: 议价
A95: 96 | B95: 哈罗士架 | C95: BAO-G-HNV0-3 | D95: 套 | E95: 西安博奥假肢医疗用品开发有限公司 | F95: 2826.25
A96: 97 | B96: 锁扣带袢钛板 | C96: AR-1588 | D96: 枚 | E96: Arthrex(锐适医疗器械上海有限公司） | F96: 3837.05
A97: 98 | B97: 聚醚醚酮膝关节韧带固定螺钉 | C97: 23/28/35 | D97: 枚 | E97: Arthrex(锐适医疗器械上海有限公司） | F97: 3990
A98: 100 | B98: 髋臼杯 髋臼杯系统 股骨柄 人工髋关节假体组件 | C98: （121730038-121730046/121732048-121732066） （136528310-136528330/136532310- 136532330/136536310-136536330）/（3L92507~3L92520）（121883744-121881766） | D98: 套 | E98: 强生（上海）医疗器材有限公司 | F98: PP臼杯710、PG臼杯3656/粉陶衬1400/粉陶头1100/股骨柄3946/螺钉450 | G98: 济宁福润德医疗器械有限公司供货
A99: 101 | B99: 髋臼杯 髋臼杯系统 股骨柄 高交联聚乙烯内衬 | C99: （121730038-121730046/121732048-121732066） （136528310-136528330/136532310- 136532330/136536310-136536330）/（3L92507~3L92520）（122128044-122136066） | D99: 套 | E99: 强生（上海）医疗器材有限公司 | F99: PP臼杯710、PG臼杯3656/马拉松内衬1300、AItrx衬4246/粉陶头1100/股骨柄3946/螺钉450 | G99: 济宁福润德医疗器械有限公司供货
A100: 102 | B100: 髋臼杯 金属股骨头 股骨柄 高交联聚乙烯内衬 | C100: （121730038-121730046/121732048-121732066） （52-2030/52-2028/52-2029）/（ 3L92507~3L92520）（122128044-122136066） | D100: 套 | E100: 强生（上海）医疗器材有限公司 | F100: 不做
A101: 103 | B101: （髋臼部件/ 人工髋关节假体-陶瓷球头和内衬/ 人工髋关节假体-陶瓷球头和内衬/ 股骨柄） （内衬-球头-髋关节假体-髋关节假体） | C101: (Apex-I-HA /DeIta Insert /DeIta Head/ Match III-HA) （28-32-36/28-32-36/BB/48型/） | D101: 套 | E101: 北京威高亚华人工关节开发有限公司/ 北京市春立正达医疗器械股份有限公司 | F101: 威高亚华（髋臼杯1179、陶瓷臼衬2445、陶瓷球头1630、股骨柄2036、髋臼螺钉450） 北京春立（全髋臼42型1000、JS型内衬1850、TB型球头1350股骨柄BE3350、钛钉450）
A102: 104 | B102: （髋臼部件/ 髋臼内衬/ 人工髋关节假体-陶瓷球头和内衬/ 股骨柄） （全髋臼-球头-髋关节假体-髋关节假体） | C102: (Apex-I-HA /Freedom+4 /DeIta Head/ Match III-HA) （62-64/28-32-36/BB/48型/） | D102: 套 | E102: 北京威高亚华人工关节开发有限公司/ 北京市春立正达医疗器械股份有限公司 | F102: 威高亚华（髋臼杯1179、高交联内衬1406、陶瓷球头1630、股骨柄2036、髋臼螺钉450）北京春立全髋臼50型350、J髋臼内衬1180、TB型球头1350股骨柄BE1型2100、钛钉450）
A103: 105 | B103: （人工髋关节假体-人工髋关节假体-人工髋关节假体-人工髋关节假体-股骨柄 ） （ 双极头-球头/球头-髋关节假体） | C103: (36MM-56MM /GMH /Match III-HA) (38-56/22-28/BB) | D103: 套 | E103: 北京威高亚华人工关节开发有限公司/ 北京市春立正达医疗器械股份有限公司 | F103: 威高亚华（双极杯3192双极卡环1330、双极内衬2128、/国采-金属球头1541、生物股骨柄2036、无领抛光弯柄1887）北京春立（双极头4750/T型球头4000、TB型球头1350、股骨柄BE3350）
A104: 107 | B104: （人工膝关节- 人工膝关节- 人工膝关节） /（股骨髁-胫骨平台托-胫骨平台垫） | C104: （GKPSII ）/ （XN-宽型 -XN-CLJMC-XN-) | D104: 套 | E104: 北京威高亚华人工关节开发有限公司/ 北京市春立正达医疗器械股份有限公司 | F104: 北京威高亚华（股骨髁708、胫骨托443、胫骨垫1063、髌骨2600） | G104: 春立未中标
A105: 108 | B105: 人工膝关节系统 人工膝关节系统 人工膝关节系统/全膝关节置换系统全膝关节置换系统全膝关节置换系统 | C105: (196040150-196050200 ) (866022-986168)（158100008-158122025)/n (1504-10-101~1504-10-226)(1506-70-001-1506-70-010 )(1516-40-105~1516-41-022) | D105: 套 | E105: 强生（上海）医疗器材有限公司 | F105: Attune股骨髁狭窄型1024、Attune股骨髁3369/ 胫骨托3045/ 胫骨垫片480）（PFC股骨髁3369、PFC*Lg股骨髁1324/PFC*XLK垫片180、PFC胫骨平台3045、PFC髌骨2600 | G105: 济宁福润德医疗器械有限公司供货
A106: 109 | B106: 一次性使用医用脉冲冲洗器 | D106: 盒 | E106: 苏州爱得科技发展股份有限公司 | F106: 450
A107: 110 | B107: 一次性使用皮肤吻合器 | C107: PWH-R/PWH-W | D107: 盒 | E107: 常州贺利氏微创医疗器械有限公司 | F107: 198.55
A108: 111 | B108: 骨水泥 | C108: Palacos R+G/Osteopal plus | D108: 盒 | E108: 德国贺利氏 | F108: 517/623

Sheet 消化内镜（强盛、三宁）
A1: 消化内镜产品目录
A2: 序号 | B2: 产品名称 | C2: 规格型号 | D2: 单位 | E2: 生产企业 | F2: 单价
A3: 1 | B3: 一次性医用垫 | C3: 70cmx80cm | D3: 条 | E3: 新乡市强盛医疗器械有限公司 | F3: 1.8
A4: 2 | B4: 一次性医用垫 | C4: 80cmx150cm | D4: 条 | E4: 新乡市强盛医疗器械有限公司 | F4: 5.22
A5: 3 | B5: 碎石器 | C5: AF-2417DT | D5: 套 | E5: 上海埃尔顿 | F5: 2070
A6: 4 | B6: 碎石器内芯钢丝 | D6: 套 | E6: 上海埃尔顿 | F6: 1200
A7: 5 | B7: 一次性使用中性电极 | C7: PF-1-M | D7: 片 | E7: 上海励图医疗医疗器材有限公司 | F7: 7.65
A8: 6 | B8: 医用咬口 | C8: I-C（胃镜专用 固定型） | D8: 个 | E8: 杭州花冠医疗器械有限公司 | F8: 1.08
A9: 7 | B9: G-1型消毒剂浓度试纸 | C9: 试纸（G-1型） 20本/盒 | D9: 盒 | E9: 北京四环卫生药械厂有限公司 | F9: 97.2
A10: 8 | B10: 一次性使用吸引管 | C10: 外径：9mm±1mm 内径6mm±1mm | D10: 根 | E10: 新乡市强盛医疗器械有限公司 | F10: 2.25
A11: 9 | B11: 可重复使用钳口刷 | C11: MH-507 | D11: 件 | F11: 315
A12: 10 | B12: 可重复使用胃肠镜清洗毛刷 | C12: BW-20T,总长2300mm，带手柄，胃肠通用 | D12: 件 | F12: 315
A13: 11 | B13: 一次性弯盘 | C13: 环氧乙烷灭菌 | D13: 只 | E13: 新乡市强盛医疗器械有限公司 | F13: 0.81
A14: 12 | B14: 一次性使用换药碗 | C14: 方形，环氧乙烷灭菌 | D14: 只 | E14: 新乡市强盛医疗器械有限公司 | F14: 0.72
A15: 13 | B15: 4%中性甲醛固定液（组织固定液） | C15: 经过0.5μm微膜过滤 一次性 | D15: 瓶 | E15: 南昌雨露实验器材有限公司 | F15: 2.16
A16: 14 | B16: 医用器械消毒液 | C16: 3L | D16: 桶 | E16: 北京万金兆元消毒技术有限公司 | F16: 315
A17: 15 | B17: 带涂层一次性使用内窥镜活体取样钳 | C17: MTN-BF-23/16-A-C-2 MTN-BF-23/18-A-C-2 MTN-BF-23/23-A-C-2 MTN-BF-18/12-A-C-1 | D17: 把 | F17: 43
A18: 16 | B18: 一次性使用圈套器 | C18: MTN-PFS-E-36/23 MTN-PFS-E-24/23 MTN-PFS-E-15/18 MTN-PFS-A-28/23 MTN-PFS-A-10/23 MTN-PFS-A-15/23 | D18: 件 | E18: 可旋转 | F18: 159
A19: 17 | B19: 一次性内窥镜用注射针 | C19: IN02-25423230 IN02-25423230-J | D19: 件 | E19: 可用于硬化剂和组织胶注射用 | F19: 230
A20: 18 | B20: 可旋转重复开闭软组织夹 | C20: ROCC-D-26-195 ROCC-D-26-195-C | D20: 件 | F20: 111/185
A21: 19 | B21: 医用胶 | C21: 栓塞型0.5ml/支 | D21: 支 | F21: 893
A22: 20 | B22: 覆硅胶膜食道支架系统 | C22: MTN-SA(SB、SC、SD、SE、SF、SG、SH)-S-14（16、18、20、22）-40（50、60、70、80、90、100、110、120、130、140、150、160）-A-（4-10）-（500-1100） | D22: 套 | E22: 须能与规格为MTN-QF-90/26-B 、 MTN-QF-90/42-B非血管腔道导丝配套使用 | F22: 2380
A23: 21 | B23: 一次性使用异物钳 | C23: MTN-GF-23/23-3 MTN-GF-23/23-3-C-0 | D23: 件 | F23: 255
A24: 22 | B24: 卢戈氏碘液 | C24: 30ml | D24: 瓶 | F24: 64
A25: 23 | B25: 一次性使用清洁刷 | C25: CB18-5050/23-A | D25: 件 | F25: 26
A26: 24 | B26: 医用透明粘膜吸套 | C26: 全规格 | D26: 件 | F26: 128
A27: 25 | B27: 一次性使用内镜喷洒管 | C27: WP-18/1800 | D27: 件 | F27: 102
A28: 26 | B28: 管道开口清洗刷 | C28: MH-507 | D28: 件 | F28: 298

Sheet 口腔科（健航、盛乔、牡丹医药）
A1: 口腔耗材目录
A2: 序号 | B2: 产品名称 | C2: 规格型号 | D2: 单位 | E2: 生产企业 | F2: 单价
A3: 1 | B3: 意大利 B.& B.种植体 | C3: φ 3.5,4.0，4.5，5.0,5.5,6.0,6.5,7.0,长8，10,12,14 | D3: 颗 | E3: 意大利 B.& B.齿科公司 | F3: 973
A4: 2 | B4: 意大利 B.& B.钛基台 | C4: φ 4 - 0° H. 1；φ 4 - 0° H. 2；φ 4 - 0° H. 3；φ 4.0- 0° H. 4；φ 4.0- 0° H. 5；φ 4.0- 0° H. 6；φ 5 - 0°H. 1；φ 5 - 0°H. 2；φ 5 - 0°H. 3；φ 5 - 0°H. 4；φ 5 - 0°H. 5；φ 5 - 0°H. 6；φ 6 - 0°H. 1；φ 6 - 0°H. 2；φ 6 - 0°H. 3；φ 6 - 0°H. 4 | D4: 颗 | E4: 意大利 B.& B.齿科公司 | F4: 160
A5: 3 | B5: 意大利 B.& B.替代体 | C5: INN-00585、3D00585 | D5: 颗 | E5: 意大利 B.& B.齿科公司 | F5: 6
A6: 4 | B6: 意大利 B.& B.愈合基台 | C6: φ 5.0,H.1；φ 5.0,H.2；φ 5.0,H.3；φ 5.0,H.5；φ 5.0,H.7；φ 6.0,H.1；φ 6.0,H.2；φ 6.0,H.3；φ 6.0,H.5；φ 6.0,H.7 | D6: 颗 | E6: 意大利 B.& B.齿科公司 | F6: 8
A7: 8 | B7: 意大利 B.& B.钛基台 | C7: φ 5 - 15°H. 1；φ 5 - 15°H. 2；φ 5 - 15°H. 3；φ 5 - 15°H. 4；φ 5 - 25°H. 1；φ 5 - 25°H. 2；φ 5 - 25°H. 3；φ 5 - 25°H. 4；φ 6 - 15°H. 1；φ 6 - 15°H. 3；φ 6 - 25°H. 1；φ 6 - 25°H. 2；φ 6 - 25°H. 2；φ 6 - 25°H. 3φ 4 - 15° H. 1；φ 4 - 15° H. 2；φ 4 - 15° H. 3；φ 4.0- 15° H. 4；φ 4.0- 15° H. 5；φ 4.0- 15° H. 6；φ 4 - 25° H. 1；φ 4 - 25° H. 2；φ 4 - 25° H. 3；φ 4.0- 25° H. 4；φ 4.0- 25° H. 5；φ 4.0- 25° H. 6；φ 2.3，H. 1；φ 2.3 , H. 2；φ 2.3，H. 3；φ 2.3，H. 3；φ 2.3，H. 4；φ 2.3，H. 5；φ 2.3，H. 6 | D7: 颗 | E7: 意大利 B.& B.齿科公司 | F7: 160
A8: 9 | B8: 意大利 B.& B.钛基台 | C8: φ 4 - 15° H. 1；φ 4 - 15° H. 2；φ 4 - 15° H. 3；φ 4.0- 15° H. 4；φ 4.0- 15° H. 5；φ 4.0- 15° H. 6；φ 4 - 25° H. 1；φ 4 - 25° H. 2；φ 4 - 25° H. 3；φ 4.0- 25° H. 4；φ 4.0- 25° H. 5；φ 4.0- 25° H. 6； | D8: 颗 | E8: 意大利 B.& B.齿科公司 | F8: 160
A9: 10 | B9: 意大利 B.& B.转移杆套装 | C9: INN-00506、INN-00506L | D9: 套 | E9: 意大利 B.& B.齿科公司 | F9: 16
A10: 12 | B10: 牙科种植系统 （愈合基台） | C10: 024.2222S 024.2226S 024.2236S 024.2242S 024.2244S 024.2246S 024.4222S 024.4224S 024.4226S 024.4234S 024.4236S 024.4242S 024.4244S 024.4246S 024.2270S 024.4270S 024.0000S 024.0001S 024.0002S 024.0003S 024.0004S 024.0005S | D10: 套 | E10: 瑞士 Institut Straumann AG | F10: 70
A11: 13 | B11: 牙科种植系统 （愈合帽） | C11: 024.0000S 024.0001S 024.0002S 024.0003S 024.0004S 024.0005S | D11: 套 | E11: 瑞士 Institut Straumann AG | F11: 70
A12: 14 | B12: 牙科种植系统（愈合基台） | C12: 愈合基台NC, 圆锥形, 直径 3.6mm, 高 3.5mm，无菌装024.2224S 024.2234S | D12: 套 | E12: 瑞士 Institut Straumann AG | F12: 70
A13: 15 | B13: 替代体 | C13: 种植体水平，RC，L 12mm 种植体水平，可复位，RC 025.4101 025.4102 | D13: 套 | E13: 瑞士 Institut Straumann AG | F13: 99
A14: 16 | B14: 取模部件 | C14: 转移杆 025.4205 025.4201 025.4202 025.2205 025.2201 025.2202 | D14: 套 | E14: 瑞士 Institut Straumann AG | F14: 100
A15: 17 | B15: 牙科种植系统 | C15: 粘结固位/直基台 022.2311 022.2312 022.2313 022.2315 022.2316 022.2317 022.2321 022.2322 022.2323 022.2325 022.2326 022.2327 022.4321 022.4322 022.4323 022.4325 022.4326 022.4327 022.4331 022.4332 022.4333 022.4335 022.4336 022.4337 022.2102 022.2104 022.2152 022.2154 022.4102 022.4104 022.4152 022.4154 022.2202 | D15: 套 | E15: 瑞士 Institut Straumann AG | F15: 288
A16: 18 | B16: 牙科种植系统 | C16: 骨水平种植体 SLA 乐新型携带体 021.2608 021.2610 021.2612 021.2614 | D16: 套 | E16: 瑞士 Institut Straumann AG | F16: 1298
A17: 19 | B17: 牙科种植系统 | C17: 骨水平锥柱状种植体 SLA 乐新型携带体 021.3408 021.3410 021.3412 021.3414 021.3416 | D17: 套 | E17: 瑞士 Institut Straumann AG | F17: 1298
A18: 20 | B18: 牙科种植系统 | C18: 骨水平种植体 SLA 乐新型携带体 021.4608 021.4610 021.4612 021.4614 021.6608 021.6610 021.6612 021.6614 | D18: 套 | E18: 瑞士 Institut Straumann AG | F18: 1298
A19: 21 | B19: 人工牙种植体 | C19: Roxolid SLActive 骨水平锥柱状种植体 021.3308 021.5316 021.5314 021.5310 021.7316 021.7314 021.7310 021.3310 021.7308 021.5312 021.5308 021.3316 021.3312 021.3314 | D19: 套 | E19: 瑞士 Institut Straumann AG | F19: 3950
A20: 22 | B20: 人工牙种植体_Roxolid | C20: 牙种植体/内连接 021.2310 021.2312 021.4310 021.4312 021.6310 021.6312 021.2308 021.4308 021.6308 021.2314 021.4314 021.6314 021.3318 021.5318 021.7318 | D20: 套 | E20: 瑞士 Institut Straumann AG | F20: 4300
A21: 22 | B21: 韩国SG种植体 | C21: SFSN3809、SFSN3811、SFSN3813、SFSR4307、SFSR4309、SFSR4311、SFSR4313、SFSW5007、SFSW5009、SFSW5011、SFSW5013 | D21: 颗 | E21: 韩国新世纪医疗技术有限公司 | F21: 280
A22: 25 | B22: 韩国SG愈合基台 | C22: SHAN4515、SHAN4525、SHAN4535、SHAN4545、SHAN4555、SHAR5020、SHAR5030、SHAR5050、SHAR5515、SHAR5525、SHAR5535、SHAR5545、SHAR5555、SHAW6515、SHAW6525、SHAW6535、SHAW6545、SHAW6555、SHAW7515、SHAW7525、SHAW7535、SHAW7545、SHAW7555 | D22: 颗 | E22: 韩国新世纪医疗技术有限公司 | F22: 60
A23: 26 | B23: 韩国SG转移杆 | C23: SITN45HS、SITN45HL、SITR55HS、SITR55HL、SITW65HS、SITW65HL | D23: 颗 | E23: 韩国新世纪医疗技术有限公司 | F23: 80
A24: 27 | B24: 韩国SG替代体 | C24: SLFR001 | D24: 颗 | E24: 韩国新世纪医疗技术有限公司 | F24: 50
A25: 28 | B25: 口腔可吸收生物膜 | C25: OABM-4030 | D25: 盒 | E25: 陕西瑞盛生物科技有限公司 | F25: 3312
A26: 29 | B26: 口腔可吸收生物膜 | C26: OABM-3020 | D26: 盒 | E26: 陕西瑞盛生物科技有限公司 | F26: 1840
A27: 30 | B27: 口腔可吸收生物膜 | C27: OABM-2015 | D27: 盒 | E27: 陕西瑞盛生物科技有限公司 | F27: 1104
A28: 31 | B28: 骼瑞天然煅烧骨修复材料 | C28: CBB-G5-C 0.25g | D28: 盒 | E28: 陕西瑞盛生物科技有限公司 | F28: 639.4
A29: 32 | B29: 骼瑞天然煅烧骨修复材料 | C29: CBB-G5-C 0.5g | D29: 盒 | E29: 陕西瑞盛生物科技有限公司 | F29: 1242
A30: 33 | B30: 以色列科特斯种植体 | C30: BCSD-0838、BCSD-1038、BCSD-1138、BCSD-1338、BCSD-1638、BCSD-1042、BCSD-1142、BCSD-1342、BCSD-1642、BCSD-0842、BCSD-0850、BCSD-1050、BCSD-1150、BCSD-1350、BCSD-0860、BCSD-1060、BCSD-1160、BCSD-1360、BCSD-1033、BCSD-1133、BCSD-1333、BCSD-1633、BCSC-0838、BCSC-1038、BCSC-1138、BCSC-1338、BCSC-1638、BCSC-0842、BCSC-1042、BCSC-1142、BCSC-1342、BCSC-1642、BCSC-0850、BCSC-1050、BCSC-1150、BCSC-1350、BCSC-0860、BCSC-1060、BCSC-1160、BCSC-1360、BCSC-1033、BCSC-1133、BCSC-1333、BCSC-1633 | D30: 1套/盒 | E30: 以色列 Cortex Dental Implants Industries Limited | F30: 475
A31: 34 | B31: 以色列科特斯钛基台 | C31: CO-8000、CO-8100、CO-8111、CO-8112、CO-8113、CO-8114、CO-8028、CO-8029、CO-8031、CO-8037、CO-8200、CO-9001、CO-9002、CO-9003、CO-9004 | D31: 1个/包 | E31: 以色列 Cortex Dental Implants Industries Limited | F31: 123
A32: 35 | B32: 以色列科特斯愈合帽 | C32: CO-7102、CO-7104、CO-7105、CO-7106、CO-7107、CO-7503、CO-7504、CO-7505、CO-7506、CO-8102、CO-8103、CO-8104、CO-8105、CO-8106、CO-8107 | D32: 1个/包 | E32: 以色列 Cortex Dental Implants Industries Limited | F32: 27
A33: 37 | B33: 以色列科特斯转移杆 | C33: CO-8050、CO-8055、CO-8060、CO-8065、CO-8070、CO-8080、CO-8071、CO-8072、CO-8075、CO-8085 | D33: 1个/包 | E33: 以色列 Cortex Dental Implants Industries Limited | F33: 88
A34: 38 | B34: 以色列科特斯替代体 | C34: CO-8040 | D34: 1个/包 | E34: 以色列 Cortex Dental Implants Industries Limited | F34: 37
A35: 48 | B35: 同种异体骨修复材料 | C35: 松质皮质混合骨颗粒状S号0.5g（0.25-1mm） | D35: 1包/盒 | E35: 北京科健生物技术有限公司 | F35: 833.28
A36: 49 | B36: 同种异体骨修复材料 | C36: 松质皮质混合骨颗粒状S号0.25g（0.25-1mm） | D36: 1包/盒 | E36: 北京科健生物技术有限公司 | F36: 558
A37: 50 | B37: 胶原基骨修复材料 | C37: 15*20mm | D37: 1个/盒 | E37: 天津市赛宁生物工程技术有限公司 | F37: 595.2
A38: 51 | B38: 胶原基骨修复材料 | C38: 20*25mm | D38: 1个/盒 | E38: 天津市赛宁生物工程技术有限公司 | F38: 1162.5
A39: 52 | B39: 比塔派克斯 | C39: 2g | D39: 支 | E39: 上海思创医疗器械有限公司 | F39: 294
A40: 53 | B40: 牙釉质粘合树脂 | C40: 绿胶 | D40: 盒 | E40: 杭州西湖生物材料有限公司 | F40: 117.6
A41: 54 | B41: 牙釉质粘合树脂 | C41: 蓝胶 | D41: 盒 | E41: 杭州西湖生物材料有限公司 | F41: 117.6
A42: 55 | B42: 一次性牙科注射针 | C42: 0.3*21mm | D42: 盒 | E42: 韩国珠式会社新兴上海代表处 | F42: 78.4
A43: 56 | B43: 玻璃离子水门汀CX（粘结） | C43: CX | D43: 盒 | E43: 株式会社松风 | F43: 352.8
A44: 57 | B44: 纤维根管桩修复系统 | D44: 盒 | E44: 明尼苏达矿业制造（上海）国际贸易有限公司） | F44: 735
A45: 58 | B45: 氧化锌丁香酚水门汀 | C45: Ⅲ型 | D45: 盒 | E45: 上海新世纪齿科材料有限公司 | F45: 9.8
A46: 59 | B46: 高速车针 | C46: GW557SL | D46: 支 | E46: 宁波信远齿科器械有限公司 | F46: 39.2
A47: 60 | B47: 高速车针 | C47: RA | D47: 支 | E47: 宁波信远齿科器械有限公司 | F47: 10.78
A48: 61 | B48: 高速车针 | C48: FG | D48: 支 | E48: 宁波信远齿科器械有限公司 | F48: 8.82
A49: 62 | B49: 钨钢车针 | D49: 支 | E49: 浙江瑞安 | F49: 9.8
A50: 63 | B50: 正畸拍照拉钩 | D50: 个 | E50: 天津瑞尔德源医用生物材料有限公司 | F50: 6.86
A51: 64 | B51: 口腔正畸用反光镜 | D51: 片 | E51: 长沙市天天齿科器材有限公司 | F51: 235.2
A52: 65 | B52: 开口器 | C52: (各规格） | D52: 个 | E52: 天津瑞尔德源医用生物材料有限公司 | F52: 2.94
A53: 66 | B53: 机用根管锉 | D53: 板 | E53: 济宁德卡医疗器械有限公司 | F53: 215.6
A54: 67 | B54: 根管锉 | C54: D型 | D54: 盒 | E54: 马尼株式会社 | F54: 76.44
A55: 68 | B55: 窝沟封闭剂 | C55: 1.2ml | D55: 支 | E55: 明尼苏达矿业制造（上海）国际贸易有限公司 | F55: 156.8
A56: 69 | B56: 窝沟封闭剂 | C56: 2g | D56: 支 | E56: 吉林省登泰克牙科材料有限公司 | F56: 68.6
A57: 70 | B57: 弹性体印膜材料 | C57: 0型3型 | D57: 套 | E57: 山东沪鸽口腔材料股份有限公司 | F57: 254.8
A58: 71 | B58: 瓷贴面套装 | C58: HX-1 | D58: 套 | E58: 福州海象医疗器械有限公司 | F58: 176.4
A59: 72 | B59: 瓷嵌体套装 | C59: HX-2 | D59: 套 | E59: 福州海象医疗器械有限公司 | F59: 117.6
A60: 73 | B60: 正畸基础套装 | C60: HX-5 | D60: 套 | E60: 福州海象医疗器械有限公司 | F60: 117.6
A61: 74 | B61: 拔牙套装 | C61: HX-6 | D61: 套 | E61: 福州海象医疗器械有限公司 | F61: 196
A62: 75 | B62: 光固化玻璃离子水门汀 | C62: 垫基材料 | D62: 盒 | E62: 明尼苏达矿业制造（上海）国际贸易有限公司 | F62: 490
A63: 76 | B63: 矫正器 | D63: 个 | E63: 上海麦欧生物科技有限公司 | F63: 833
A64: 77 | B64: 光固化模型材料 | C64: 50片/盒 | D64: 盒 | E64: 山东沪鸽口腔材料股份有限公司 | F64: 490
A65: 78 | B65: 一次性使用口腔器械盒 | C65: KQH-Ⅲ | D65: 套 | E65: 河北博瑞医疗器械有限责任公司 | F65: 0.98
A66: 79 | B66: 牙科正畸橡皮圈 | C66: 8oz/2oz | D66: 包 | E66: 杭州旭飞医疗器械有限公司 | F66: 4.803
A67: 80 | B67: 牙线 | C67: 50m | D67: 卷 | E67: 石家庄中皓康医疗器械有限公司 | F67: 5.88
A68: 81 | B68: 非丁香酚临时水门汀 | C68: NETC | D68: 盒 | E68: 美塔生物医疗有限公司 | F68: 196
A69: 82 | B69: 临时充填材料 | C69: 40g | D69: 盒 | E69: 美塔生物医疗有限公司 | F69: 53.9
A70: 83 | B70: 钢制机用根管器械 | C70: G钻P钻 | D70: 盒 | E70: 马尼株式会社 | F70: 53.9
A71: 84 | B71: 根管充填器 | C71: 6*1 | D71: 盒 | E71: 马尼株式会社 | F71: 49
A72: 85 | B72: 自酸蚀粘接剂 | C72: 5ml | D72: 瓶 | E72: 吉林省登泰克牙科材料有限公司 | F72: 137.2
A73: 86 | B73: I型抑菌液 | C73: 20ml | D73: 瓶 | E73: 施丹瑞（武汉）生物医药有限公司 | F73: 7.84
A74: 87 | B74: II型抑菌液 | C74: 20ml | D74: 瓶 | E74: 施丹瑞（武汉）生物医药有限公司 | F74: 17.64
A75: 88 | B75: 一次性种植手术包 | C75: 无菌 | D75: 包 | E75: 合肥高贝斯医疗卫生用品有限公司 | F75: 147
A76: 89 | B76: 牙龈冲洗器 | C76: 无菌 | D76: 个 | E76: 圣光医用制品股份有限公司 | F76: 19.6
A77: 90 | B77: 不锈钢带盖方盘 | C77: 210*120*50 | D77: 个 | E77: 潮州顺兴发 | F77: 44.1
A78: 91 | B78: 镊子筒 | C78: 大、中、小 | D78: 个 | E78: 潮州顺兴发 | F78: 34.3
A79: 92 | B79: 牙用尺 | C79: 各型号 | D79: 个 | E79: 天津瑞尔德源医用生物材料有限公司 | F79: 20-100
A80: 93 | B80: 排龈线填塞器 | D80: 把 | E80: 上海伟荣医疗器材有限公司 | F80: 58.8
A81: 94 | B81: 成型片夹 | C81: 1*1 | D81: 个 | E81: 上海伟荣医疗器材有限公司 | F81: 27.44
A82: 95 | B82: i-MTA抑菌剂 | C82: 2g | D82: 支 | E82: 朗力生物医药（武汉）有限公司 | F82: 352.8
A83: 96 | B83: 口内开口器 | D83: 个 | E83: 黄骅市康田医疗器械有限公司 | F83: 2.94
A84: 97 | B84: 楔子 | C84: 大、中、小 | D84: 盒 | E84: 黄骅市康田医疗器械有限公司 | F84: 9.8
A85: 98 | B85: 硅橡胶头 | C85: 50*1 | D85: 包 | E85: 黄骅市康田医疗器械有限公司 | F85: 49
A86: 99 | B86: 硅橡胶修正器 | D86: 把 | E86: 上海伟荣医疗器材有限公司 | F86: 63.7
A87: 100 | B87: 嵌体车针 | C87: 4138＃4137f＃4138f | D87: 套 | E87: 福州海象医疗器械有限公司 | F87: 352.8
A88: 101 | B88: 玻璃离子充填器 | C88: 大、中、小 | D88: 个 | E88: 上海康桥齿科医械厂 | F88: 88.2
A89: 102 | B89: 手机助油 | C89: 300ml | D89: 瓶 | E89: 佛山多易美有限公司 | F89: 259.7
A90: 103 | B90: 手机润滑剂 | C90: 300ml | D90: 瓶 | E90: 佛山多易美有限公司 | F90: 24.5
A91: 104 | B91: 器械保湿剂 | C91: 300ml | D91: 瓶 | E91: 山东新华医疗器械股份有限公司 | F91: 176.4
A92: 105 | B92: 充填器盒 | D92: 个 | E92: 河南顺兴发 | F92: 191.1
A93: 106 | B93: 一次性三用枪 | C93: 200*1 | D93: 盒 | E93: 黄骅市康田医疗器械有限公司 | F93: 63.7
A94: 107 | B94: 软橡皮碗 | D94: 个 | E94: 上海青浦齿科材料厂 | F94: 5.88
A95: 108 | B95: 抛光牙膏 | D95: 支 | E95: 丹东欣时代生物医药科技有限公司 | F95: 19.6
A96: 109 | B96: EDTA | C96: 5ml | D96: 支 | E96: 日进齿科材料（昆山）有限公司 | F96: 68.6
A97: 110 | B97: 调拌刀 | D97: 把 | E97: 上海伟荣医疗器材有限公司 | F97: 14.7
A98: 111 | B98: 儿童机D针 | C98: Fo、Fx、F1、F2 | D98: 套 | E98: 登士柏德特瑞有限责任公司 | F98: 352.8
A99: 112 | B99: 牙科手机拆卸工具 | D99: 套 | F99: 34.3
A100: 113 | B100: 机扩轴承 | D100: 个 | E100: 桂林市啄木鸟医疗器械有限公司 | F100: 40-380
A101: 114 | B101: 次氯酸消毒液 | C101: 5L | D101: 桶 | E101: 广州市贝康生物科技有限公司 | F101: 196
A102: 115 | B102: 边缘整塑蜡 | C102: 1型 | D102: 盒 | E102: 山东沪鸽口腔材料股份有限公司 | F102: 352.8
A103: 116 | B103: 无牙颌托盘 | C103: 大、中、小 | D103: 套 | E103: 上海伟荣医疗器材有限公司 | F103: 29.4
A104: 117 | B104: 面弓 | D104: 个 | E104: 杭州星辰三比齿科器材有限公司 | F104: 750-14000
A105: 118 | B105: 定制式矫治器 | C105: indisalign aligners | D105: 套 | F105: 6000-15000
A106: 119 | B106: 齿科成型片 | C106: 大、中、小 | D106: 包 | F106: 24.5
A107: 120 | B107: 美佳印印模材料 | C107: 蓝色 | D107: 支 | E107: 黄骅市康田医疗器械有限公司 | F107: 156.8
A108: 121 | B108: ADHESIVE(做全口用） | D108: 个
A109: 122 | B109: 3MESPE(树脂黑管） | C109: 4g/支 | D109: 支 | E109: 3M美国口腔护理修复产品公司 | F109: 68.6
A110: 123 | B110: VDW先锋锉 | D110: 板 | E110: WDW | F110: 78.4
A111: 124 | B111: 粘嵌体吸附棒 | C111: 10支/板 | D111: 板 | E111: 黄骅市康田医疗器械有限公司 | F111: 29.4
A112: 125 | B112: 正畸进口BT头 | D112: 个 | E112: 台湾 | F112: 372.4
A113: 126 | B113: IROOT(SP)(BP) | D113: 支 | E113: 创新生物陶瓷有限公司 | F113: 1274
A114: 127 | B114: 齿科凝胶 | C114: 10ml/支 | D114: 支 | E114: 登士柏德特瑞有限责任公司 | F114: 392
A115: 128 | B115: 儿童机扩针 | C115: 6*1 | D115: 板 | E115: 登士柏德特瑞有限责任公司 | F115: 352.8
A116: 129 | B116: 眼科剪 | C116: 直，弯 | D116: 把 | E116: 上海康桥齿科医械厂 | F116: 44.1
A117: 130 | B117: 美学修复树脂 | C117: 642981AN | D117: 套 | E117: 义获嘉伟瓦登特（上海）商贸有限公司 | F117: 4214
A118: 131 | B118: 一次性强吸 | D118: 个 | E118: 黄骅市康田医疗器械有限公司 | F118: 4.9
A119: 132 | B119: 牙科树脂修正器套装 | C119: 5*1 | D119: 套 | E119: 上海伟荣医疗器材有限公司 | F119: 833
A120: 133 | B120: 前方牵引装置 | C120: 全可调 | D120: 套 | E120: 杭州星辰三比齿科器材有限公司 | F120: 117.6
A121: 134 | B121: 义齿基托聚合物 | C121: 8S | D121: 袋 | E121: 上海贝琼齿材有限公司 | F121: 19.6
A122: 135 | B122: 光滑针 | C122: 0# 00# 000#，12支/板 | D122: 板 | E122: 马尼株式会社 | F122: 22.54
A123: 136 | B123: 一次性口镜 | C123: 50*1 | D123: 袋 | E123: 河北博瑞医疗器械有限公司 | F123: 17.64
A124: 137 | B124: 氢氧化钙 | C124: Dycal | D124: 支 | E124: 登士柏德特瑞有限责任公司 | F124: 137.2
A125: 138 | B125: 侧方冲洗针头 | C125: 黄色 | D125: 个 | E125: 上海米筛浪有限公司 | F125: 4.41
A126: 139 | B126: 全功能剂粘结套装 | D126: 套
A127: 140 | B127: 窝沟封闭剂（3M） | C127: 1.2ml | D127: 支 | E127: 明尼苏达矿业制造（上海）国际贸易有限公司 | F127: 156.8
A128: 141 | B128: 纤维带 | D128: 盒 | E128: 美国 | F128: 34.3
A129: 142 | B129: 垂直加压器 | C129: 通号 | D129: 支 | E129: 马尼株式会社 | F129: 49
A130: 143 | B130: 儿童前牙透明冠 | D130: 套 | E130: 明尼苏达矿业制造（上海）国际贸易有限公司 | F130: 2058
A131: 144 | B131: 手用大锥度镍钛锉 | D131: 套 | E131: 登士柏德特瑞有限责任公司 | F131: 352.8
A132: 145 | B132: 根管冲洗针头侧开口针头 | C132: 黄色 | D132: 支 | E132: 常州益锐医疗器材有限公司 | F132: 4.9
A133: 146 | B133: 牙胶棒（热牙胶充填系统充填枪用） | C133: 各规格 | D133: 盒 | E133: 美塔生物医疗有限公司 | F133: 200-550
A134: 147 | B134: 矽离子柄及矽离子 | D134: 个 | E134: 松风株式会社 | F134: 132.3
A135: 148 | B135: 渗透树脂 | C135: 2ml | D135: 支 | E135: 广州市皓齿医疗器械有限公司 | F135: 120-1200 | G135: 前牙193.后牙290
A136: 149 | B136: 嵌体泥 | C136: 3g | D136: 支 | E136: 韩国斯派丹 | F136: 68.6
A137: 150 | B137: 树脂材料（临时冠用） | D137: 盒 | E137: 明尼苏达矿业制造（上海）国际贸易有限公司 | F137: 343
A138: 151 | B138: MTA Mtwo机用镍钛锉 | D138: 套 | E138: 登士柏德特瑞有限责任公司 | F138: 529.2
A139: 152 | B139: Reciproc机用镍钛锉 | D139: 套 | E139: 登士柏德特瑞有限责任公司 | F139: 529.2
A140: 153 | B140: Waveone 机用镍钛锉 | D140: 套 | E140: 登士柏德特瑞有限责任公司 | F140: 529.2
A141: 154 | B141: 颌架 | C141: 各规格 | D141: 个 | E141: 登士柏德特瑞有限责任公司 | F141: 35-8500
A142: 155 | B142: 压力指示剂 | C142: 30g/盒 | D142: 盒 | E142: 安徽克菱保健科技有限公司 | F142: 107.8
A143: 156 | B143: 酒精喷灯 | D143: 个 | F143: 86.24
A144: 157 | B144: 边缘整塑硅橡胶 | D144: 套 | E144: 山东沪鸽口腔材料股份有限公司 | F144: 352.8
A145: 158 | B145: 黄金铲 | D145: 个 | E145: 浙江瑞安 | F145: 117.6
A146: 159 | B146: 第一磨牙托槽 | D146: 个 | E146: 杭州西湖生物材料有限公司 | F146: 3.92
A147: 160 | B147: 正畸不锈钢方丝 | C147: 0.017×0.022 | D147: 桶 | E147: 杭州西湖生物材料有限公司 | F147: 78.4
A148: 161 | B148: 正畸不锈钢方丝 | C148: 0.017×0.025 | D148: 桶 | E148: 杭州西湖生物材料有限公司 | F148: 78.4
A149: 162 | B149: 正畸不锈钢方丝 | C149: 0.018×0.022 | D149: 桶 | E149: 杭州西湖生物材料有限公司 | F149: 78.4
A150: 163 | B150: 正畸不锈钢方丝 | C150: 0.018×0.025 | D150: 桶 | E150: 北京圣马特科技有限公司 | F150: 24.5
A151: 164 | B151: 正畸不锈钢方丝 | C151: 0.019×0.025 | D151: 桶 | E151: 北京圣马特科技有限公司 | F151: 24.5
A152: 165 | B152: 正畸不锈钢圆丝（成品及非成品） | C152: 0.016 上、下 | D152: 桶 | E152: 杭州西湖生物材料有限公司 | F152: 49
A153: 166 | B153: 正畸不锈钢圆丝（成品及非成品） | C153: 0.018 上、下 | D153: 桶 | E153: 杭州西湖生物材料有限公司 | F153: 49
A154: 167 | B154: 舌侧平导模具 | D154: 个 | E154: 浙江瑞安 | F154: 53.9
A155: 168 | B155: 颌面去釉砂条 | C155: 单/双面 | D155: 包 | E155: 巴西微牙 | F155: 117.6
A156: 169 | B156: 寄存模型底座 | D156: 个 | E156: 石家庄中皓康医疗器械有限公司 | F156: 9.8
A157: 170 | B157: 去带环钳子 | D157: 把 | E157: 杭州西湖生物材料有限公司 | F157: 411.6
A158: 171 | B158: 转矩钳 | D158: 把 | E158: 杭州西湖生物材料有限公司 | F158: 372.4
A159: 172 | B159: 正畸托槽镊子 | D159: 把 | E159: 上海伟荣医疗器材有限公司 | F159: 34.3
A160: 173 | B160: 正畸舌侧扣镊子 | D160: 把 | E160: 杭州西湖生物材料有限公司 | F160: 372.4
A161: 174 | B161: Damon Q金属自锁托槽 | C161: 高转矩、低转速、标准 | D161: 付 | E161: 杭州星辰三比齿科器材有限公司 | F161: 539
A162: 175 | B162: Ormco含铜镍钛丝 | C162: 各型号 | D162: 根
A163: 176 | B163: 咬合硅橡胶 | C163: 50ml | D163: 支 | F163: 156.8
A164: 177 | B164: 临时冠粘结剂 | D164: 套 | E164: 美塔生物医疗有限公司 | F164: 196
A165: 178 | B165: MRC矫治器 | D165: 付 | E165: 上海麦欧生物科技有限公司 | F165: 833
A166: 179 | B166: 洁牙机头及手柄 | D166: 个 | F166: 29-3800
A167: 180 | B167: 托盘粘接剂 | C167: 10ml/支 | D167: 支 | E167: 德国DMG化学医药集团公司 | F167: 176.4
A168: 181 | B168: Massad Edentulous托盘 | D168: 个 | F168: 147
A169: 182 | B169: 漱口水 | C169: 260ml | D169: 瓶 | F169: 49
A170: 183 | B170: C型先锋锉 | C170: 6#21mm | D170: 盒 | E170: 德国VDW | F170: 76.44
A171: 184 | B171: C+锉 | C171: 6#25mm | D171: 盒 | E171: 德国VDW | F171: 76.44
A172: 185 | B172: C+锉 | C172: 8#21mm | D172: 盒 | E172: 德国VDW | F172: 76.44
A173: 186 | B173: C+锉 | C173: 8#25mm | D173: 盒 | E173: 德国VDW | F173: 76.44
A174: 187 | B174: C+锉 | C174: 10#21mm | D174: 盒 | E174: 德国VDW | F174: 76.44
A175: 188 | B175: C+锉 | C175: 10#25mm | D175: 盒 | E175: 德国VDW | F175: 76.44
A176: 189 | B176: C+锉 | C176: 12#21mm | D176: 盒 | E176: 德国VDW | F176: 76.44
A177: 190 | B177: C+锉 | C177: 12#25mm | D177: 盒 | E177: 德国VDW | F177: 76.44
A178: 191 | B178: 牙科嵌体冠粘结棒 | C178: 10支/板 | D178: 支 | F178: 2.94
A179: 192 | B179: 3M绿巨人树脂水门汀 | C179: 4.5g/支 | D179: 支 | E179: 明尼苏达矿业制造（上海）国际贸易有限公司 | F179: 833
A180: 193 | B180: 3M通用自粘结树脂水门汀小蜜蜂补充装 | C180: A2/A3/透明 | D180: 个 | E180: 明尼苏达矿业制造（上海）国际贸易有限公司 | F180: 44.1
A181: 194 | B181: 不锈钢测量内冠尺 | D181: 把 | E181: 上海伟荣医疗器材有限公司 | F181: 63.7
A182: 195 | B182: 喷剂辅料 | C182: 30ml | D182: 瓶
A183: 196 | B183: 可吸收止血纱布 | C183: 70*50mm | D183: 包 | F183: 14.7
A184: 197 | B184: 可吸收止血纱布 | C184: 75*25mm | D184: 包 | F184: 12.74
A185: 198 | B185: 可吸收外科缝合线（进口） | D185: 包 | E185: 上海金环 | F185: 9.8
A186: 199 | B186: 牙科刮治器 | C186: 各规格 | D186: 盒 | F186: 360-4800
A187: 200 | B187: 隐适美矫治器 | D187: 套 | F187: 10000-50000
A188: 201 | B188: 硅橡胶印膜材料 | C188: 塞拉格初次 | D188: 套 | E188: DMG医疗器械（北京）有限公司 | F188: 343
A189: 202 | B189: 硅橡胶印膜材料 | C189: 塞拉格二次枪混型 | D189: 盒 | E189: 山东沪鸽口腔材料股份有限公司 | F189: 196
A190: 203 | B190: 硅橡胶印膜材料 | C190: 塞拉格二次手调型 | D190: 盒 | E190: DMG医疗器械（北京）有限公司 | F190: 372.4
A191: 204 | B191: 硅橡胶印膜材料 | C191: 塞拉格初印 | D191: 套 | E191: 山东沪鸽口腔材料股份有限公司 | F191: 294
A192: 205 | B192: 超声洁牙机 持针器 | D192: 盒 | E192: 医迈斯电子医疗系统商贸（上海）有限公司 | F192: 1742.44
A193: 206 | B193: 超声洁牙机 工作尖 | C193: 各规格 | D193: 个 | E193: 医迈斯电子医疗系统商贸（上海）有限公司 | F193: 30-450
A194: 207 | B194: 超声洁牙机 探针 | C194: 各规格 | D194: 盒 | E194: 医迈斯电子医疗系统商贸（上海）有限公司 | F194: 600-800
A195: 208 | B195: 超声洁牙机 专用水瓶 | D195: 个 | E195: 医迈斯电子医疗系统商贸（上海）有限公司 | F195: 450.8
A196: 209 | B196: 超声洁牙机手柄 | C196: 各规格 | D196: 把 | E196: 医迈斯电子医疗系统商贸（上海）有限公司 | F196: 380-3600
A197: 210 | B197: 超声牙科手术刀（手柄） | C197: 各规格 | D197: 把 | E197: 医迈斯电子医疗系统商贸（上海）有限公司 | F197: 1500-10000
A198: 211 | B198: 超声牙科手术刀无菌通路 | C198: 各规格 | D198: 盒 | E198: 医迈斯电子医疗系统商贸（上海）有限公司 | F198: 100-400
A199: 212 | B199: 带喷嘴喷砂洁牙机手柄 | C199: 各规格 | D199: 把 | E199: 医迈斯电子医疗系统商贸（上海）有限公司 | F199: 1300-6600
A200: 213 | B200: 根管套装 | C200: 各规格 | D200: 套 | E200: 医迈斯电子医疗系统商贸（上海）有限公司 | F200: 360-4800
... 329 more rows

Sheet 泌尿外科（海梧、共创）
A1: 泌尿外科耗材目录
A2: 序号 | B2: 产品名称 | C2: 规格描述 | D2: 单位 | E2: 生产厂家 | F2: 单价
A3: 1 | B3: 斑马导丝 | C3: 0.028、0.032 | D3: 支 | E3: 德国优威 | F3: 930.6
A4: 2 | B4: 输尿管鞘 | C4: Fr12/Fr14 | D4: 支 | E4: 北京莱凯 | F4: 3008
A5: 3 | B5: 输尿管鞘 | C5: Fr12/Fr14 | D5: 支 | E5: 深圳库珀 | F5: 2331.2
A6: 4 | B6: 取石网篮 | C6: Fr1.7 | D6: 套 | E6: 深圳库珀 | F6: 2632
A7: 5 | B7: 拦截网篮 | C7: Fr2.8 | D7: 套 | E7: 德国优泰 | F7: 3290
A8: 6 | B8: 一次性包皮环切吻合器 | C8: 12/18/26/30 | D8: 套 | E8: 江西狼和医疗器械有限公司 | F8: 733.2
A9: 7 | B9: 经皮肾穿刺套件 | C9: Fr16/18 | D9: 套 | E9: 深圳市库珀科技发展有限公司 | F9: 1739
A10: 8 | B10: 三腔大气囊导尿管 | C10: Fr18/20/22 | D10: 支 | E10: 德国优威 | F10: 338.4
A11: 9 | B11: 半自动活检针 | C11: 18G-130mm | D11: 个 | E11: 库利艾特 | F11: 451.2
A12: 10 | B12: 输尿管支架管（双J管） | C12: F4.8的 | D12: 个 | E12: 深圳库珀 | F12: 225
A13: 11 | B13: 输尿管支架管（双J管） | C13: F4.8的 | D13: 个 | E13: 德国优威 | F13: 680
A14: 12 | B14: 可吸收止血膜 | C14: 1961 | D14: 强生 | E14: 强生（上海）医疗器械有限公司 | F14: 421
A15: 13 | B15: 尿道空气测压管 | C15: F6.F7.F8.F9.F10.F12 | D15: 库珀 | E15: 深圳市库珀科技发展有限公司 | F15: 320
A16: 14 | B16: 尿道空气测压管 | C16: F6.F7.F8.F9.F10.F12 | D16: 华美 | E16: 张家港市华美医疗器械有限公司 | F16: 320
A17: 15 | B17: 直肠空气测压管 | C17: F6.F7.F8.F9.F10.F12 | D17: 库珀 | E17: 深圳市库珀科技发展有限公司 | F17: 320
A18: 16 | B18: 直肠空气测压管 | C18: F6.F7.F8.F9.F10.F12 | D18: 华美 | E18: 张家港市华美医疗器械有限公司 | F18: 320
A19: 17 | B19: 膀胱空气测压管 | C19: F6.F7.F8.F9.F10.F12 | D19: 库珀 | E19: 深圳市库珀科技发展有限公司 | F19: 320
A20: 18 | B20: 膀胱空气测压管 | C20: F6.F7.F8.F9.F10.F12 | D20: 华美 | E20: 张家港市华美医疗器械有限公司 | F20: 320
A21: 19 | B21: 尿道悬吊系统 | C21: DI-001 DI-002 | D21: TOT | E21: PRESTIGE MGDICARE Co,Ltd | F21: 7040
A22: 20 | B22: 膀胱穿刺造瘘针 | C22: F18 | D22: 库珀 | E22: 深圳市库珀科技发展有限公司 | F22: 2560

Sheet 手术麻醉（明之畅、强盛）
A1: 手术、麻醉耗材目录
A2: 序号 | B2: 品名 | C2: 规格型号 | D2: 单位 | E2: 生产企业 | F2: 单价
A3: 1 | B3: 全身麻醉呼吸回路套装 | C3: 成人、小儿 | D3: 个 | E3: 河南驼人 | F3: 83.60
A4: 2 | B4: 非全身麻醉呼吸管路套装 | C4: 成人、小儿 | D4: 个 | E4: 河南驼人 | F4: 53.20
A5: 3 | B5: 一次性医用喉罩 | C5: 食道引流型：2.0、2.5、3.0、4.0 | D5: 个 | E5: 河南驼人 | F5: 218.50
A6: 10 | B6: 一次性中心静脉穿刺包 | C6: 单腔16G | D6: 包 | E6: 河南驼人 | F6: 99.75
A7: 11 | B7: 一次性中心静脉穿刺包 | C7: 双腔 | D7: 包 | E7: 河南驼人 | F7: 142.50
A8: 17 | B8: 呼吸管路多功能接头 | D8: 个 | E8: 河南驼人 | F8: 33.25
A9: 18 | B9: 一次性使用有创压力传感器 | C9: TR-DP1-248 | D9: 个 | E9: 河南驼人 | F9: 222.30
A10: 19 | B10: 外科手术巾 | C10: 45cm*45cm | D10: 片 | E10: 山东淄博宏康医疗器械有限公司 | F10: 13.8
A11: 21 | B11: 外科使用无菌手术膜 | C11: 30*45cm | D11: 片 | E11: 山东淄博宏康医疗器械有限公司 | F11: 15.55
A12: 21-1 | B12: 外科使用无菌手术膜 | C12: 20*30cm | D12: 片 | E12: 山东淄博宏康医疗器械有限公司 | F12: 9.1
A13: 22 | B13: 自粘式伤口敷料 | C13: 6*7cm, | D13: 片 | E13: 新乡市强盛医疗器械有限公司 | F13: 0.92
A14: 22-1 | B14: 自粘式伤口敷料 | C14: 10*15 | D14: 片 | E14: 新乡市强盛医疗器械有限公司 | F14: 1.38
A15: 22-2 | B15: 自粘式伤口敷料 | C15: 10*20cm | D15: 片 | E15: 新乡市强盛医疗器械有限公司 | F15: 1.84
A16: 34 | B16: 一次性医用脑棉片 | C16: 无菌，X线显影 | D16: 片 | E16: 河南飘安集团有限公司 | F16: 0.736
A17: 61 | B17: 医用纱布块 | C17: 2.5*15cm-16px，5块/袋，无菌，显影 | D17: 片 | E17: 新乡市强盛医疗器械有限公司 | F17: 1.11
A18: 95 | B18: 一次性使用被服包 | C18: 120*150 | D18: 条 | E18: 新乡市强盛医疗器械有限公司 | F18: 6.9
A19: 96 | B19: 一次性使用被服包 | C19: 150*210 | D19: 条 | E19: 新乡市强盛医疗器械有限公司 | F19: 16.56

Sheet 神经外科（千善、海梧、坤泰）
A1: 神经外科耗材目录
A2: 序号 | B2: 产品名称 | C2: 规格型号 | D2: 单位 | E2: 生产企业 | F2: 单价
A3: 1 | B3: 一次性使用脑科引流管 | C3: Fr14 | D3: 盒 | E3: 山东百多安医疗器械有限公司 | F3: 630
A4: 2 | B4: 一次性使用脑科引流管 | C4: Fr4 | D4: 盒 | E4: 山东百多安医疗器械有限公 | F4: 2365
A5: 3 | B5: 高频手术电极 | C5: JBW/D-D | D5: 支 | E5: 武汉金柏威光电技术有限公司 | F5: 270
A6: 4 | B6: 内固定钛网板系统 | C6: L14.8/L20.8 | D6: 片 | E6: 西安康拓医疗技术股份有限公司 | F6: 675/895
A7: 5 | B7: 内固定钛网板系统 | C7: 173*155.5mm | D7: 片 | E7: 西安康拓医疗技术股份有限公司 | F7: 5490
A8: 6 | B8: 脑脊液分流器及组件 | C8: SM1-M/SM8A-2010 | D8: 盒 | E8: 法国SOPHYSA | F8: 7680/24248
A9: 7 | B9: 神经外科微血管减压垫片 | C9: 10*15mm | D9: 片 | E9: 北京伯仁医疗科技股份有限公司 | F9: 5900
A10: 8 | B10: 一次性颅骨钻头，铣刀头 | C10: 适用于“西山”动力系统 | D10: 根 | E10: 重庆西山 | F10: 1786/893
A11: 9 | B11: 经皮气管切开包 | C11: 配气管撑开钳 | D11: 套 | E11: 深圳益心达 | F11: 620.4
A12: 10 | B12: 颅内压监测探头 | C12: 脑室内/硬膜下 | D12: 套 | E12: 山东大正 | F12: 7900
A13: 11 | B13: 硬脑膜补片 | C13: D-59011 | D13: 个 | E13: 北京银河巴马生物技术股份有限公司 | F13: 4219.38
A14: 12 | B14: 脑室外引流装置 | C14: 10#/12#/14# | D14: 个 | E14: 苏州新区华盛医疗器械有限公司 | F14: 547.8
A15: 13 | B15: 脑室引流管 | C15: 10#/12#/14# | D15: 个 | E15: 苏州新区华盛医疗器械有限公司 | F15: 18.26
A16: 14 | B16: 耳脑胶（a-氰基丙稀酸脂快速医用胶） | C16: 1ml | D16: 个 | E16: 广州白云医用胶有限公司 | F16: 498
A17: 15 | B17: 一次性使用无菌颅内穿刺引流装置 | C17: 20mm/25mm/30mm/35mm/40mm/45mm/50mm/55mm/60mm/65mm/70mm | D17: 个 | E17: 北京万特福医疗器械有限公司 | F17: 5681
A18: 16 | B18: 胶原蛋白线（可吸收胶原蛋白缝合线） | D18: 个 | E18: 湖南然元医用高科技蛋白线有限公司 | F18: 240

Sheet 眼科（阳光康明、天汉、康利）
A1: 眼科耗材目录
A2: 序号 | B2: 产品名称 | C2: 制造商 | D2: 产品注册证编号 | E2: 品牌 | F2: 备注 | G2: 单价
A3: 1 | B3: 天然珊瑚羟基磷灰石义眼台 | C3: 型号：球形义眼台、穿线球形义眼台； 规格：500μm/18mm、20mm、22mm进口材料 | D3: 片 | E3: 康菲特尔 | G3: 6790
A4: 2 | B4: 天然珊瑚羟基磷灰石义眼台 | C4: 型号：球形义眼台、穿线球形义眼台； 规格：200μm/18mm、20mm、22mm | D4: 片 | E4: 康菲特尔 | G4: 2910
A5: 3 | B5: 软性亲水接触镜 | C5: 连续佩戴型 | D5: 片 | E5: 博士伦 | G5: 184.3
A6: 4 | B6: 生物羊膜 | C6: 15mm×15mm | D6: 片 | E6: 江西瑞济 | G6: 2522
A7: 5 | B7: 中心孔后房屈光型人工晶状体 | C7: VICMO 12.1、VICMO 12.6、VICMO 13.2、VICMO 13.7规格：205001Y、205001R | D7: 片 | E7: STAAR | G7: 13600
A8: 6 | B8: 区域折射多焦人工晶状体 | C8: LS-313MF15 | D8: 片 | E8: 欧酷兰德斯 | F8: 国家集采产品 | G8: 4199
A9: 7 | B9: 可折叠一件式高次非球面人工晶状体 | C9: A1-UV | D9: 枚 | E9: 爱博诺德 | G9: 1345
A10: 8 | B10: 可折叠一件式非球面人工晶状体 | C10: A2-UV | D10: 枚 | E10: 爱博诺德 | F10: 国家集采产品 | G10: 1400
A11: 9 | B11: 折叠式后房人工晶状体 | C11: SOFTEC IO | D11: 片 | E11: Lenstec | G11: 550
A12: 10 | B12: 预装式黄色疏水性丙烯酸人工晶状体 | C12: CT LUCIA 601PY | D12: 片 | E12: 蔡司 | G12: 2850
A13: 11 | B13: 人工晶状体 | C13: AT TORBI 709M | D13: 片 | E13: 蔡司 | G13: 3300
A14: 12 | B14: 人工晶状体 | C14: AT LISA 809M、AT LISA 809MP | D14: 片 | E14: 蔡司 | G14: 4845
A15: 13 | B15: 人工晶状体 | C15: AT LISA tri 839 MP | D15: 片 | E15: 蔡司 | G15: 21250
A16: 14 | B16: 人工晶状体 | C16: CTASPHINA 409MP | D16: 片 | E16: 蔡司 | G16: 3825
A17: 15 | B17: 区域折射多焦人工晶状体 | C17: LS-313MF30 | D17: 片 | E17: 欧酷兰德斯 | G17: 12155
A18: 16 | B18: 人工晶状体 | C18: SOFTEC HD | D18: 片 | E18: Lenstec | F18: 国家集采产品 | G18: 1179
A19: 18 | B19: 预装式非球面后房人工晶状体 | C19: 250 | D19: 片 | E19: 豪雅 | G19: 2200
A20: 19 | B20: 尼龙缝合线 | C20: 1406 | D20: 根 | E20: 日本马尼 | G20: 58.65
A21: 20 | B21: 聚丙烯带针缝合线 | C21: 1455P | D21: 根 | E21: 日本马尼 | G21: 97.75
A22: 21 | B22: 眼用全氟丙烷气体 | C22: GOT 009-00 | D22: 瓶 | E22: 阿基米亚 | G22: 4675
A23: 22 | B23: 角膜板层刀 | C23: Evolution 3e | D23: 个 | E23: 目利亚 | G23: 667.25
A24: 23 | B24: 眼用笛针 | C24: MR-G122T-3/23G、MR-G122T-5/23G、MR-G122T-7/23G、MR-G122T-8/25G、MR-G122T-9/25G | D24: 个 | E24: 苏州协和 | G24: 1020
A25: 24 | B25: 裂隙灯显微镜灯泡 | C25: 规格：12V 30W型号：64260 | D25: 个 | E25: 鹤牌 | G25: 123.25
A26: 25 | B26: 裂隙灯YZ5EI灯泡 | C26: 规格：12V 50W | D26: 个 | E26: 鹤牌 | G26: 123.25
A27: 26 | B27: 裂隙灯Huvitz HS-7000灯泡 | C27: HS-7000 12V30W | D27: 个 | E27: 海威驰 | G27: 123.25
A28: 27 | B28: 折叠式人工玻璃体球囊 | C28: AV-15、AV-10P、AV-12P、AV-13.5P、AV-15P、AV-17P | D28: 片 | E28: 卫视博 | G28: 20405.95
A29: 28 | B29: 折叠式人工玻璃体球囊植入器 | C29: PI-3、PI-4 | D29: 个 | E29: 卫视博 | G29: 2125
A30: 29 | B30: 多功能载体眼镜 | C30: MZ205 | D30: 片 | E30: 美重 | G30: 875.5
A31: 30 | B31: 眼科手术刀 | C31: MSL32、MSL30、MST15 | D31: 把 | E31: 日本马尼 | G31: 55.25
A32: 31 | B32: 医用透明质酸钠凝胶 | C32: VA-2100 | D32: 盒 | E32: 维视爱 | G32: 195.5
A33: 32 | B33: 硅油 | C33: Siluron 5000 | D33: 盒 | E33: 德国歌德 | G33: 850
A34: 33 | B34: 眼科用重水 | C34: 型号：F-Octane 规格：7ml | D34: 盒 | E34: 德国歌德 | G34: 892.5
A35: 34 | B35: 眼科手术刀 | C35: MGL24 | D35: 把 | E35: 日本马尼 | G35: 55.25
A36: 35 | B36: 超乳液流套件 | C36: 型号：CRH-1、 CRH-2 | D36: 个 | E36: 长沙昌久 | G36: 423.3
A37: 36 | B37: 人工晶体(ICL) | C37: ICL | D37: 片 | E37: STAAR Surgical AG | G37: 14400
A38: 38 | B38: 折叠式非球面人工晶体 | C38: PCF60/A | D38: 枚 | E38: 河南宇宙人工晶状体研制有限公司 | G38: 12870
A39: 39 | B39: 球面人工晶体 | C39: PCF60 | D39: 片 | E39: 河南宇宙人工晶状体研制有限公司 | G39: 315
A40: 40 | B40: 悬吊人工晶体 | C40: PC157C65 | D40: 片 | E40: 河南宇宙人工晶状体研制有限公司 | G40: 351
A41: 41 | B41: 合资一体PMMA人工晶体（硬晶体） | C41: PC156C55 | D41: 片 | E41: 河南宇宙人工晶状体研制有限公司 | G41: 90
A42: 42 | B42: 双非球人工晶体 | C42: ZCB00/868 | D42: 片 | E42: U.S.IOL INC | F42: 国家集采产品 | G42: 1300
A43: 43 | B43: 青光眼引流阀 | C43: FPT | D43: 个 | E43: 河南宇宙人工晶状体研制有限公司 | G43: 864
A44: 44 | B44: 一次性囊袋张力环 | C44: 275001G/12 276001G/13 | D44: 个 | E44: OPHTEC BV | G44: 882
A45: 45 | B45: 聚维酮碘 | C45: 60ml | D45: 瓶 | E45: 上海利康消毒高科技有限公司 | G45: 4.5
A46: 46 | B46: 天然珊瑚羟基磷灰石义眼台 | C46: 进口材料500μm，18mm/20mm/22mm | D46: 个 | E46: 北京康菲特尔科技有限公司 | G46: 6300
A47: 47 | B47: 天然珊瑚羟基磷灰石义眼台 | C47: 国产材料200μm/300μm，18mm/20mm/22mm | D47: 枚 | E47: 北京康菲特尔科技有限公司 | G47: 1496.7到3240
A48: 48 | B48: 一次性泪道再通管 | C48: RS型 | D48: 个 | E48: 济南润视医疗器械有限公司 | G48: 1134
A49: 49 | B49: 眼用全氟丙烷气体 | C49: GOT 009-00 | D49: 瓶 | E49: AL.CHI.MI.A. Srl | G49: 4950
A50: 50 | B50: 气体过滤阀 | C50: GOT过滤及注入 | D50: 个 | E50: AL.CHI.MI.A. Srl | G50: 54
A51: 51 | B51: 透明质酸钠凝胶 | C51: 0.5ml；1ml | D51: 盒 | E51: 上海其胜生物制剂有限公司 | G51: 75.6
A52: 52 | B52: 角膜绷带镜 | C52: 连续佩戴型 | D52: 个 | E52: 博士伦有限公司 | G52: 144
A53: 53 | B53: 美容义眼片 | C53: 大号/中号/小号 | D53: 枚 | E53: 泊头市艺水碧天医疗器械有限公司 | G53: 270
A54: 54 | B54: 透明眼罩（塑料） | C54: MR-O620-2 | D54: 个 | E54: 苏州明仁医疗器械有限公司 | G54: 1.6
A55: 55 | B55: 荧光素钠眼科检测试纸 | C55: 1条/袋 | D55: 盒 | E55: 辽宁美滋林药业有限公司 | G55: 27
A56: 56 | B56: 泪液检测滤纸条 | C56: 2条/袋 | D56: 盒 | E56: 辽宁美滋林药业有限公司 | G56: 81
A57: 57 | B57: 泪道再通管（硅胶） | C57: RT型 | D57: 个 | E57: 济南润视医疗器械有限公司 | G57: 1134
A58: 58 | B58: 一次性泪道引流管（硅胶） | C58: RT型 | D58: 个 | E58: 济南润视医疗器械有限公司 | G58: 1129.5
A59: 59 | B59: 一次性虹膜拉钩 | D59: 个 | E59: 苏州市协和医疗器械有限公司 | G59: 139.5
A60: 60 | B60: 一次性使用眼科手术洞巾 | C60: SSJ-S | D60: 个 | E60: 沈阳汇康医疗用品制造有限公司 | G60: 4.1
A61: 61 | B61: 笛针 | C61: 337.86 | D61: 个 | E61: 美国爱尔康公司 | G61: 1080
A62: 62 | B62: 裂隙灯YZ5T灯泡 | C62: 12V/30W | D62: 个 | E62: 欧司朗照明有限公司 | G62: 130.5
A63: 63 | B63: 裂隙灯YZ5EI灯泡 | C63: 12V/50W | D63: 个 | E63: 欧司朗照明有限公司 | G63: 130.5
A64: 64 | B64: 裂隙灯Huvitz HS-7000灯泡 | C64: 12V/30W | D64: 个 | E64: 欧司朗照明有限公司 | G64: 130.5
A65: 65 | B65: 折叠式人工玻璃体 | C65: AV-15-AV17P | D65: 片 | E65: 广州卫视博生物科技有限公司 | G65: 21606.3
A66: 66 | B66: 折叠式人工玻璃植入器 | C66: PI-3;PI-4 | D66: 个 | E66: 广州卫视博生物科技有限公司 | G66: 2250
A67: 67 | B67: 湿房镜 | C67: 无 | D67: 片 | E67: 上海美重医疗器械有限公司 | G67: 927
A68: 68 | B68: 泪道探针 | C68: 6号、7号 | D68: 盒 | E68: 苏州市协和医疗器械有限公司 | G68: 22.5
A69: 69 | B69: 预装式虹膜扩张器 | C69: Visitec I-Ring/587000/（6/盒）587001（1/盒） | D69: 个 | E69: Beaver-Visitec Tnternationnal,Inc./碧维国际公司 | G69: 3600
A70: 70 | B70: 安全裂隙刀 | C70: Beaver-Xster/378235 | D70: 把 | E70: Beaver-Visitec Tnternationnal,Inc./碧维国际公司 | G70: 180
A71: 71 | B71: 安全侧切刀 | C71: Beaver-Xster/378230 | D71: 把 | E71: Beaver-Visitec Tnternationnal Inc./碧维国际公司 | G71: 180
A72: 72 | B72: 超乳手术用套包 | C72: BL5110/8065752081 | D72: 盒 | E72: 美国爱尔康公司 | G72: 535.5
A73: 73 | B73: 玻切治疗系统 | C73: BL5423WV、BL5523WV/8065751058 | D73: 个 | E73: 美国爱尔康公司 | G73: 4815
A74: 74 | B74: 人工羊膜 | C74: 15mm×15mm | D74: 片 | E74: 江西瑞济生物工程技术股份有限公司 | G74: 256.5
A75: 75 | B75: 眼科一次性手术包 | C75: 5004-0013 | D75: 个 | E75: 合肥高贝斯医疗卫生用品有限公司 | G75: 40.5
A76: 76 | B76: 眼科海绵棉签 | C76: KH-B 180808/181202 | D76: 支 | E76: 建德市康华医疗器械有限公司 | G76: 1.8
A77: 77 | B77: 前置镜 | C77: VSQUAD160 | D77: 个 | E77: 美国VoIK OpticalInc | G77: 3150
A78: 78 | B78: 激光全视网膜镜 | C78: VoIK130 | D78: 个 | E78: 美国VoIK OpticalInc | G78: 8550
A79: 79 | B79: 人工晶状体 | C79: SN60AT | E79: 美国爱尔康公司 | F79: 国家集采产品 | G79: 980
A80: 80 | B80: 人工晶状体 | C80: ZXR00 | E80: 强生视力康 | F80: 国家集采产品 | G80: 11065.8
A81: 81 | B81: 区域折射多焦人工晶状体 | C81: SBL-3 | E81: 朗思泰克 | F81: 国家集采产品 | G81: 4836
A82: 82 | B82: 单件式复曲面人工晶状体 | C82: ZCT150 | E82: 强生视力康 | F82: 国家集采产品 | G82: 3188
A83: 83 | B83: 单件式复曲面人工晶状体 | C83: ZCT225 | E83: 强生视力康 | F83: 国家集采产品 | G83: 3188
A84: 84 | B84: 单件式复曲面人工晶状体 | C84: ZCT300 | E84: 强生视力康 | F84: 国家集采产品 | G84: 3188
A85: 85 | B85: 预装式非球面单件式丙烯酸人工晶状体 | C85: PCB00 | E85: 强生视力康 | F85: 国家集采产品 | G85: 1702
A86: 86 | B86: 预装式人工晶状体 | C86: SOFTEC HD PLI | E86: 朗思泰克 | F86: 国家集采产品 | G86: 1700
A87: 87 | B87: 人工晶状体 | C87: MA60AC | E87: 爱尔康 | F87: 国家集采产品 | G87: 680
A88: 88 | B88: 可折叠人工晶状体 | C88: ASIL575L | E88: 世纪泰康 | F88: 国家集采产品 | G88: 1318

Sheet 骨科矫形（国康、创科、众启）
A1: 骨科矫形耗材目录
A2: 序号 | B2: 产品名称 | C2: 单位 | D2: 规格型号 | E2: 品牌 | F2: 生产厂家 | G2: 单价
A3: 13 | B3: 髋固定型 | C3: 双 | D3: DA311-14 | E3: 德奥 | F3: 太原市德奥假肢矫形康复技术产业有限公司 | G3: 1309.77
B4: （丹尼斯布朗型） | D4: 布朗鞋
A5: 14 | B5: 髋固定型 | C5: 件 | D5: DA311-14 | E5: 德奥 | F5: 太原市德奥假肢矫形康复技术产业有限公司 | G5: 1165.19
B6: （丹尼斯布朗型） | D6: 布朗鞋架
A7: 15 | B7: 儿童髋外展固定吊带 | C7: 件 | D7: G-HO01 | E7: 环球精博 | F7: 北京环球精博康复辅具技术有限公司 | G7: 586.85
A9: 16 | B9: 28L10型先髋脱位 | C9: 件 | D9: DA316 | E9: 德奥 | F9: 太原市德奥假肢矫形康复技术产业有限公司 | G9: 1488.38
A11: 17 | B11: 髋脱位可行走支架 | C11: 件 | D11: DR-GD-H-10 | E11: 君德 | F11: 金华德仁康复辅具有限公司 | G11: 1922.13
A13: 18 | B13: 髋固定型（独条外展型） | C13: 件 | D13: DA311-2 | E13: 德奥 | F13: 太原市德奥假肢矫形康复技术产业有限公司 | G13: 2202.8
A15: 19 | B15: 髋脱位支具可行走支架 | C15: 件 | D15: DR-GD-H-10 | E15: 君德 | F15: 金华德仁康复辅具有限公司 | G15: 3231.9
A17: 20 | B17: 儿童铰链式髋支架 | C17: 件 | D17: Y-HO02 | E17: 环球精博 | F17: 北京环球精博康复辅具技术有限公司 | G17: 2092.23
A19: 21 | B19: 电动石膏锯 | C19: 个 | D19: DC-1 | E19: 塔斯特 | F19: 济南塔斯特生物科技有限公司 | G19: 4725
A21: 22 | B21: 平足鞋垫 | C21: 件 | D21: DR-GD-F-01 | E21: 君德 | F21: 金华德仁康复辅具有限公司 | G21: 423.36
A23: 23 | B23: 高温踝足固定器 | C23: 只 | D23: FT-AF-5-22 | E23: 富特凯尔 | F23: 山东省富特凯尔医疗科技有限公司 | G23: 898.7
A26: 24 | B26: 高温踝足固定器(加盖) | C26: 只 | D26: FT-AF-5-22 | E26: 富特凯尔 | F26: 山东省富特凯尔医疗科技有限公司 | G26: 1146.29
A29: 25 | B29: 可调式踝足固定器 | C29: 只 | D29: FT-AF-3-23 | E29: 富特凯尔 | F29: 山东省富特凯尔医疗科技有限公司 | G29: 1146.29
A32: 26 | B32: 高温踝足固定器（包足） | C32: 只 | D32: FT-AF-5-22 | E32: 富特凯尔 | F32: 山东省富特凯尔医疗科技有限公司 | G32: 1583.82
A35: 27 | B35: 膝固定器 | C35: 对 | D35: FT-K-3-20 | E35: 富特凯尔 | F35: 山东省富特凯尔医疗科技有限公司 | G35: 642.6
A38: 28 | B38: 下肢固定器 | C38: 只 | D38: GK-HKAFO-1 | E38: 国康 | F38: 山东省国康康复服务有限公司 | G38: 1678.32
A41: 29 | B41: 髋人字固定器（大号） | C41: 件 | D41: FT-H-5-27 | E41: 富特凯尔 | F41: 山东省富特凯尔医疗科技有限公司 | G41: 3510.68
A44: 30 | B44: 髋人字固定器（小号） | C44: 件 | D44: FT-H-5-27 | E44: 富特凯尔 | F44: 山东省富特凯尔医疗科技有限公司 | G44: 2466.45
A47: 31 | B47: 费氏颈托 | C47: 件 | D47: DA211 | E47: 德奥 | F47: 太原市德奥假肢矫形康复技术产业有限公司 | G47: 445.1
A48: 32 | B48: 头颈胸固定器 | C48: 件 | D48: FT-CT-1-14 | E48: 富特凯尔 | F48: 山东省富特凯尔医疗科技有限公司 | G48: 4630.5
A51: 33 | B51: 躯干固定器 | C51: 件 | D51: GK-SEWHO-1 | E51: 国康 | F51: 山东省国康康复服务有限公司 | G51: 2771.69
A53: 34 | B53: 肩锁关节型 | C53: 件 | D53: DA116-2 | E53: 德奥 | F53: 太原市德奥假肢矫形康复技术产业有限公司 | G53: 63.32
B54: （上肢吊带，透气型）
A55: 35 | B55: 锁骨固定支具X型 | C55: 件 | D55: DR-GD-S-04 | E55: 君德 | F55: 金华德仁康复辅具有限公司 | G55: 106.79
A57: 36 | B57: 软性颈部支具 | C57: 件 | D57: DR-GD-C-01 | E57: 君德 | F57: 金华德仁康复辅具有限公司 | G57: 106.79
A59: 37 | B59: 骨科固定器 | C59: 件 | D59: DA239 | E59: 德奥 | F59: 太原市德奥假肢矫形康复技术产业有限公司 | G59: 106.79
B60: （下肢牵引带）
A61: 38 | B61: 伸指固定型 | C61: 只 | D61: DA146-6（A型） | E61: 德奥 | F61: 太原市德奥假肢矫形康复技术产业有限公司 | G61: 213.57
B62: （夹型铝护指）
A63: 39 | B63: 腕掌固定器 | C63: 只 | D63: FT-WH-1-03 | E63: 富特凯尔 | F63: 山东省富特凯尔医疗科技有限公司 | G63: 445.1
A65: 40 | B65: 肘腕固定器 | C65: 只 | D65: FT-EW-1-05 | E65: 富特凯尔 | F65: 山东省富特凯尔医疗科技有限公司 | G65: 839.16
A67: 41 | B67: 肘限位固定器 | C67: 只 | D67: FT-E-3-06 | E67: 富特凯尔 | F67: 山东省富特凯尔医疗科技有限公司 | G67: 1190.7
A69: 42 | B69: 肩外展 | C69: 件 | D69: DA111-2 | E69: 德奥 | F69: 太原市德奥假肢矫形康复技术产业有限公司 | G69: 1594.22
B70: （铝合金成人、儿童型）
A71: 43 | B71: 膝踝足固定器（长腿） | C71: 只 | D71: FT-KAF-1-29 | E71: 富特凯尔 | F71: 山东省富特凯尔医疗科技有限公司 | G71: 1798.34
A74: 44 | B74: 可调式踝足固定器 | C74: 只 | D74: FT-AF-3-23 | E74: 富特凯尔 | F74: 山东省富特凯尔医疗科技有限公司 | G74: 1370.25
B75: （撑开器）
A76: 45 | B76: 膝踝足固定器 | C76: 只 | D76: FT-KAF-1-29 | E76: 富特凯尔 | F76: 山东省富特凯尔医疗科技有限公司 | G76: 1559.25
A78: 46 | B78: 组合式骨科外固定支架 | C78: 个 | D78: 手指外固定架 指骨、趾骨、掌骨 | E78: 君泰安德 | F78: 山东君泰安德医疗科技股份有限公司 | G78: 3894
A79: 47 | B79: 组合式骨科外固定支架 | C79: 个 | D79: 手指外固定架 指骨、趾骨、掌骨跨关节 | E79: 君泰安德 | F79: 山东君泰安德医疗科技股份有限公司 | G79: 5544
A80: 48 | B80: 组合式骨科外固定支架 | C80: 个 | D80: 桡骨远端外固定架 桡骨远端 | E80: 君泰安德 | F80: 山东君泰安德医疗科技股份有限公司 | G80: 6094
A81: 49 | B81: 组合式骨科外固定支架 | C81: 个 | D81: 单边式外固定架 上肢 | E81: 君泰安德 | F81: 山东君泰安德医疗科技股份有限公司 | G81: 2182.95
A82: 50 | B82: 组合式骨科外固定支架 | C82: 个 | D82: 单边式外固定架 胫骨 | E82: 君泰安德 | F82: 山东君泰安德医疗科技股份有限公司 | G82: 3430.35
A83: 51 | B83: 组合式骨科外固定支架 | C83: 个 | D83: 单边式外固定架 股骨 | E83: 君泰安德 | F83: 山东君泰安德医疗科技股份有限公司 | G83: 4054.05
A84: 52 | B84: 组合式骨科外固定支架 | C84: 个 | D84: 单边式外固定架 骨搬移 | E84: 君泰安德 | F84: 山东君泰安德医疗科技股份有限公司 | G84: 4989.6
A85: 53 | B85: 组合式骨科外固定支架 | C85: 个 | D85: 组合式外固定架 上肢 | E85: 君泰安德 | F85: 山东君泰安德医疗科技股份有限公司 | G85: 2721.4
A86: 54 | B86: 组合式骨科外固定支架 | C86: 个 | D86: 组合式外固定架 胫骨 | E86: 君泰安德 | F86: 山东君泰安德医疗科技股份有限公司 | G86: 6842
A87: 55 | B87: 组合式骨科外固定支架 | C87: 个 | D87: 组合式外固定架 股骨 | E87: 君泰安德 | F87: 山东君泰安德医疗科技股份有限公司 | G87: 7921.65
A88: 56 | B88: 组合式骨科外固定支架 | C88: 个 | D88: 组合式外固定架 骨搬移 | E88: 君泰安德 | F88: 山东君泰安德医疗科技股份有限公司 | G88: 7502
A89: 57 | B89: 组合式骨科外固定支架 | C89: 个 | D89: 组合式外固定架 骨盆 | E89: 君泰安德 | F89: 山东君泰安德医疗科技股份有限公司 | G89: 7896.9
A90: 58 | B90: 组合式骨科外固定支架 | C90: 个 | D90: 环式外固定架 上肢 | E90: 君泰安德 | F90: 山东君泰安德医疗科技股份有限公司 | G90: 8045.95
A91: 59 | B91: 组合式骨科外固定支架 | C91: 个 | D91: 环式外固定架 下肢 | E91: 君泰安德 | F91: 山东君泰安德医疗科技股份有限公司 | G91: 8045.95
A92: 60 | B92: 组合式骨科外固定支架 | C92: 个 | D92: 环式外固定架 胫骨 | E92: 君泰安德 | F92: 山东君泰安德医疗科技股份有限公司 | G92: 10876.8
A93: 61 | B93: 组合式骨科外固定支架 | C93: 个 | D93: 环式外固定架 股骨 | E93: 君泰安德 | F93: 山东君泰安德医疗科技股份有限公司 | G93: 11105.6
A94: 62 | B94: 组合式骨科外固定支架 | C94: 个 | D94: 环式外固定架 骨搬移 | E94: 君泰安德 | F94: 山东君泰安德医疗科技股份有限公司 | G94: 10961.5
A95: 63 | B95: 组合式骨科外固定支架 | C95: 个 | D95: 环式外固定架 足踝矫形 | E95: 君泰安德 | F95: 山东君泰安德医疗科技股份有限公司 | G95: 14679.5
A96: 64 | B96: 组合式骨科外固定支架 | C96: 个 | D96: 环式外固定架 六轴矫形架 | E96: 君泰安德 | F96: 山东君泰安德医疗科技股份有限公司 | G96: 15585.9
A97: 65 | B97: 组合式骨科外固定支架 | C97: 个 | D97: 环式外固定架 马蹄足矫形 | E97: 君泰安德 | F97: 山东君泰安德医疗科技股份有限公司 | G97: 13080.1
A98: 66 | B98: 组合式骨科外固定支架 | C98: 个 | D98: 直形杆（管） 外固定器配件 各规格 | E98: 君泰安德 | F98: 山东君泰安德医疗科技股份有限公司 | G98: 896.5
A99: 67 | B99: 组合式骨科外固定支架 | C99: 个 | D99: 管管（杆）夹 外固定器配件 各规格 | E99: 君泰安德 | F99: 山东君泰安德医疗科技股份有限公司 | G99: 1524.6
A100: 68 | B100: 组合式骨科外固定支架 | C100: 个 | D100: 管针夹 外固定器配件 各规格 | E100: 君泰安德 | F100: 山东君泰安德医疗科技股份有限公司 | G100: 1524.6
A101: 69 | B101: 组合式骨科外固定支架 | C101: 个 | D101: 针夹 各规格 | E101: 君泰安德 | F101: 山东君泰安德医疗科技股份有限公司 | G101: 1524.6
A102: 70 | B102: 组合式骨科外固定支架 | C102: 个 | D102: 万向关节 外固定器配件 各规格 | E102: 君泰安德 | F102: 山东君泰安德医疗科技股份有限公司 | G102: 1017.5
A103: 71 | B103: 组合式骨科外固定支架 | C103: 个 | D103: 架体 外固定器配件 各规格 | E103: 君泰安德 | F103: 山东君泰安德医疗科技股份有限公司 | G103: 1917.3
A104: 72 | B104: 组合式骨科外固定支架 | C104: 个 | D104: 加压器 外固定器配件 各规格 | E104: 君泰安德 | F104: 山东君泰安德医疗科技股份有限公司 | G104: 2568.5
A105: 73 | B105: 橄榄针 | C105: 个 | D105: 各规格 | E105: 君泰安德 | F105: 山东君泰安德医疗科技股份有限公司 | G105: 825
A106: 74 | B106: 骨牵引针 | C106: 个 | D106: 各规格 | E106: 君泰安德 | F106: 山东君泰安德医疗科技股份有限公司 | G106: 576
A107: 75 | B107: 骨牵引针 | C107: 个 | D107: 各规格 | E107: 君泰安德 | F107: 山东君泰安德医疗科技股份有限公司 | G107: 894
A108: 91 | B108: 弹性髓内钉 | C108: 个 | D108: 各型号 | E108: 新港骨科 | F108: 焦作市新港医疗设备有限公司 | G108: 1259.6
A109: 142 | B109: 空心钉(钢/钛） | C109: 个 | D109: 单头空心钉：3.5*28-40 | E109: 新港骨科 | F109: 焦作市新港医疗设备有限公司 | G109: 705
A110: 143 | B110: 空心钉(钢/钛） | C110: 个 | D110: 单头空心钉：4.0*30-50 | E110: 新港骨科 | F110: 焦作市新港医疗设备有限公司 | G110: 705
A111: 144 | B111: 空心钉(钢/钛） | C111: 个 | D111: 单头空心钉：4.5*36-60 | E111: 新港骨科 | F111: 焦作市新港医疗设备有限公司 | G111: 705
A112: 145 | B112: 空心钉(钢/钛） | C112: 个 | D112: 单头空心钉：7.3*60-120 | E112: 新港骨科 | F112: 焦作市新港医疗设备有限公司 | G112: 705
A113: 146 | B113: 空心钉(钢/钛） | C113: 个 | D113: 双头加压空心钉：3.0*14-32 | E113: 新港骨科 | F113: 焦作市新港医疗设备有限公司 | G113: 1034
A114: 147 | B114: 空心钉(钢/钛） | C114: 个 | D114: 双头加压空心钉：4.0*26-50 | E114: 新港骨科 | F114: 焦作市新港医疗设备有限公司 | G114: 1034
A115: 148 | B115: 空心钉(钢/钛） | C115: 个 | D115: 双头加压空心钉：6.5*50-120 | E115: 新港骨科 | F115: 焦作市新港医疗设备有限公司 | G115: 1034
A116: 149 | B116: 空心钉(钢/钛） | C116: 个 | D116: 无头加压空心钉：2.5*12-28 | E116: 新港骨科 | F116: 焦作市新港医疗设备有限公司 | G116: 1034
A117: 150 | B117: 空心钉(钢/钛） | C117: 个 | D117: 无头加压空心钉：3.5*28-40 | E117: 新港骨科 | F117: 焦作市新港医疗设备有限公司 | G117: 1034
A118: 151 | B118: 空心钉(钢/钛） | C118: 个 | D118: 无头加压空心钉：3.5*36-60 | E118: 新港骨科 | F118: 焦作市新港医疗设备有限公司 | G118: 1034
A119: 236 | B119: 金属角度型接骨板 | C119: 个 | D119: 股骨近端加压锁定板（内翻截骨100°） | E119: 嘉思特 | F119: 嘉思特华剑医疗器材（天津）有限公司 | G119: 4676.5
A120: 237 | B120: 金属角度型接骨板 | C120: 个 | D120: 股骨近端加压锁定板（内翻截骨110°） | E120: 嘉思特 | F120: 嘉思特华剑医疗器材（天津）有限公司 | G120: 4676.5
A121: 238 | B121: 金属角度型接骨板 | C121: 个 | D121: 股骨近端加压锁定板（内翻截骨120°） | E121: 嘉思特 | F121: 嘉思特华剑医疗器材（天津）有限公司 | G121: 4676.5
A122: 239 | B122: 金属角度型接骨板 | C122: 个 | D122: 股骨近端加压锁定板（内翻截骨150°） | E122: 嘉思特 | F122: 嘉思特华剑医疗器材（天津）有限公司 | G122: 4676.5
A123: 240 | B123: 金属角度型接骨板 | C123: 个 | D123: 小儿骨骺阻滞钛板 2孔标准 | E123: 嘉思特 | F123: 嘉思特华剑医疗器材（天津）有限公司 | G123: 4676.5
A124: 241 | B124: 金属角度型接骨板 | C124: 个 | D124: 小儿骨骺阻滞钛板 2孔弧形 | E124: 嘉思特 | F124: 嘉思特华剑医疗器材（天津）有限公司 | G124: 4676.5
A125: 242 | B125: 金属角度型接骨板 | C125: 个 | D125: 小儿骨骺阻滞钛板 2孔阶梯型 | E125: 嘉思特 | F125: 嘉思特华剑医疗器材（天津）有限公司 | G125: 4676.5
A126: 243 | B126: 金属角度型接骨板 | C126: 个 | D126: 小儿骨骺阻滞钛板 X型4孔 | E126: 嘉思特 | F126: 嘉思特华剑医疗器材（天津）有限公司 | G126: 4676.5
A127: 244 | B127: 金属角度型接骨板 | C127: 个 | D127: 90°股骨远端锁定板 各规格 | E127: 嘉思特 | F127: 嘉思特华剑医疗器材（天津）有限公司 | G127: 4676.5
A128: 261 | B128: 膝关节内固定矫正板 | C128: 个 | D128: 胫骨高位截骨（HTO）锁定金属接骨板 | E128: 嘉思特 | F128: 嘉思特华剑医疗器材（天津）有限公司 | G128: 2585

Sheet 普外胸外（坤泰、申泓）
A1: 普外胸外耗材目录
A2: 编号 | B2: 品名 | C2: 规格型号 | D2: 单位 | E2: 生产厂家 | F2: 单价（元）
A3: 1 | B3: 一次性使用直线型吻（缝）合器 | C3: PYQG-75B PYQG-100B | D3: 把 | E3: 普瑞斯星（常州）医疗器械有限公司 | F3: 2024
A4: 2 | B4: 一次性使用管型消化道吻合器 | C4: PYGX-26 、29、32 | D4: 把 | E4: 普瑞斯星（常州）医疗器械有限公司 | F4: 213.68
A5: 3 | B5: 一次性腔镜trocar | C5: 5M、10M、12M | D5: 把 | E5: 普瑞斯星（常州）医疗器械有限公司 | F5: 29.89
A6: 4 | B6: 一次性使用切口保护套 | C6: 60/70-60/150 、80/90-80/150、150/160-150/250、180/190-180/250 220-250 | D6: 把 | E6: 普瑞斯星（常州）医疗器械有限公司 | F6: 74.5
A7: 5 | B7: 腔镜下阑尾圈套器（可吸收性外科缝线） | C7: 椭圆形AG-5071-241518、AG-5071-241523、AG-5071-242518、AG-5071-242523）,插入部分最大外径≤2.4，电极开幅241518、241523\15mm，242518，242523\25mm | D7: 包 | E7: 山东博达医疗用品有限公司 | F7: 246.4
A8: 6 | B8: 肋骨环抱器 | C8: JLG4H10-45\JLG4H11-45\JLG4H12-45\JLG4H13-45\JLG4H14-45\JLG4H15-45\JLG4H16-45\JLG4H17-45\JLG6H12-65\JLG6H13-65\JLG6H14-65\JLG6H15-65\JLG6H16-65\JLG6H17-65: 常用:JLG4H12-45\JLG4H13-45\JLG4H14-45 | D8: 套 | E8: 重庆欣汶 | F8: 2103.2
A9: 7 | B9: prolene无创血管缝合线 | C9: 6-0/7-0/8-0/9-0 3mm 60cm | D9: 根 | E9: 强生 | F9: 70.4./70.4/74.8/92.4
A10: 8 | B10: 可吸收倒刺线 | C10: 针长：16mm/18/20/22/26/36/40/48mm 针弧:同时包含1/2 3/8 5/8弧 针型：圆针、角针钻石针 线长：14-90cm | D10: 根 | E10: 海南建科药业有限公司 | F10: 580
A11: 9 | B11: 一次性胸腔穿刺管（猪尾巴管） | C11: k1/k4(8# 18# 28#) | D11: 套 | E11: 常州医疗器械总厂 | F11: 338/316
A12: 10 | B12: 腹腔镜纱布 | C12: 20*4cm | D12: 个 | F12: 1.056
A13: 11 | B13: 红黄蓝血管吊带 | C13: 1.5mm*3mm*35cm | D13: 根 | E13: 深圳市医漫科技有限公司 | F13: 48.4
A14: 12 | B14: 透明质酸钠（防黏连） 2ml,3ml,5ml | C14: 2ml,3ml,5ml | D14: 个 | E14: 浙江景嘉医疗科技有限公司 | F14: 158.4/198/246.4
A15: 13 | B15: 医用钢丝 | D15: 根 | E15: 嘉斯特华剑医疗器材（天津）有限公司 | F15: 167.2
A16: 14 | B16: 腔镜取物袋 | C16: 80mm*80mm、120mm*120mm | D16: 个 | E16: 普瑞斯星（常州）医疗器械有限公司 | F16: 189.2
A17: 15 | B17: 一次性无菌腹腔引流导管及附件 | C17: 8Fr-30cm, | D17: 包 | E17: 广东百合 | F17: 1190.4
A18: 16 | B18: T型胆管引流管 | C18: fr14\fr16\fr20 | D18: 支 | E18: 湛江事达 | F18: 9.114
A19: 18 | B19: 疝补片 | C19: 平片、网塞、腔镜下3D补片 | D19: 个 | E19: 平片、网塞、为青岛颐中生物工程有限公司生产。腔镜下3D补片为巴德医疗科技（上海）有限公司生产 | F19: 网塞803.2元
A20: 19 | B20: 大隐静脉剥脱器 | D20: 个 | F20: 362.7
A21: 21 | B21: 乳腺一次性抽吸式穿刺针 | C21: 常规 | D21: 套 | E21: 巴德医疗科技（上海）有限公司 | F21: 604.5
A22: 22 | B22: 甲状腺一次性抽吸式穿刺针 | C22: 常规 | D22: 套 | E22: 巴德医疗科技（上海）有限公司 | F22: 604.5
A23: 24 | B23: 手术止血纱布 | C23: 2*2cm 2.5*5cm 2.5*10cm 3*4cm 6*8cm 10*15cm | D23: 片 | E23: 宁波恒达医疗器械有限公司 | F23: 2*2cm 74.4元 2.5*5cm 93元2.5*10cm 167.4元 3*4cm 93元 6*8cm 279元 10*15cm 372元
A24: 25 | B24: 透明质酸钠（防黏连） | C24: 2ml,3ml,5ml | D24: 个 | E24: 杭州协和医疗用品有限公司 | F24: 167.4/209.25/260.4
A25: 26 | B25: 弹力袜 | C25: 长筒 | D25: 个 | E25: 浙江拓臻医疗科技有限公司 | F25: 223.2
A26: 27 | B26: 弹力袜 | C26: 中筒 | D26: 个 | E26: 浙江拓臻医疗科技有限公司 | F26: 186
A27: 28 | B27: 弹力袜 | C27: 短筒 | D27: 个 | E27: 浙江拓臻医疗科技有限公司 | F27: 167.4

Sheet 检验科（塞力斯、东源、信宏）
A1: 序号 | B1: 产品注册证名称 | C1: 规格型号 | D1: 单位 | E1: 品牌 | F1: 生产企业 | G1: 价格（元）
A2: 1 | B2: 一次性使用人体静脉血样采集容器 | C2: 采血量：1-10ml | D2: 支 | E2: 江苏康捷 | F2: 江苏康捷医疗器械有限公司 | G2: 0.33
A3: 2 | B3: 一次性使用人体静脉血样采集容器 | C3: 采血量：1-10ml | D3: 支 | E3: 江苏康捷 | F3: 江苏康捷医疗器械有限公司 | G3: 0.33
A4: 3 | B4: 一次性使用人体静脉血样采集容器 | C4: 采血量：1-10ml | D4: 支 | E4: 江苏康捷 | F4: 江苏康捷医疗器械有限公司 | G4: 0.33
A5: 4 | B5: 一次性使用人体静脉血样采集容器 | C5: 采血量：1-10ml | D5: 支 | E5: 江苏康捷 | F5: 江苏康捷医疗器械有限公司 | G5: 0.53
A6: 5 | B6: 一次性使用人体静脉血样采集容器 | C6: 采血量：1-10ml | D6: 支 | E6: 江苏康捷 | F6: 江苏康捷医疗器械有限公司 | G6: 0.33
A7: 6 | B7: 一次性使用人体静脉血样采集容器 | C7: 采血量：1-10ml | D7: 支 | E7: 江苏康捷 | F7: 江苏康捷医疗器械有限公司 | G7: 0.33
A8: 8 | B8: 抗缪勒氏管激素检测试剂盒（免疫荧光法） | C8: 25人份 | D8: 人份 | E8: 江苏凯基 | F8: 江苏凯基生物技术股份有限公司 | G8: 110.4
A9: 9 | B9: 一次性使用静脉采血针 | C9: 100/包 | D9: 包 | E9: 江西瑞邦 | F9: 江西瑞邦实业集团有限公司 | G9: 0.2
A10: 10 | B10: D-二聚体（D-Dimer）测定试剂（荧光免疫层析法） | C10: 25人份/盒 | D10: 人份 | E10: 广州万孚 | F10: 广州万孚生物技术股份有限公司 | G10: 41.4
A11: 11 | B11: 超敏C-反应蛋白（hsCRP）测定试剂（荧光免疫层析法）/全程C-反应蛋白（hsCRP+常规CRP）定量检测试剂（免疫层析法） | C11: 25人份/盒/25人份/盒 | D11: 人份 | E11: 广州万孚 | F11: 广州万孚生物技术股份有限公司 | G11: 9.2
A12: 12 | B12: 降钙素原（PCT）测定试剂（荧光免疫层析法） | C12: 25人份/盒 | D12: 人份 | E12: 广州万孚 | F12: 广州万孚生物技术股份有限公司 | G12: 42.32
A13: 13 | B13: 尿微量白蛋白（MAU）测定试剂（荧光免疫层析法） | C13: 25人份/盒 | D13: 人份 | E13: 广州万孚 | F13: 广州万孚生物技术股份有限公司 | G13: 12.88
A14: 14 | B14: 肌钙蛋白T（TnT）测定试剂（荧光免疫层析一步法） | C14: 25人份/盒 | D14: 人份 | E14: 广州万孚 | F14: 广州万孚生物技术股份有限公司 | G14: 55.2
A15: 15 | B15: 心肌肌钙蛋白I/肌酸激酶同工酶/肌红蛋白定量联检试剂（免疫荧光层析法） | C15: 25人份/盒 | D15: 人份 | E15: 广州万孚 | F15: 广州万孚生物技术股份有限公司 | G15: 105.8
A16: 16 | B16: N末端B型钠尿肽原（NT-proBNP）定量检测试剂（免疫荧光层析法） | C16: 25人份/盒 | D16: 人份 | E16: 广州万孚 | F16: 广州万孚生物技术股份有限公司 | G16: 90.16
A17: 17 | B17: 血清淀粉样蛋白A（SAA）测定试剂（荧光免疫层析法） | C17: 25人份/盒 | D17: 人份 | E17: 广州万孚 | F17: 广州万孚生物技术股份有限公司 | G17: 12.88
A18: 18 | B18: 中枢神经特异蛋白（S100β）测定试剂（荧光免疫层析法） | C18: 25人份/盒 | D18: 人份 | E18: 广州万孚 | F18: 广州万孚生物技术股份有限公司 | G18: 71.76
A19: 19 | B19: 胎盘生长因子/可溶性fms样酪氨酸激酶-1检测试剂盒（免疫荧光法） | C19: 25人份/盒 | D19: 人份 | E19: 江苏凯基 | F19: 江苏凯基生物技术股份有限公司 | G19: 126.96
A20: 20 | B20: 血栓弹力图（普通杯）检测试剂盒（粘度测定法） | C20: 10人份/盒 | D20: 盒 | E20: 北京乐普 | F20: 北京乐普诊断科技股份有限公司 | G20: 137.08
A21: 21 | B21: 血栓弹力图（肝素酶杯）检测试剂盒（粘度测定法） | C21: 5人份/盒 | D21: 盒 | E21: 北京乐普 | F21: 北京乐普诊断科技股份有限公司 | G21: 257.6
A22: 22 | B22: 血小板聚集功能（AA途径）检测试剂盒（粘度测定法） | C22: 1人份/盒 | D22: 盒 | E22: 北京乐普 | F22: 北京乐普诊断科技股份有限公司 | G22: 414
A23: 23 | B23: 血小板聚集功能（ADP途径）检测试剂盒（粘度测定法） | C23: 1人份/盒 | D23: 盒 | E23: 北京乐普 | F23: 北京乐普诊断科技股份有限公司 | G23: 414
A24: 24 | B24: 血小板聚集功能（ADP及AA途径）检测试剂盒（粘度测定法） | C24: 1人份/盒 | D24: 盒 | E24: 北京乐普 | F24: 北京乐普诊断科技股份有限公司 | G24: 533.6
A25: 25 | B25: 中枢神经特异蛋白（S100β）测定试剂（荧光免疫层析法） | C25: 25人份/盒 | D25: 人份 | E25: 广州万孚 | F25: 广州万孚生物技术股份有限公司 | G25: 81.88
A26: 26 | B26: 尿试纸条 | C26: 型号：URIT 11F/12F 100条/筒 | D26: 筒 | E26: 优利特 | F26: 桂林优利特医疗电子有限公司 | G26: 147.2
A27: 27 | B27: 清洗液 | C27: 型号：URIT D 22；规格：1L | D27: 桶 | E27: 优利特 | F27: 桂林优利特医疗电子有限公司 | G27: 460
A28: 28 | B28: 血细胞分析用染色液 Fluorocell WNR | C28: 82mlx2 | D28: 盒 | E28: 希森美康 | F28: Sysmex Corporation | G28: 4002
A29: 29 | B29: 血细胞分析用染色液 Fluoroc ell WDF | C29: 42mlx2 | D29: 盒 | E29: 希森美康 | F29: Sysmex Corporation | G29: 4002
A30: 30 | B30: 血细胞分析用溶血剂 Lysercell WNR | C30: 4Lx2 | D30: 盒 | E30: 希森美康 | F30: Sysmex Corporation | G30: 2024
A31: 31 | B31: 血细胞分析用溶血剂Lysercell WDF | C31: 4Lx2 | D31: 盒 | E31: 希森美康 | F31: Sysmex Corporation | G31: 1610
A32: 32 | B32: 血细胞分析用溶血剂Sulfolyser | C32: 1.5Lx2 | D32: 盒 | E32: 希森美康 | F32: Sysmex Corporation | G32: 1840
A33: 33 | B33: 清洁液 | C33: 50mlx2 | D33: 盒 | E33: 希森美康 | F33: Sysmex Corporation | G33: 1196
A34: 34 | B34: 血细胞分析用稀释液 | C34: 20L/箱 DCL-300A | D34: 箱 | E34: 希森美康 | F34: 济南希森美康医用电子有限公司 | G34: 216.2
A35: 35 | B35: 血液分析仪用质控品 | C35: 3ml/瓶 | D35: 瓶 | E35: 希森美康 | F35: 希森美康株式会社 SYSMEX CORPORATION | G35: 874.92
A36: 53 | B36: 冲洗液 | C36: 4L | D36: 盒 | E36: 上海太阳 | F36: 上海太阳生物技术有限公司 | G36: 506
A37: 54 | B37: 清洁液A | C37: 500ml | D37: 盒 | E37: 上海太阳 | F37: 上海太阳生物技术有限公司 | G37: 239.2
A38: 55 | B38: 清洁液B | C38: 80ml/瓶 | D38: 盒 | E38: 上海太阳 | F38: 上海太阳生物技术有限公司 | G38: 156.4
A39: 56 | B39: 凝血酶原时间（PT）测定试剂盒（冻干型）（凝固法） | C39: 10*8.0ml | D39: 盒 | E39: 上海太阳 | F39: 上海太阳生物技术有限公司 | G39: 931.04
A40: 57 | B40: 活化部分凝血活酶时间（APTT）测定试剂盒（冻干型白陶土）（凝固法） | C40: 4mlx10 | D40: 盒 | E40: 上海太阳 | F40: 上海太阳生物技术有限公司 | G40: 632.96
A41: 58 | B41: 凝血酶时间（TT）测定试剂盒（冻干型）（凝固法） | C41: 5mlx10 | D41: 盒 | E41: 上海太阳 | F41: 上海太阳生物技术有限公司 | G41: 1092.96
A42: 59 | B42: 纤维蛋白原（FIB）测定试剂盒（冻干型）（凝固法） | C42: 2mlx10 | D42: 盒 | E42: 上海太阳 | F42: 上海太阳生物技术有限公司 | G42: 1380
A43: 60 | B43: D-二聚体（D-Dimer）测定试剂盒（胶乳免疫比浊法） | C43: R1：3mlx5；R2：3mlx5；稀释液：55ml | D43: 盒 | E43: 上海太阳 | F43: 上海太阳生物技术有限公司 | G43: 4692
A44: 61 | B44: 纤维蛋白（原）降解产物（FDP）测定试剂盒（胶乳免疫比浊法） | C44: R1：3mlx5；R2：3mlx5；稀释液：55ml | D44: 盒 | E44: 上海太阳 | F44: 上海太阳生物技术有限公司 | G44: 2576
A45: 62 | B45: 纤维蛋白（原）降解产物质控品 | C45: 低值：5*.5ml；高值：5*0.5ml | D45: 盒 | E45: 上海太阳 | F45: 上海太阳生物技术有限公司 | G45: 368
A46: 63 | B46: 定标液 | C46: 1mlx10 | D46: 盒 | E46: 上海太阳 | F46: 上海太阳生物技术有限公司 | G46: 0
A47: 64 | B47: 血凝杯 | C47: 4孔*100*10 | D47: 箱 | E47: 上海太阳 | F47: 上海太阳生物技术有限公司 | G47: 0.55
A48: 154 | B48: 甲胎蛋白检测试剂盒（电化学发光法） | C48: 100T/盒 | D48: 盒 | E48: 罗氏 | F48: Roche Diagnostics GmbH | G48: 1397.48
A49: 155 | B49: 癌胚抗原测定试剂盒（电化学发光法） | C49: 100T/盒 | D49: 盒 | E49: 罗氏 | F49: Roche Diagnostics GmbH | G49: 1397.48
A50: 156 | B50: 糖类抗原19-9测定试剂盒（电化学发光法） | C50: 100T/盒 | D50: 盒 | E50: 罗氏 | F50: Roche Diagnostics GmbH | G50: 2975.28
A51: 157 | B51: 糖类抗原125检测试剂盒（电化学发光法） | C51: 100T/盒 | D51: 盒 | E51: 罗氏 | F51: 罗氏诊断公司Roche Diagnostics GmbH | G51: 2975.28
A52: 158 | B52: 糖类抗原15-3测定试剂盒（电化学发光法） | C52: 100T/盒 | D52: 盒 | E52: 罗氏 | F52: Roche Diagnostics GmbH | G52: 2569.56
A53: 159 | B53: 糖类抗原72-4测定试剂盒（电化学发光法） | C53: 100T/盒 | D53: 盒 | E53: 罗氏 | F53: Roche Diagnostics GmbH | G53: 3200.68
A54: 160 | B54: 神经元特异性烯醇化酶测定试剂盒（电化学发光法） | C54: 100T/盒 | D54: 盒 | E54: 罗氏 | F54: Roche Diagnostics GmbH | G54: 2930.2
A55: 161 | B55: S100检测试剂盒（电化学发光法） | C55: 100T/盒 | D55: 盒 | E55: 罗氏 | F55: 罗氏诊断公司Roche Diagnostics GmbH | G55: 10368.4
A56: 162 | B56: 非小细胞肺癌相关抗原 21-1定量测定试剂盒（电化学发光法） | C56: 100T/盒 | D56: 盒 | E56: 罗氏 | F56: Roche Diagnostics GmbH | G56: 3561.32
A57: 163 | B57: 总前列腺特异性抗原(PSA)测定试剂盒（电化学发光法） | C57: 100T/盒 | D57: 盒 | E57: 罗氏 | F57: Roche Diagnostics GmbH | G57: 3020.36
A58: 164 | B58: 人附睾蛋白4检测试剂盒（电化学发光法） | C58: 100T/盒 | D58: 盒 | E58: 罗氏 | F58: 罗氏诊断公司Roche Diagnostics GmbH | G58: 3786.72
A59: 165 | B59: 胃泌素释放肽前体检测试剂盒（电化学发光法） | C59: 100T/盒 | D59: 盒 | E59: 罗氏 | F59: Roche Diagnostics GmbH | G59: 3561.32
A60: 166 | B60: 游离前列腺特异性抗原测定试剂盒（电化学发光法） | C60: 100T/盒 | D60: 盒 | E60: 罗氏 | F60: Roche Diagnostics GmbH | G60: 3155.6
A61: 167 | B61: 鳞状上皮细胞癌抗原检测试剂盒（电化学发光法） | C61: 100T/盒 | D61: 盒 | E61: 罗氏 | F61: Roche Diagnostics GmbH | G61: 3110.52
A62: 168 | B62: 总前列腺特异性抗原（PSA）测定试剂盒（电化学发光法） | C62: 200T/盒 | D62: 盒 | E62: 罗氏 | F62: Roche Diagnostics GmbH | G62: 5589.92
A63: 169 | B63: 三碘甲状腺原氨酸检测试剂盒（电化学发光法） | C63: 200T/盒 | D63: 盒 | E63: 罗氏 | F63: Roche Diagnostics GmbH | G63: 1848.28
A64: 170 | B64: 甲状腺素检测试剂盒（电化学发光法） | C64: 200T/盒 | D64: 盒 | E64: 罗氏 | F64: Roche Diagnostics GmbH | G64: 1848.28
A65: 171 | B65: 促甲状腺激素检测试剂盒（电化学发光法） | C65: 200T/盒 | D65: 盒 | E65: 罗氏 | F65: Roche Diagnostics GmbH | G65: 1848.28
A66: 172 | B66: 游离三碘甲状腺原氨酸检测试剂盒（电化学发光法） | C66: 200T/盒 | D66: 盒 | E66: 罗氏 | F66: Roche Diagnostics GmbH | G66: 1848.28
A67: 173 | B67: 游离甲状腺素检测试剂盒（电化学发光法） | C67: 200T/盒 | D67: 盒 | E67: 罗氏 | F67: Roche Diagnostics GmbH | G67: 1848.28
A68: 174 | B68: 抗甲状腺过氧化物酶抗体检测试剂盒（电化学发光法） | C68: 100T/盒 | D68: 盒 | E68: 罗氏 | F68: Roche Diagnostics GmbH | G68: 1532.72
A69: 175 | B69: 促甲状腺激素受体抗体检测试剂盒（电化学发光法） | C69: 100T/盒 | D69: 盒 | E69: 罗氏 | F69: Roche Diagnostics GmbH | G69: 3155.6
A70: 176 | B70: 甲状腺球蛋白核实试剂 | C70: 50T/盒 | D70: 盒 | E70: 罗氏 | F70: 罗氏诊断公司Roche Diagnostics GmbH | G70: 1487.64
A71: 177 | B71: 甲状腺球蛋白抗体检测试剂盒（电化学发光法） | C71: 100T/盒 | D71: 盒 | E71: 罗氏 | F71: Roche Diagnostics GmbH | G71: 1532.72
A72: 178 | B72: 乙型肝炎病毒表面抗原测定试剂盒（电化学发光法） | C72: 100T/盒 | D72: 盒 | E72: 罗氏 | F72: Roche Diagnostics GmbH | G72: 991.76
A73: 179 | B73: 乙型肝炎病毒表面抗体检测试剂盒（电化学发光法） | C73: 100T/盒 | D73: 盒 | E73: 罗氏 | F73: Roche Diagnostics GmbH | G73: 991.76
A74: 180 | B74: 乙型肝炎病毒e抗原检测试剂盒（电化学发光法） | C74: 100T/盒 | D74: 盒 | E74: 罗氏 | F74: 罗氏诊断公司Roche Diagnostics GmbH | G74: 991.76
A75: 181 | B75: 乙型肝炎病毒e抗体检测试剂盒（电化学发光法） | C75: 100T/盒 | D75: 盒 | E75: 罗氏 | F75: 罗氏诊断公司Roche Diagnostics GmbH | G75: 991.76
A76: 182 | B76: 乙型肝炎病毒核心抗体检测试剂盒（电化学发光法） | C76: 100T/盒 | D76: 盒 | E76: 罗氏 | F76: Roche Diagnostics GmbH | G76: 991.76
A77: 183 | B77: 丙型肝炎病毒抗体检测试剂盒（电化学发光法） | C77: 100T/盒 | D77: 盒 | E77: 罗氏 | F77: 罗氏诊断公司Roche Diagnostics GmbH | G77: 3561.32
A78: 184 | B78: 梅毒螺旋体抗体检测试剂盒（电化学发光法） | C78: 100T/盒 | D78: 盒 | E78: 罗氏 | F78: 罗氏诊断公司Roche Diagnostics GmbH | G78: 1758.12
A79: 185 | B79: 人类免疫缺陷病毒抗体和抗原（P24）检测试剂盒（电化学发光法） | C79: 100T/盒 | D79: 盒 | E79: 罗氏 | F79: 罗氏诊断公司Roche Diagnostics GmbH | G79: 1758.12
A80: 186 | B80: 甲型肝炎病毒抗体（IgM）检测试剂盒（电化学发光法） | C80: 100 tests | D80: 盒 | E80: 罗氏 | F80: Roche Diagnostics GmbH | G80: 1487.64
A81: 187 | B81: 降钙素检测试剂盒（电化学发光法） | C81: 100T/盒 | D81: 盒 | E81: 罗氏 | F81: Roche Diagnostics GmbH | G81: 2704.8
A82: 188 | B82: 雌二醇检测试剂盒（电化学发光法） | C82: 100T/盒 | D82: 盒 | E82: 罗氏 | F82: 罗氏诊断公司Roche Diagnostics GmbH | G82: 1758.12
A83: 189 | B83: 促卵泡成熟激素检测试剂盒（电化学发光法） | C83: 100T/盒 | D83: 盒 | E83: 罗氏 | F83: Roche Diagnostics GmbH | G83: 1758.12
A84: 190 | B84: 催乳素检测试剂盒（电化学发光法） | C84: 100T/盒 | D84: 盒 | E84: 罗氏 | F84: Roche Diagnostics GmbH | G84: 1758.12
A85: 191 | B85: 孕酮检测试剂盒（电化学发光法） | C85: 100T/盒 | D85: 盒 | E85: 罗氏 | F85: Roche Diagnostics GmbH | G85: 1758.12
A86: 192 | B86: 睾酮检测试剂盒（电化学发光法） | C86: 100T/盒 | D86: 盒 | E86: 罗氏 | F86: Roche Diagnostics GmbH | G86: 1758.12
A87: 193 | B87: 黄体生成素激素检测试剂盒（电化学发光法） | C87: 100T/盒 | D87: 盒 | E87: 罗氏 | F87: Roche Diagnostics GmbH | G87: 1758.12
A88: 194 | B88: 抗缪勒管激素检测试剂盒（电化学发光法） | C88: 100T/盒 | D88: 盒 | E88: 罗氏 | F88: 罗氏诊断公司Roche Diagnostics GmbH | G88: 11540.48
A89: 195 | B89: 绒毛膜促性腺激素及β亚单位检测试剂盒（电化学发光法） | C89: 100T/盒 | D89: 盒 | E89: 罗氏 | F89: Roche Diagnostics GmbH | G89: 1758.12
A90: 196 | B90: 绒毛膜促性腺激素检测试剂盒（电化学发光法） | C90: 100T/盒 | D90: 盒 | E90: 罗氏 | F90: Roche Diagnostics GmbH | G90: 1758.12
A91: 197 | B91: 促肾上腺皮质激素检测试剂盒（电化学发光法） | C91: 100T/盒 | D91: 盒 | E91: 罗氏 | F91: 罗氏诊断公司Roche Diagnostics GmbH | G91: 3651.48
A92: 198 | B92: 皮质醇检测试剂盒（电化学发光法） | C92: 100T/盒 | D92: 盒 | E92: 罗氏 | F92: Roche Diagnostics GmbH | G92: 2794.96
A93: 199 | B93: 人生长激素检测试剂盒（电化学发光法） | C93: 100T/盒 | D93: 盒 | E93: 罗氏 | F93: Roche Diagnostics GmbH | G93: 1803.2
A94: 200 | B94: 游离β-人绒毛膜促性腺激素检测试剂盒（电化学发光法） | C94: 100T/盒 | D94: 盒 | E94: 罗氏 | F94: 罗氏诊断公司Roche Diagnostics GmbH | G94: 2524.48
A95: 201 | B95: 妊娠相关血浆蛋白A检测试剂盒（电化学发光法） | C95: 100T/盒 | D95: 盒 | E95: 罗氏 | F95: 罗氏诊断公司Roche Diagnostics GmbH | G95: 2659.72
A96: 202 | B96: 胎盘生长因子检测试剂盒（电化学发光法） | C96: 100T/盒 | D96: 盒 | E96: 罗氏 | F96: 罗氏诊断公司Roche Diagnostics GmbH | G96: 12171.6
A97: 203 | B97: 性激素结合球蛋白检测试剂盒（电化学发光法） | C97: 100T/盒 | D97: 盒 | E97: 罗氏 | F97: Roche Diagnostics GmbH | G97: 2749.88
A98: 204 | B98: 可溶性fms样酪氨酸激酶-1检测试剂盒（电化学发光法） | C98: 100T/盒 | D98: 盒 | E98: 罗氏 | F98: 罗氏诊断公司Roche Diagnostics GmbH | G98: 12171.6
A99: 205 | B99: 硫酸脱氢表雄甾酮检测试剂盒（电化学发光法） | C99: 100T/盒 | D99: 盒 | E99: 罗氏 | F99: Roche Diagnostics GmbH | G99: 2930.2
A100: 206 | B100: 肌酸激酶同工酶检测试剂盒（电化学发光法） | C100: 100 tests | D100: 盒 | E100: 罗氏 | F100: Roche Diagnostics GmbH | G100: 1487.64
A101: 207 | B101: 肌酸激酶同工酶检测试剂盒（电化学发光法） | C101: 100 tests | D101: 盒 | E101: 罗氏 | F101: 罗氏诊断公司Roche Diagnostics GmbH | G101: 1487.64
A102: 208 | B102: 肌红蛋白检测试剂盒（电化学发光法） | C102: 100 tests | D102: 盒 | E102: 罗氏 | F102: 罗氏诊断公司Roche Diagnostics GmbH | G102: 2659.72
A103: 209 | B103: 肌红蛋白检测试剂盒（电化学发光法） | C103: 100 tests | D103: 盒 | E103: 罗氏 | F103: Roche Diagnostics GmbH | G103: 2659.72
A104: 210 | B104: 高敏肌钙蛋白T检测试剂盒（电化学发光法） | C104: 200 tests | D104: 盒 | E104: 罗氏 | F104: 罗氏诊断公司Roche Diagnostics GmbH | G104: 5589.92
A105: 211 | B105: 高敏肌钙蛋白T检测试剂盒（电化学发光法） | C105: 100 tests | D105: 盒 | E105: 罗氏 | F105: 罗氏诊断公司Roche Diagnostics GmbH | G105: 2840.04
A106: 212 | B106: 脑利钠肽前体检测试剂盒（电化学发光法） | C106: 100 tests | D106: 盒 | E106: 罗氏 | F106: Roche Diagnostics GmbH | G106: 10819.2
A107: 213 | B107: 脑利钠肽前体检测试剂盒（电化学发光法） | C107: 100 tests | D107: 盒 | E107: 罗氏 | F107: 罗氏诊断公司Roche Diagnostics GmbH | G107: 10819.2
A108: 214 | B108: 洋地黄毒苷检测试剂盒（电化学发光法） | C108: 100 tests | D108: 盒 | E108: 罗氏 | F108: Roche Diagnostics GmbH | G108: 2840.04
A109: 215 | B109: 地高辛检测试剂盒（电化学发光法） | C109: 100 tests | D109: 盒 | E109: 罗氏 | F109: Roche Diagnostics GmbH | G109: 2840.04
A110: 216 | B110: 骨钙素检测试剂盒（电化学发光法） | C110: 100 tests | D110: 盒 | E110: 罗氏 | F110: Roche Diagnostics GmbH | G110: 2840.04
A111: 217 | B111: β－胶原特殊序列检测试剂盒（电化学发光法） | C111: 100 tests | D111: 盒 | E111: 罗氏 | F111: 罗氏诊断公司Roche Diagnostics GmbH | G111: 2840.04
A112: 218 | B112: 甲状旁腺素检测试剂盒（电化学发光法） | C112: 100 tests | D112: 盒 | E112: 罗氏 | F112: Roche Diagnostics GmbH | G112: 3561.32
A113: 219 | B113: 甲状旁腺素检测试剂盒（电化学发光法） | C113: 100 tests | D113: 盒 | E113: 罗氏 | F113: 罗氏诊断公司Roche Diagnostics GmbH | G113: 3561.32
A114: 220 | B114: 总 I 型胶原氨基端延长肽检测试剂盒（电化学发光法） | C114: 100 tests | D114: 盒 | E114: 罗氏 | F114: 罗氏诊断公司Roche Diagnostics GmbH | G114: 3786.72
A115: 221 | B115: 25-羟基维生素D检测试剂盒（电化学发光法） | C115: 100 tests | D115: 盒 | E115: 罗氏 | F115: 罗氏诊断公司Roche Diagnostics GmbH | G115: 3561.32
A116: 222 | B116: C肽检测试剂盒（电化学发光法） | C116: 100 tests | D116: 盒 | E116: 罗氏 | F116: Roche Diagnostics GmbH | G116: 1729.97
A117: 223 | B117: 胰岛素检测试剂盒（电化学发光法） | C117: 100 tests | D117: 盒 | E117: 罗氏 | F117: 罗氏诊断公司Roche Diagnostics GmbH | G117: 1496.66
A118: 224 | B118: 红细胞内叶酸检测试剂盒（电化学发光法） | C118: 100 tests | D118: 盒 | E118: 罗氏 | F118: 罗氏诊断公司Roche Diagnostics GmbH | G118: 2659.72
A119: 225 | B119: 样本释放剂 | C119: 4*200 mL | D119: 盒 | E119: 罗氏 | F119: Roche Diagnostics GmbH | G119: 2659.72
A120: 226 | B120: 铁蛋白检测试剂盒（电化学发光法） | C120: 100 tests | D120: 盒 | E120: 罗氏 | F120: Roche Diagnostics GmbH | G120: 1577.8
A121: 227 | B121: 维生素B12检测试剂盒（电化学发光法） | C121: 100 tests | D121: 盒 | E121: 罗氏 | F121: Roche Diagnostics GmbH | G121: 2659.72
A122: 228 | B122: 叶酸检测试剂盒（电化学发光法） | C122: 100 tests | D122: 盒 | E122: 罗氏 | F122: 罗氏诊断公司Roche Diagnostics GmbH | G122: 2659.72
A123: 229 | B123: 抗环瓜氨酸肽抗体 | C123: 100 tests | E123: 与现在科室使用的相同 | F123: 与现在科室使用的相同 | G123: 4372.76
B124: Elecsys Anti-CCP
A125: 230 | B125: 白介素6检测试剂盒（电化学发光法） | C125: 100 tests | D125: 盒 | E125: 罗氏 | F125: 罗氏诊断公司Roche Diagnostics GmbH | G125: 2930.2
A126: 231 | B126: 降钙素原检测试剂盒（电化学发光法） | C126: 100 tests | D126: 盒 | E126: 罗氏 | F126: 罗氏诊断公司Roche Diagnostics GmbH | G126: 5860.4
A127: 232 | B127: I型单纯疱疹病毒IgG检测试剂盒（电化学发光法） | C127: 100 tests | D127: 盒 | E127: 罗氏 | F127: Roche Diagnostics GmbH | G127: 1487.64
A128: 233 | B128: II型单纯疱疹病毒IgG检测试剂盒（电化学发光法） | C128: 100 tests | D128: 盒 | E128: 罗氏 | F128: Roche Diagnostics GmbH | G128: 1487.64
A129: 234 | B129: 风疹病毒IgG抗体检测试剂盒（电化学发光法） | C129: 100 tests | D129: 盒 | E129: 罗氏 | F129: 罗氏诊断公司Roche Diagnostics GmbH | G129: 1487.64
A130: 235 | B130: 风疹病毒IgM抗体检测试剂盒（电化学发光法） | C130: 100 tests | D130: 盒 | E130: 罗氏 | F130: 罗氏诊断公司Roche Diagnostics GmbH | G130: 1487.64
A131: 236 | B131: 弓形虫IgG抗体检测试剂盒（电化学发光法） | C131: 100 tests | D131: 盒 | E131: 罗氏 | F131: 罗氏诊断公司Roche Diagnostics GmbH | G131: 1487.64
A132: 237 | B132: 弓形虫IgM抗体检测试剂盒（电化学发光法） | C132: 100 tests | D132: 盒 | E132: 罗氏 | F132: 罗氏诊断公司Roche Diagnostics GmbH | G132: 1487.64
A133: 238 | B133: 巨细胞病毒 IgG抗体检测试剂盒（电化学发光法） | C133: 100 tests | D133: 盒 | E133: 罗氏 | F133: Roche Diagnostics GmbH | G133: 1487.64
A134: 239 | B134: 巨细胞病毒 IgM抗体检测试剂盒（电化学发光法） | C134: 100 tests | D134: 盒 | E134: 罗氏 | F134: Roche Diagnostics GmbH | G134: 1487.64
A135: 240 | B135: 巨细胞病毒IgG抗体亲和力检测试剂盒(电化学发光法)Elecsys CMV IgG Avidity | C135: 100 tests | D135: 盒 | E135: 罗氏 | F135: 罗氏诊断公司Roche Diagnostics GmbH | G135: 3245.76
A136: 241 | B136: 弓形虫IgG抗体亲和力检测试剂盒（电化学发光法） | C136: 100 tests | D136: 盒 | E136: 罗氏 | F136: Roche Diagnostics GmbH | G136: 3245.76
A137: 242 | B137: 环孢霉素检测试剂盒（电化学发光法） | C137: 100 tests | D137: 盒 | E137: 罗氏 | F137: Roche Diagnostics GmbH
A138: 243 | B138: 他克莫司检测试剂盒（电化学发光法） | C138: 100 tests | D138: 盒 | E138: 罗氏 | F138: Roche Diagnostics GmbH
A139: 244 | B139: 促肾上腺皮质激素定标液 | C139: 4x1.0 mL | D139: 盒 | E139: 罗氏 | F139: 罗氏诊断公司Roche Diagnostics GmbH | G139: 1893.36
A140: 245 | B140: 甲胎蛋白定标液 | C140: 4x1.0 mL | D140: 盒 | E140: 罗氏 | F140: Roche Diagnostics GmbH罗氏诊断公司 | G140: 1622.88
A141: 246 | B141: 维生素B12定标液 | C141: 4x1.0 mL（冻干品复溶体积） | D141: 盒 | E141: 罗氏 | F141: Roche Diagnostics GmbH | G141: 1172.08
A142: 247 | B142: C-肽定标液 | C142: 4x1.0 mL | D142: 盒 | E142: 罗氏 | F142: 罗氏诊断公司Roche Diagnostics GmbH | G142: 1160.4
A143: 248 | B143: 糖类抗原125定标液 | C143: 4x1.0 mL | D143: 盒 | E143: 罗氏 | F143: 罗氏诊断公司Roche Diagnostics GmbH | G143: 1622.88
A144: 249 | B144: 糖类抗原15-3定标液 | C144: 4x1.0 mL | D144: 盒 | E144: 罗氏 | F144: Roche Diagnostics GmbH | G144: 1622.88
A145: 250 | B145: 糖类抗原19-9定标液 | C145: 4x1.0 mL | D145: 盒 | E145: 罗氏 | F145: Roche Diagnostics GmbH罗氏诊断公司 | G145: 1622.88
A146: 251 | B146: 糖类抗原72-4定标液 | C146: 4x1.0 mL | D146: 盒 | E146: 罗氏 | F146: Roche Diagnostics GmbH | G146: 1622.88
A147: 252 | B147: 癌胚抗原定标液 | C147: 4x1.0 mL | D147: 盒 | E147: 罗氏 | F147: Roche Diagnostics GmbH | G147: 1622.88
A148: 253 | B148: 非小细胞肺癌相关抗原21-1定标液 | C148: 4x1.0 mL | D148: 盒 | E148: 罗氏 | F148: Roche Diagnostics GmbH | G148: 1126.08
A149: 254 | B149: 硫酸脱氢表雄酮定标液 | C149: 4x1.0 mL | D149: 盒 | E149: 罗氏 | F149: 罗氏诊断公司Roche Diagnostics GmbH
A150: 255 | B150: 卵泡刺激素定标液 | C150: 4x1.0 mL | D150: 盒 | E150: 罗氏 | F150: Roche Diagnostics GmbH
A151: 256 | B151: 游离三碘甲状腺原氨酸定标液 | C151: 4x1.0 mL | D151: 盒 | E151: 罗氏 | F151: Roche Diagnostics GmbH | G151: 1322.68
A152: 257 | B152: 游离甲状腺素定标液 | C152: 4x1.0 mL | D152: 盒 | E152: 罗氏 | F152: 罗氏诊断公司Roche Diagnostics GmbH | G152: 1322.68
A153: 258 | B153: 绒毛膜促性腺激素定标液 | C153: 4x1.0 mL | D153: 盒 | E153: 罗氏 | F153: 罗氏诊断公司Roche Diagnostics GmbH | G153: 1168.49
A154: 259 | B154: 人绒毛膜促性腺激素定标液 | C154: 4x1.0 mL | D154: 盒 | E154: 罗氏 | F154: 罗氏诊断公司Roche Diagnostics GmbH | G154: 856.52
A155: 260 | B155: 免疫球蛋白E定标液 | C155: 4x1.0 mL | D155: 盒 | E155: 罗氏 | F155: Roche Diagnostics GmbH | G155: 991.76
A156: 261 | B156: 神经元特异性烯醇化酶定标液 | C156: 4x1.0 mL | D156: 盒 | E156: 罗氏 | F156: Roche Diagnostics GmbH罗氏诊断公司 | G156: 1622.88
A157: 262 | B157: 总I型胶原氨基端延长肽定标液 | C157: 4x1.0 mL | D157: 盒 | E157: 罗氏 | F157: 罗氏诊断公司Roche Diagnostics GmbH | G157: 1622.88
A158: 263 | B158: S100 定标液 | C158: 4x1.0 mL | D158: 盒 | E158: 罗氏 | F158: 罗氏诊断公司Roche Diagnostics GmbH | G158: 1803.2
A159: 264 | B159: 性激素结合球蛋白定标液 | C159: 4x1.0 mL | D159: 盒 | E159: 罗氏 | F159: Roche Diagnostics GmbH | G159: 1172.08
A160: 265 | B160: 三碘甲状腺原氨酸定标液 | C160: 4x1.0 mL | D160: 盒 | E160: 罗氏 | F160: 罗氏诊断公司Roche Diagnostics GmbH | G160: 1322.68
A161: 266 | B161: 甲状腺素定标液 | C161: 4x1.0 mL | D161: 盒 | E161: 罗氏 | F161: 罗氏诊断公司Roche Diagnostics GmbH | G161: 1322.68
A162: 267 | B162: β－胶原特殊序列定标液 | C162: 4x1.0 mL | D162: 盒 | E162: 罗氏 | F162: 罗氏诊断公司Roche Diagnostics GmbH | G162: 1262.24
A163: 268 | B163: 白介素6定标液 | C163: 4x2.0 mL | D163: 盒 | E163: 罗氏 | F163: 罗氏诊断公司Roche Diagnostics GmbH | G163: 1262.24
A164: 269 | B164: 高敏肌钙蛋白T定标液 | C164: 4x1.0 mL | D164: 盒 | E164: 罗氏 | F164: Roche Diagnostics GmbH | G164: 1172.08
A165: 270 | B165: 雌二醇定标液 | C165: 4x1.0 mL | D165: 盒 | E165: 罗氏 | F165: 罗氏诊断公司Roche Diagnostics GmbH | G165: 856.52
A166: 271 | B166: 促甲状腺素定标液 | C166: 4x1.3 mL | D166: 盒 | E166: 罗氏 | F166: 罗氏诊断公司Roche Diagnostics GmbH | G166: 1172.08
A167: 272 | B167: 催乳素定标液 | C167: 4x1.0 mL | D167: 盒 | E167: 罗氏 | F167: Roche Diagnostics GmbH | G167: 991.76
A168: 273 | B168: 地高辛定标液 | C168: 4x1.5 mL | D168: 盒 | E168: 罗氏 | F168: Roche Diagnostics GmbH | G168: 1172.08
A169: 274 | B169: 睾酮定标液 | C169: 4x1.0 mL | D169: 盒 | E169: 罗氏 | F169: 罗氏诊断公司Roche Diagnostics GmbH | G169: 991.76
A170: 275 | B170: 骨钙素定标液 | C170: 4x1.0 mL | D170: 盒 | E170: 罗氏 | F170: 罗氏诊断公司Roche Diagnostics GmbH | G170: 1307.32
A171: 276 | B171: 红细胞内叶酸定标液 | C171: 4 x 1.0 mL | D171: 盒 | E171: 罗氏 | F171: 罗氏诊断公司Roche Diagnostics GmbH | G171: 1081.92
A172: 277 | B172: 黄体生成素定标液 | C172: 4 x 1.0 mL | D172: 盒 | E172: 罗氏 | F172: 罗氏诊断公司Roche Diagnostics GmbH | G172: 946.68
A173: 278 | B173: 肌红蛋白定标液 | C173: 4x1.0 mL | D173: 盒 | E173: 罗氏 | F173: Roche Diagnostics GmbH | G173: 1172.08
A174: 279 | B174: 肌红蛋白定标液 | C174: 4x1.0 mL | D174: 盒 | E174: 罗氏 | F174: Roche Diagnostics GmbH | G174: 1172.08
A175: 280 | B175: 肌酸激酶-MB同功酶定标液 | C175: 4x1.0 mL | D175: 盒 | E175: 罗氏 | F175: Roche Diagnostics GmbH | G175: 946.68
A176: 281 | B176: 肌酸激酶-MB同功酶定标液 | C176: 4x1.0 mL | D176: 盒 | E176: 罗氏 | F176: 罗氏诊断公司Roche Diagnostics GmbH | G176: 946.68
A177: 282 | B177: 高敏肌钙蛋白T定标液 | C177: 4x1.0 mL | D177: 盒 | E177: 罗氏 | F177: 罗氏诊断公司Roche Diagnostics GmbH | G177: 1172.08
A178: 283 | B178: 甲状旁腺素(1-84)定标液 | C178: 4x1.0 mL | D178: 盒 | E178: 罗氏 | F178: 罗氏诊断公司Roche Diagnostics GmbH | G178: 946.68
A179: 284 | B179: 甲状旁腺素定标液 | C179: 4x1.0 mL | D179: 盒 | E179: 罗氏 | F179: 罗氏诊断公司Roche Diagnostics GmbH | G179: 946.68
A180: 285 | B180: 甲状旁腺素定标液 | C180: 4 x 1.0 mL | D180: 盒 | E180: 罗氏 | F180: Roche Diagnostics GmbH | G180: 946.68
A181: 286 | B181: 甲状腺球蛋白定标液 | C181: 4x1.0 mL | D181: 盒 | E181: 罗氏 | F181: Roche Diagnostics GmbH | G181: 1172.08
A182: 287 | B182: 抗甲状腺过氧化物酶抗体定标液 | C182: 4 x 1.5 mL（冻干品，复溶体积） | D182: 盒 | E182: 罗氏 | F182: Roche Diagnostics GmbH | G182: 901.6
A183: 288 | B183: 甲状腺球蛋白抗体定标液 | C183: 4 x 1.5 mL（冻干品，复溶体积） | D183: 盒 | E183: 罗氏 | F183: Roche Diagnostics GmbH | G183: 946.68
A184: 289 | B184: 可溶性fms样酪氨酸激酶-1定标液 | C184: 4x1.0 mL（冻干品，复溶体积） | D184: 盒 | E184: 罗氏 | F184: Roche Diagnostics GmbH | G184: 1713.04
A185: 290 | B185: 脑利钠肽前体定标液 | C185: 4 x 1.0 mL | D185: 盒 | E185: 罗氏 | F185: Roche Diagnostics GmbH | G185: 946.68
A186: 291 | B186: 脑利钠肽前体定标液 | C186: 4 x 1.0 mL（冻干品，复溶体积） | D186: 盒 | E186: 罗氏 | F186: 罗氏诊断公司Roche Diagnostics GmbH | G186: 946.68
A187: 292 | B187: 皮质醇定标液 | C187: 4x1.0 mL（冻干品，复溶体积） | D187: 盒 | E187: 罗氏 | F187: 罗氏诊断公司Roche Diagnostics GmbH | G187: 1127
A188: 293 | B188: 总前列腺特异性抗原定标液 | C188: 4x1.0 mL（冻干品复溶体积） | D188: 盒 | E188: 罗氏 | F188: Roche Diagnostics GmbH罗氏诊断公司 | G188: 1172.08
A189: 294 | B189: 人附睾蛋白4定标液 | C189: 4 x 1.0 mL（冻干品，复溶体积） | D189: 盒 | E189: 罗氏 | F189: 罗氏诊断公司Roche Diagnostics GmbH | G189: 2163.84
A190: 295 | B190: 人生长激素定标液 | C190: 4 x 1.0 mL（冻干品复溶体积） | D190: 盒 | E190: 罗氏 | F190: Roche Diagnostics GmbH | G190: 1622.88
A191: 296 | B191: 妊娠相关性血浆蛋白A定标液 | C191: 4x1.0 mL（冻干品复溶体积） | D191: 盒 | E191: 罗氏 | F191: 罗氏诊断公司Roche Diagnostics GmbH | G191: 1442.56
A192: 297 | B192: 胎盘生长因子定标液 | C192: 4x1.0 mL（冻干品，复溶体积） | D192: 盒 | E192: 罗氏 | F192: 罗氏诊断公司Roche Diagnostics GmbH | G192: 1713.04
A193: 298 | B193: 铁蛋白定标液 | C193: 4x1.0 mL | D193: 盒 | E193: 罗氏 | F193: Roche Diagnostics GmbH | G193: 856.52
A194: 299 | B194: 胃泌素释放肽前体 定标液 | C194: 4x1.0 mL | D194: 盒 | E194: 罗氏 | F194: Roche Diagnostics GmbH | G194: 2524.48
A195: 300 | B195: 洋地黄毒苷定标液 | C195: 4x1.0 mL | D195: 盒 | E195: 罗氏 | F195: Roche Diagnostics GmbH | G195: 1622.88
A196: 301 | B196: 叶酸定标液 | C196: 4 x 1.0 mL（冻干品复溶体积） | D196: 盒 | E196: 罗氏 | F196: 罗氏诊断公司Roche Diagnostics GmbH | G196: 1081.92
A197: 302 | B197: 胰岛素定标液 | C197: 4x1.0 mL | D197: 盒 | E197: 罗氏 | F197: Roche Diagnostics GmbH | G197: 901.6
A198: 303 | B198: 游离前列腺特异性抗原定标液 | C198: 4x1.0 mL | D198: 盒 | E198: 罗氏 | F198: Roche Diagnostics GmbH | G198: 946.68
A199: 304 | B199: 游离β-绒毛膜促性腺激素定标液 | C199: 4x1.0 mL（冻干品复溶体积） | D199: 盒 | E199: 罗氏 | F199: 罗氏诊断公司Roche Diagnostics GmbH | G199: 2524.48
A200: 305 | B200: 孕酮定标液 | C200: 4x1.0 mL（冻干品复溶体积） | D200: 盒 | E200: 罗氏 | F200: Roche Diagnostics GmbH | G200: 946.68
... 256 more rows

Sheet 肛肠科（华盛）
A1: 肛肠科耗材目录
A2: 序号 | B2: 品名 | C2: 规格描述 | D2: 单位 | E2: 品牌 | F2: 单价
A3: 1 | B3: 一次性肛肠吻合器 | C3: 32mm，34mm，36mm，38mm | D3: 个 | E3: 常州安克医疗科技有限公司 | F3: 1532.6
A4: 2 | B4: 一次性肛肠吻合器 | C4: 32mm34mm，36mm，38mm | D4: 个 | E4: 常州安克医疗科技有限公司 | F4: 1532.6
A5: 3 | B5: 一次性痔疮套扎器 | D5: 个 | E5: 常州安克医疗科技有限公司 | F5: 756.6
A6: 4 | B6: 一次性使用管型痔吻合器及附件 | C6: AKGZB-34 | D6: 个 | E6: 常州安克医疗科技有限公司 | F6: 287 | G6: 集采
A7: 5 | B7: 丁字带 | D7: 条 | E7: 莱州市利康卫生用品厂 | F7: 4.85
A8: 6 | B8: 一次性灌肠器 | C8: 120ml | D8: 个 | E8: 佛山市平创医疗科技有限公司 | F8: 27.16
A9: 7 | B9: 一次性筒式肛门镜 | C9: 下端内径18±0.3mm；上端内径20±0.3mm；长度60±1.0mm | D9: 个 | E9: 乐陵市信诺医疗器械有限公司 | F9: 4.65
A10: 8 | B10: 藻酸盐敷料 | C10: 7.5*2.5cm | D10: 贴 | E10: 广东泰宝医疗科技股份有限公司 | F10: 40.74
A11: 9 | B11: 肛肠专用敷贴 | C11: 10cm*20cm | D11: 贴 | E11: 山东长运医药用品有限公司 | F11: 5.04
A12: 10 | B12: 一次性肛门直肠用冰垫 | C12: 2支装 | D12: 盒 | E12: 湖南慈辉医疗科技有限公司 | F12: 73.72

Sheet 介入科（德佳、鼎宇、申泓）
A1: 介入耗材目录
A2: 序号 | B2: 产品注册证名称 | C2: 规格型号 | D2: 单位 | E2: 生产企业 | F2: 注册证号 | G2: 单价 | H2: 是否集采
A3: 1 | B3: 植入式心脏起搏器 | C3: Effecta DR | D3: 个 | E3: 百多力（北京）医疗器械有限公司 | F3: 国械注进20163212817 | G3: 17088 | H3: 是
A4: 2 | B4: 植入式心脏起搏器 | C4: Estella DR | D4: 个 | E4: 百多力（北京）医疗器械有限公司 | F4: 国械注进20163212819 | G4: 46200 | H4: 是
A5: 3 | B5: 植入式心脏起搏器 | C5: Evia DR（Pro MRI） | D5: 个 | E5: 百多力（北京）医疗器械有限公司 | F5: 国械注进20163212818 | G5: 33900 | H5: 是
A6: 4 | B6: 植入式心脏起搏器 | C6: Enitra 6 DR | D6: 个 | E6: 百多力（北京）医疗器械有限公司 | F6: 国械注进20193120212 | G6: 5700 | H6: 是
A7: 5 | B7: 植入式心脏起搏器电极导线 | C7: Solia JT 45,Solia JT 53 | D7: 个 | E7: 百多力（北京）医疗器械有限公司 | F7: 国械注进20153120440 | G7: 4600
A8: 6 | B8: 植入式心脏起搏器 | C8: Effecta SR | D8: 个 | E8: 百多力（北京）医疗器械有限公司 | F8: 国械注进20163212817 | G8: 29800
A9: 7 | B9: 植入式心脏起搏器 | C9: Effecta S | D9: 个 | E9: 百多力（北京）医疗器械有限公司 | F9: 国械注进20163212817 | G9: 21850
A10: 8 | B10: 植入式心脏起搏器 | C10: Evia SR-T | D10: 个 | E10: 百多力（北京）医疗器械有限公司 | F10: 国械注进20163212818 | G10: 42812
A11: 9 | B11: 植入式心脏起搏器 | C11: Evia SR-T(ProMRI) | D11: 个 | E11: 百多力（北京）医疗器械有限公司 | F11: 国械注进20163212818 | G11: 55000
A12: 10 | B12: 植入式心脏起搏器 | C12: Evia SR | D12: 个 | E12: 百多力（北京）医疗器械有限公司 | F12: 国械注进20163212818 | G12: 29430
A13: 11 | B13: 植入式心脏起搏器 | C13: Evia SR(ProMRI) | D13: 个 | E13: 百多力（北京）医疗器械有限公司 | F13: 国械注进20163212818 | G13: 23000
A14: 12 | B14: 植入式心脏起搏器 | C14: Estella SR-T | D14: 个 | E14: 百多力（北京）医疗器械有限公司 | F14: 国械注进20163212819 | G14: 58000
A15: 13 | B15: 植入式心脏起搏器 | C15: Estella DR-T | D15: 个 | E15: 百多力（北京）医疗器械有限公司 | F15: 国械注进20163212819 | G15: 67000
A16: 14 | B16: 植入式心脏起搏器 | C16: Estella SR | D16: 个 | E16: 百多力（北京）医疗器械有限公司 | F16: 国械注进20163212819 | G16: 32427
A17: 15 | B17: 植入式心脏起搏器电极导线 | C17: Siello S 53 | D17: 个 | E17: 百多力（北京）医疗器械有限公司 | F17: 国械注进20163214226 | G17: 4750
A18: 16 | B18: 植入式心脏起搏器电极导线 | C18: Siello S 60 | D18: 个 | E18: 百多力（北京）医疗器械有限公司 | F18: 国械注进20163214226 | G18: 4750
A19: 17 | B19: 植入式心脏起搏器电极导线 | C19: Solia S 45 | D19: 个 | E19: 百多力（北京）医疗器械有限公司 | F19: 国械注进20163214226 | G19: 4682
A20: 18 | B20: 植入式心脏起搏器电极导线 | C20: Solia T 53,Solia T 60 | D20: 个 | E20: 百多力（北京）医疗器械有限公司 | F20: 国械注进20163214227 | G20: 4682
A21: 19 | B21: 植入式心脏起搏器 | C21: Enitra 6 SR（产品编号407165） | D21: 个 | E21: 百多力（北京）医疗器械有限公司 | F21: 国械注进20193120212 | G21: 39600
A22: 20 | B22: 依维莫司洗脱冠状动脉支架系统 | C22: 12／16／20／24／28MM；外径：2.25／2.5／2.75／3.0／3.5 / 4.0mm | D22: 个 | E22: 波科国际医疗贸易（上海）有限公司 | F22: 国械注进20173466661 | G22: 12100
A23: 21 | B23: 微扩张导管 | C23: H7493926912120 | D23: 个 | E23: 波科国际医疗贸易（上海）有限公司 | F23: 国械注进20153031723 | G23: 6700
A24: 22 | B24: 血管造影导管 | C24: H74908526501;H74908526502;H74908526511;H74908526512;H74908526841;H74908526842;H74908526861;H74908526862;H74908526891;H74908526892;H74908526961;H74908526962;H74908526981;H74908526982 | D24: 个 | E24: 波科国际医疗贸易（上海）有限公司 | F24: 国械注进20153031974 | G24: 200
A25: 23 | B25: PTCA扩张导管 | C25: H7493918915200;H7493918915220;H7493918915250;H7493918915270;H7493918915300;H7493918915320;H7493918915350;H7493918915370;H7493918915400;H7493918920120;H7493918920150;H7493918920200;H7493918920220 | D25: 个 | E25: 波科国际医疗贸易（上海）有限公司 | F25: 国械注进20153032901 | G25: 3700 | H25: 是
A26: 24 | B26: PTCA扩张导管 | C26: 长度：8/12/15/20/30MM；外径：2.0/2.25/2.5/2.75/3.0/3.25/3.5/3.75/4.0/4.5/5.0MM | D26: 个 | E26: 波科国际医疗贸易（上海）有限公司 | F26: 国械注进20153033297 | G26: 325 | H26: 是
A27: 25 | B27: 导引导丝 | C27: H802228240022 H802228240020 H802232390012 H8022390010 H802221960032 | D27: 个 | E27: 波科国际医疗贸易（上海）有限公司 | F27: 国械注进20163772911 | G27: 1180
A28: 26 | B28: PTCA扩张导管 | C28: 长度：8/12/15/20/30MM；外径：2.0/2.25/2.5/2.75/3.0/3.25/3.5/3.75/4.0/4.5/5.0MM | D28: 个 | E28: 波科国际医疗贸易（上海）有限公司 | F28: 国械注进20173776638 | G28: 325 | H28: 是
A29: 27 | B29: 磨头导管和推进器 | C29: H80222782201A0 | D29: 个 | E29: 波科国际医疗贸易（上海）有限公司 | F29: 国械注进20173776717 | G29: 4940
A30: 28 | B30: 导引系统 | C30: M635TC10060,M635TC20060,M635TC40060 | D30: 个 | E30: 波科国际医疗贸易（上海）有限公司 | F30: 国械注进20173777230 | G30: 9000
A31: 29 | B31: 左心耳封堵器 | C31: M635WC21060，M635WC24060，M635WC27060，M635WC30060，M635WC33060 | D31: 个 | E31: 波科国际医疗贸易（上海）有限公司 | F31: 国械注进20183771562 | G31: 51000
A32: 30 | B32: 血管内超声一次性滑板 | C32: H749A70200 | D32: 个 | E32: 波科国际医疗贸易（上海）有限公司 | F32: 国械注进20193062182 | G32: 790
A33: 31 | B33: 微导管 | C33: H7493928713520;H7493928713560;H7493928715020 | D33: 个 | E33: 波科国际医疗贸易（上海）有限公司 | F33: 国械注进20203030017 | G33: 5800
A34: 32 | B34: 切割球囊导管 | C34: H74939403102000,H74939403102250,H74939403102500,H74939403102750,H74939403103000,H74939403103250,H74939403103500,H74939403103750,H74939403104000 | D34: 个 | E34: 波科国际医疗贸易（上海）有限公司 | F34: 国械注进20203030164 | G34: 5718
A35: 33 | B35: 一次性使用血管内超声诊断导管 | C35: H74939352030 | D35: 个 | E35: 波科国际医疗贸易（上海）有限公司 | F35: 国械注进20203060148 | G35: 8400
A36: 34 | B36: 延长导管 | C36: H7493933515060；H7493933515070；H7493933515080；H74939335150610 | D36: 个 | E36: 波科国际医疗贸易（上海）有限公司 | F36: 国械注准20193030524 | G36: 4100
A37: 35 | B37: 栓塞微球 | C37: DC2V001 DC2V103 | D37: 个 | E37: 波科国际医疗贸易（上海）有限公司 | F37: 国械注进20193139149 | G37: 24480
A38: 36 | B38: PTA球囊扩张导管 | C38: H74939135404010;H74939135403010;H74939135402010;H74939135354010;H74939135353010...详见注册证信息 | D38: 个 | E38: 波科国际医疗贸易（上海）有限公司 | F38: 国械注进20153033099 | G38: 6240
A39: 37 | B39: PTA球囊扩张导管 | C39: H74939134404010 H74939134403010 H74939134402010 H74939134354010 H74939134353010 ...详见注册证信息 | D39: 个 | E39: 波科国际医疗贸易（上海）有限公司 | F39: 国械注进20153033129 | G39: 6240
A40: 38 | B40: PTA球囊扩张导管 | C40: H74939171052010;H74939171051810;H74939171051510;H74939171051240;H74939171051210;H74939171051040;H74939171051010;H74939171050840;H74939171050810;H74939171050640;H74939171050610;H74939171050440；H74939171032010;H74939171031810;H74939171031510;H74939171031210;H74939171031040;H74939171031010;H74939171030840;H74939171030810;H74939171030640;H74939171030610;H74939171030440;H74939171030410 ；H74939171040810;H74939171040640;H74939171040610;H74939171040440;H74939171040410;H74939171040340;H74939171040310;H74939171040240;H74939171040210 ；H74939171050410;H74939171050340;H74939171050310;H74939171050240;H74939171050210;H74939171042010;H74939171041810;H74939171041510;H74939171041210;H74939171041040;H74939171041010;H74939171040840 ；H74939171030340;H74939171030310;H74939171030240;H74939171030210 ；H74939171061040;H74939171061010;H74939171060840;H74939171060810;H74939171060640;H74939171060610;H74939171060440;H74939171060410;H74939171060340;H74939171060310;H74939171060240;H74939171060210 | D40: 个 | E40: 波科国际医疗贸易（上海）有限公司 | F40: 国械注进20153033961 | G40: 5200
A41: 39 | B41: PTA球囊扩张导管 | C41: H74939031502010; H74939031501580; H74939031501080; H74939031454080; H74939031454010; H74939031453080; H74939031453010; ......详见注册证附表 | D41: 个 | E41: 波科国际医疗贸易（上海）有限公司 | F41: 国械注进20163030734 | G41: 4100
A42: 40 | B42: PTA球囊扩张导管 | C42: H74939148408010;H74939148401510;H74939148401210;H74939148401010;H74939148358010;H74939148351510;H74939148351210;H74939148351010;H74939148308010;H74939148301510 | D42: 个 | E42: 波科国际医疗贸易（上海）有限公司 | F42: 国械注进20163773013 | G42: 7176
A43: 41 | B43: PTA球囊扩张导管 | C43: H74939148301210;H74939148301010;H74939148258010;H74939148251510;H74939148251210;H74939148251010;H74939148208010;H74939148201510;H74939148201210;H74939148201010 | D43: 个 | E43: 波科国际医疗贸易（上海）有限公司 | F43: 国械注进20163773013 | G43: 7270
A44: 42 | B44: PTA球囊扩张导管 | C44: H74939186402210;H74939186401510;H74939186401210;H74939186401010;H74939186400810;H74939186400610 | D44: 个 | E44: 波科国际医疗贸易（上海）有限公司 | F44: 国械注进20173770463 | G44: 6240
A45: 43 | B45: PTA球囊扩张导管 | C45: H74939032908080 H74939032908010 H74939032906080 H74939032906010 H74939032904080 H74939032904010 H74939032903080 H74939032903010 H74939032902080 H74939032902010 H74939032808080 ... | D45: 个 | E45: 波科国际医疗贸易（上海）有限公司 | F45: 国械注进20173776865 | G45: 6800
A46: 44 | B46: 带有亲水涂层的可控导丝 | C46: M001468540 M001468520 | D46: 个 | E46: 波科国际医疗贸易（上海）有限公司 | F46: 国械注进20163032156 | G46: 845
A47: 45 | B47: 带有亲水涂层的可控导丝 | C47: M001468480 M001468600 M001468580 M001468560 M001468500 | D47: 个 | E47: 波科国际医疗贸易（上海）有限公司 | F47: 国械注进20163032156 | G47: 845
A48: 46 | B48: 带有推送系统的支架（TIPS支架和静脉支架） | C48: M001711320；H965403330；H965403320；H965403310；H965403300；H965403130；H965403120；H965403110；H965403100；H965402130;M001711380;M001711360;M001711340;H965402120;H965402110;H965402100 | D48: 个 | E48: 波科国际医疗贸易（上海）有限公司 | F48: 国械注进20193131917 | G48: 8721
A49: 47 | B49: 导丝 | C49: H74939231300300;H74939231195300;H74939231300250;H74939231195250;H74939230300180;H74939230195180;H74939230300120;H74939230195120;H74939233300300;H74939233195300;H74939233300250;H74939233195250;H74939232300180;H74939232195180;H74939232300120;H74939232195120 | D49: 个 | E49: 波科国际医疗贸易（上海）有限公司 | F49: 国械注进20143035573 | G49: 1400
A50: 48 | B50: 导丝 | C50: M001465641;M001465631;M001465251;M001465241;M001465231;M001465191;M001465181;M001465171;M001465041;M001465031;M001465011;M001465001 | D50: 个 | E50: 波科国际医疗贸易（上海）有限公司 | F50: 国械注进20163032173 | G50: 3220
A51: 49 | B51: 导丝 | C51: M001465261;M001465201;M001465101;M001465091;M001465021 | D51: 个 | E51: 波科国际医疗贸易（上海）有限公司 | F51: 国械注进20163032173 | G51: 3210
A52: 50 | B52: 导丝 | C52: M001492861;M001492851;M001492841;M001492831;M001492821;M001492811;M001492801;M001492791;M001492781;M001492771;M001492761;M001492751;M001492991;M001492981;M001492971;M001492861;M001492851;M001492941;M001492931;M001492921;M001492911;M001492901;M001492891;M001492881;M001492871 | D52: 个 | E52: 波科国际医疗贸易（上海）有限公司 | F52: 国械注进20173771525 | G52: 1314
A53: 51 | B53: 导丝 | C53: M001492891 M001492881 M001492871 M001492861 M001492851 ... | D53: 个 | E53: 波科国际医疗贸易（上海）有限公司 | F53: 国械注进20173771525 | G53: 1314
A54: 52 | B54: 导丝 | C54: M00146162B1;M00146156B1;M00146155B1;M00146152B1;M00146151B1;M00146126B1;M00146125B1;M00146350B1;M00146325B1;M00146318B1;M00146315B1;M00146314B1;M00146309B1;M00146308B1;M00146306B1;M00146305B1;M00146301B1;M00146300B1;M00146249B1;M00146240B1;M00146166B1 | D54: 个 | E54: 波科国际医疗贸易（上海）有限公司 | F54: 国械注进20173777203 | G54: 1035
A55: 53 | B55: 导丝 | C55: M00146236B1;M00146235B1;M00146232B1;M00146231B1 | D55: 个 | E55: 波科国际医疗贸易（上海）有限公司 | F55: 国械注进20173777203 | G55: 4124
A56: 54 | B56: 导丝 | C56: H74939216930020 H74939216930010 H74939216918220 H74939216918210 H74939216730020 H74939216730010 H74939216718220 H74939216718210 | D56: 个 | E56: 波科国际医疗贸易（上海）有限公司 | F56: 国械注进20173777238 | G56: 1800
A57: 55 | B57: 可控导丝 | C57: M001306021 H965SCH306010 H965SCH306000 | D57: 个 | E57: 波科国际医疗贸易（上海）有限公司 | F57: 国械注进20163030478 | G57: 6000
A58: 56 | B58: 球囊扩张导管 | C58: M001145320;M001145150;M001145140;M001145130;M001145120；M001145300;M001145110;M001145100;M001145090;M001145080 | D58: 个 | E58: 波科国际医疗贸易（上海）有限公司 | F58: 国械注进20153033383 | G58: 3170
A59: 57 | B59: 外周切割球囊 | C59: M001BP90820B0;M001BP90720B0;M001BP90620B0;M001BP90520B0;M001BP35820B0;M001BP35720B0;M001BP35620B0;M001BP35520B0 | D59: 个 | E59: 波科国际医疗贸易（上海）有限公司 | F59: 国械注进20173776949 | G59: 6070
A60: 58 | B60: 小外周切割球囊（商品名:Small Peripheral Cutting Balloon） | C60: M001BPM4015140F0;M001BPM3515140F0;M001BPM3015140F0;M001BPM2515140F0;M001BPM2015140F0 | D60: 个 | E60: 波科国际医疗贸易（上海）有限公司 | F60: 国械注进20163030375 | G60: 6840
A61: 59 | B61: 血管自扩张支架系统 | C61: H74939200071220;H74939200071020;H74939200068020;H74939200067020;H74939200066020;H74939200065020;H74939200064020;H74939200063020;H74939200062020;H74939200061220;H74939200061020;H74939200098020;H74939200097020;H74939200096020;H74939200095020;H74939200094020;H74939200093020;H74939200092020;H74939200091020;H74939200088020;H74939200087020;H74939200086020;H74939200085020 ;H74939200084020;H74939200083020;H74939200082020;H74939200081220;H74939200081020;H74939200078020;H74939200077020;H74939200076020;H74939200075020;H74939200074020;H74939200073020;H74939200072020 ;H74939200126020;H74939200125020;H74939200124020;H74939200123020;H74939200108020;H74939200107020;H74939200106020;H74939200105020;H74939200104020;H74939200103020;H74939200102020;H74939200101020 | D61: 个 | E61: 波科国际医疗贸易（上海）有限公司 | F61: 国械注进20153130606 | G61: 10966
A62: 60 | B62: 压力泵 | C62: H74904526011 H74904526052 M001151050 M001151062 | D62: 个 | E62: 波科国际医疗贸易（上海）有限公司 | F62: 国械注进20173666014 | G62: 714
A63: 61 | B63: 支撑导管 | C63: H74939240035151 H74939240035131 H74939240035091 H74939240035061 H74939239018151 H74939239018131 H74939239018091 ................. | D63: 个 | E63: 波科国际医疗贸易（上海）有限公司 | F63: 国械注进20153031218 | G63: 4700
A64: 62 | B64: 支撑导管 | C64: H74939212014150 H74939212014130 H74939212014151 H74939212014131 ............ | D64: 个 | E64: 波科国际医疗贸易（上海）有限公司 | F64: 国械注进20173776169 | G64: 24990
A65: 63 | B65: 自扩张型支架系统 | C65: H74939259082030;H74939259081830;H74939259081530;H74939259072030;H74939259071830;H74939259071530;H74939259062030;H74939259061830;H74939259061530;H74939259052030;H74939259051830;H74939259051530 | D65: 个 | E65: 波科国际医疗贸易（上海）有限公司 | F65: 国械注进20193132081 | G65: 22000
A66: 64 | B66: 镍钛合金紫杉醇洗脱血管支架 | C66: H74939295600410;H74939295600610;H74939295600810;H74939295700410;H74939295700610;H74939295700810;H74939295600470;H74939295600670;H74939295600870;H74939295700470;H74939295700670;H74939295700870 | D66: 个 | E66: 波科国际医疗贸易（上海）有限公司 | F66: 国械注进20203130358 | G66: 48800
A67: 65 | B67: 镍钛合金紫杉醇洗脱血管支架 | C67: H74939295601010;H74939295601210;H74939295701010;H74939295701210;H74939295601070;H74939295601270;H74939295701070;H74939295701270; | D67: 个 | E67: 波科国际医疗贸易（上海）有限公司 | F67: 国械注进20203130358 | G67: 49800
A68: 66 | B68: 非顺应性PTCA球囊扩张导管 | C68: DHC2206；DHC2208；DHC2210；DHC2212；DHC2215；DHC2220；DHC2225；DHC2230；DHC2506；DHC2508；DHC2510；DHC2512；DHC2515；DHC2520；DHC2525；DHC2530； | D68: 个 | E68: 北京迪玛克医药科技有限公司 | F68: 国械注准20183770044 | G68: 3266.67
A69: 67 | B69: PTCA球囊扩张导管 | C69: DPC1206；DPC1208；DPC1210；DPC1212；DPC1215；DPC1220；DPC1506；DPC1508；DPC1510；DPC1512；DPC1515；DPC1520；DPC1525 | D69: 个 | E69: 北京迪玛克医药科技有限公司 | F69: 国械注准20183770054 | G69: 3266.67
A70: 68 | B70: 连接管 | C70: DMK-G-I-075、DMK-G-I-091、DMK-G-I-105、DMK-G-I-122、DMK-G-I-150、DMK-G-I-180、DMK-G-I-200. | D70: 个 | E70: 北京迪玛克医药科技有限公司 | F70: 国械注准20153032384 | G70: 39
A71: 69 | B71: Y形连接器 | C71: DPY01B | D71: 个 | E71: 北京迪玛克医药科技有限公司 | F71: 国械注准20163030329 | G71: 187.03
A72: 70 | B72: 推注器 | C72: DMK-Z-Ⅱ10,DMK-Z-Ⅱ12,DMK-Z-Ⅲ10,DMK-Z-Ⅲ12 | D72: 个 | E72: 北京迪玛克医药科技有限公司 | F72: 国械注准20163030450 | G72: 73.77
A73: 71 | B73: 一次性使用有创压力传感器 | C73: DPT1030 | D73: 个 | E73: 北京迪玛克医药科技有限公司 | F73: 国械注准20163071097 | G73: 313
A74: 72 | B74: 连通板 | C74: DMK-T-W1,DMK-T-W2,DMK-T-W3,DMK-T-01,DMK-T-02,DMK-T-03 | D74: 个 | E74: 北京迪玛克医药科技有限公司 | F74: 国械注准20163140506 | G74: 70.25
A75: 73 | B75: 球囊扩张导管用球囊充压装置 | C75: DMKID30、DMKID30S、DMKIDP30、DMKIDP30S | D75: 个 | E75: 北京迪玛克医药科技有限公司 | F75: 京械注准20152031069 | G75: 616
A76: 74 | B76: 压力泵 | C76: DPD30/OFF | D76: 个 | E76: 北京迪玛克医药科技有限公司 | F76: 京械注准20152031070 | G76: 357.65
A77: 75 | B77: Y接头组件 | C77: DMK-Y | D77: 个 | E77: 北京迪玛克医药科技有限公司 | F77: 国械注准20163030724 | G77: 147
A78: 76 | B78: 压力泵 | C78: DPD30/OFF | D78: 个 | E78: 北京迪玛克医药科技有限公司 | F78: 京械注准20152031070 | G78: 357.65
A79: 77 | B79: 切割球囊系统 | C79: 各规格 | D79: 个 | E79: 乐普（北京)医疗器械股份有限公司 | F79: 国械注准20203030935 | G79: 5700
A80: 78 | B80: 紫杉醇释放冠脉球囊扩张导管 | C80: R2.00-15；R2.00-20；R2.00-25；R2.00-30；R2.25-15；R2.25-20；R2.25-25；R2.25-30；R2.50-15；R2.50-20；R2.50-25；R2.50-30；R2.75-15；R2.75-20；R2.75-25；R2.75-30；R3.00-15；R3.00-20；R3.00-25；R3.00-30；R3.50-15；R3.50-20；R3.50-25；R3.50-30；R4.00-15；R4.00-20；R4.00-25；R4.00-30 | D80: 个 | E80: 德国凯德诺医疗器械（武汉） | F80: 国械注进20193030495 | G80: 22500
A81: 79 | B81: 耐高压乳突球囊扩张导管 | C81: 250080340、250120340、250160340、300080340、300120340、300160340、350080340、350120340、350160340、400080340、400120340、400160340 | D81: 个 | E81: 赫戴医疗器械（上海）有限公司 | F81: 国械注进20183771738 | G81: 2952
A82: 80 | B82: 房间隔穿刺系统 | C82: 94180710；94180890； | D82: 个 | E82: 湖南埃普特医疗器械有限公司 | F82: 国械注准20153030317 | G82: 3200.6
A83: 81 | B83: 房间隔穿刺系统 | C83: 94080621；94080625；94080622；94080626； | D83: 个 | E83: 湖南埃普特医疗器械有限公司 | F83: 国械注准20153030317 | G83: 1538
A84: 82 | B84: 亲水涂层导丝 | C84: 各规格 | D84: 个 | E84: 湖南埃普特医疗器械有限公司 | F84: 国械注准20153032346 | G84: 190
A85: 83 | B85: 亲水涂层导丝 | C85: 各规格 | D85: 个 | E85: 湖南埃普特医疗器械有限公司 | F85: 国械注准20153032346 | G85: 290
A86: 84 | B86: 亲水涂层导丝 | C86: 各规格 | D86: 个 | E86: 湖南埃普特医疗器械有限公司 | F86: 国械注准20153032346 | G86: 279.59
A87: 85 | B87: 亲水涂层导丝 | C87: 各规格 | D87: 个 | E87: 湖南埃普特医疗器械有限公司 | F87: 国械注准20153032346 | G87: 350
A88: 86 | B88: 导引导管 | C88: 各规格 | D88: 个 | E88: 湖南埃普特医疗器械有限公司 | F88: 国械注准20153032345 | G88: 825
A89: 87 | B89: 导引导管 | C89: 各规格 | D89: 个 | E89: 湖南埃普特医疗器械有限公司 | F89: 国械注准20153032345 | G89: 910
A90: 88 | B90: 血管鞘组 | C90: 4F/5F/5.5F/6F/6.5F/7F,7/11/15/25cm | D90: 个 | E90: 湖南埃普特医疗器械有限公司 | F90: 国械注准20163771291 | G90: 160
A91: 89 | B91: 微导管 | C91: 60172301；60172302 | D91: 个 | E91: 湖南埃普特医疗器械有限公司 | F91: 国械注准20173771405 | G91: 5219.6
A92: 90 | B92: 造影导管 | C92: 11510001；11510002；11510004；11510005；11510006；11510008；11510009；11510010；11511011；11511012；11511014；11511015；11511017；11511018 ；11610001；11610002；11610004；11610005；11610006；11610008；11610009；11610010；11611011；11611012；11611014；11611015；11611017；11611018 | D92: 个 | E92: 湖南埃普特医疗器械有限公司 | F92: 国械注准20173773051 | G92: 165
A93: 91 | B93: 血栓抽吸装置 | C93: 65593703；65593706；65765504；65654405；65765501；65654402 | D93: 个 | E93: 湖南埃普特医疗器械有限公司 | F93: 国械注准20183030535 | G93: 3480
A94: 92 | B94: Y形连接器 | C94: 18891200；18821100；18821200；18891100；18891101；18891201；18991100；18991200；18992100 | D94: 个 | E94: 湖南埃普特医疗器械有限公司 | F94: 国械注准20183030551 | G94: 308
A95: 93 | B95: 导引延伸导管 | C95: 20505201；20505601；20505603；20556101；20606601；20606603；20657101；20707601；20758701 | D95: 个 | E95: 湖南埃普特医疗器械有限公司 | F95: 国械注准20183770115 | G95: 3700
A96: 94 | B96: 导引延伸导管 | C96: 20321701；20321702 | D96: 个 | E96: 湖南埃普特医疗器械有限公司 | F96: 国械注准20183770115 | G96: 4500
A97: 95 | B97: 导引延伸导管 | C97: 20505202；20505602；20505604；20556102；20606602；20606604；20657102；20707602；20758702 | D97: 个 | E97: 湖南埃普特医疗器械有限公司 | F97: 国械注准20183770115 | G97: 5800
A98: 96 | B98: 导引导丝 | C98: 40S018C06；40S019C06 | D98: 个 | E98: 湖南埃普特医疗器械有限公司 | F98: 国械注准20193030013 | G98: 960
A99: 97 | B99: 导引导丝 | C99: 40S018B06；40S019B06 | D99: 个 | E99: 湖南埃普特医疗器械有限公司 | F99: 国械注准20193030013 | G99: 960
A100: 98 | B100: 导引导丝 | C100: 59S018C0636；59S019C0636；59S018B0636；59S019B0636 | D100: 个 | E100: 湖南埃普特医疗器械有限公司 | F100: 国械注准20193030013 | G100: 900
A101: 99 | B101: 血管鞘组 | C101: 860500701/860500751/860500767/860501101/860501104/860501151/860501154/860501167/860501501/860501504/860501513/860501551/860501554 | D101: 个 | E101: 湖南埃普特医疗器械有限公司 | F101: 国械注准20193030745 | G101: 550
A102: 100 | B102: 亲水涂层导丝 | C102: 10A13215；10S13215；10A13515；10S13515；10A13815；10S13815；10A13218；10S13218；10A13518；10S13518；10A13818；10S13818；10J13215；10J13515；10J13815；10J13218；10J13518；10J13818 | D102: 个 | E102: 湖南埃普特医疗器械有限公司 | F102: 国械注准20153032346 | G102: 190
A103: 101 | B103: 亲水涂层导丝 | C103: 10A23215；10A23218；10S23215；10S23218；10A23515；10S23515；10A23815；10S23815；10A23518；10S23518；10A23818；10S23818；10J23215；10J23218；10J23515；10J23815；10J23518；10J23818 | D103: 个 | E103: 湖南埃普特医疗器械有限公司 | F103: 国械注准20153032346 | G103: 290
A104: 102 | B104: 亲水涂层导丝 | C104: 10A13522；10A13530；10S13522；10S13530；10A13822；10A13830；10S13822；10S13830；10A13226；10S13226；10A13526；10S13526；10A13826；10S13826；10J13226；10J13526；10J13826 | D104: 个 | E104: 湖南埃普特医疗器械有限公司 | F104: 国械注准20153032346 | G104: 279.59
A105: 103 | B105: 亲水涂层导丝 | C105: 10A23526；10S23526；10A23826；10S23826 | D105: 个 | E105: 湖南埃普特医疗器械有限公司 | F105: 国械注准20153032346 | G105: 350
A106: 104 | B106: 亲水涂层导丝 | C106: 10A11815/10A11818/10S11815/10S11818 | D106: 个 | E106: 湖南埃普特医疗器械有限公司 | F106: 国械注准20153032346 | G106: 850
A107: 105 | B107: 亲水涂层导丝 | C107: 10A22518/10S22518 | D107: 个 | E107: 湖南埃普特医疗器械有限公司 | F107: 国械注准20153032346 | G107: 800
A108: 106 | B108: 微导管 | C108: 60273001;60273002 | D108: 个 | E108: 湖南埃普特医疗器械有限公司 | F108: 国械注准20173771405 | G108: 2850
A109: 107 | B109: 微导管 | C109: 60263001 | D109: 个 | E109: 湖南埃普特医疗器械有限公司 | F109: 国械注准20173771405 | G109: 4000
A110: 108 | B110: 微导管 | C110: 60242701;60242702，60242703;60242704 | D110: 个 | E110: 湖南埃普特医疗器械有限公司 | F110: 国械注准20173771405 | G110: 3850
A111: 109 | B111: 血管鞘组（二代） | C111: 860400701 | D111: 个 | E111: 湖南埃普特医疗器械有限公司 | F111: 国械注准20193030745 | G111: 550
A112: 110 | B112: 导管鞘组 | C112: 92140150/92160150/92180150/92200150/92140250/92160250/92180250/92200250 | D112: 个 | E112: 湖南埃普特医疗器械有限公司 | F112: 国械注准20193030894 | G112: 2800
A113: 111 | B113: 导管鞘组 | C113: 92220150/92240150/92260150/92220250/92240250/92260250/92220350/92240350/92260350 | D113: 个 | E113: 湖南埃普特医疗器械有限公司 | F113: 国械注准20193030894 | G113: 4500
A114: 112 | B114: 涂层导丝 | C114: 103A21815RY/103A21818RY/103Z21815RY/103Z21818RY/103A22115RY/103A22118RY/103Z22115RY/103Z22118RY | D114: 个 | E114: 湖南埃普特医疗器械有限公司 | F114: 国械注准20203030933 | G114: 1900
A115: 113 | B115: 亲水涂层造影导管 | C115: 7730110001 | D115: 个 | E115: 湖南埃普特医疗器械有限公司 | F115: 国械注准20213030115 | G115: 300
A116: 114 | B116: 双腔起博系统分析仪 | C116: QM2353 | D116: 个 | E116: 乐普医学电子仪器股份有限公司 | F116: 陕械注准20172210122 | G116: 200
A117: 115 | B117: 诊断导丝 | C117: 502-442E, 502-452, 502-453, 502-453E, 502-453F, 502-454, 502-455, 502-455E, 502-455F, 502-456, 502-520, 502-521, 502-522, 502-524, 502-525, 502-525E, 502-526, 502-530, 502-533, 502-534 | D117: 个 | E117: 康蒂思（上海）医疗器械有限公司 | F117: 国械注进20143035023 | G117: 98.8
A118: 116 | B118: 导管鞘及穿刺套件 | C118: 内径：4F/5F/6F/7F/8F/9F/10F/11F；长度：5.5/11/23CM | D118: 个 | E118: 康蒂思（上海）医疗器械有限公司 | F118: 国械注进20163773195 | G118: 172
A119: 117 | B119: 造影导管 | C119: 538417,538418,538421,538422,534647T,534648T,534649T,534660T,534670T,534631T,534653S,534655S,534627T,534629T,534650E,534650S,534652S,534654S,534614T,534615T,534644T,SRD5036,SRD5042,SRD5046 ,SRD5055等 | D119: 个 | E119: 康蒂思（上海）医疗器械有限公司 | F119: 国械注进20183032563 | G119: 170
A120: 118 | B120: 导引导管 | C120: 5560020L,5560040L,67001200，67000300等，详见注册证和产品型号列表 | D120: 个 | E120: 康蒂思（上海）医疗器械有限公司 | F120: 国械注进20183032568 | G120: 900
A121: 119 | B121: Emerald 诊断导丝 | C121: 502-524 502-536 502-522 502-526 502-534 502-521 502-587 502-585 502-585F 502-585E 502-589 502-535 502-535F 502-535E 502-576 502-533 502-520 502-584E 502-584 502-584F | D121: 个 | E121: 康蒂思（上海）医疗器械有限公司 | F121: 国械注进20143035023 | G121: 98.8
A122: 120 | B122: MAXI LD 球囊扩张导管 | C122: 416-1440S 416-2240S 416-2040L 416-1460S 416-2540S 416-2060L 416-1540S 416-1440L 416-2240L 416-1560S 416-1460L 416-2540L 416-1640S 416-1540L 416-1660S 416-1560L | D122: 个 | E122: 康蒂思（上海）医疗器械有限公司 | F122: 国械注进20183771802 | G122: 3060
A123: 121 | B123: 导管鞘及穿刺套件 | C123: 各规格 | D123: 个 | E123: 康蒂思（上海）医疗器械有限公司 | F123: 国械注进20163773195 | G123: 172
A124: 122 | B124: 护套介入系统 | C124: 各规格 | D124: 个 | E124: 康蒂思（上海）医疗器械有限公司 | F124: 国械注进20153032097 | G124: 899
A125: 123 | B125: 亲水涂层导引导丝 | C125: C3526-RSS C3526RSA C3526-SSS C3526SSA | D125: 个 | E125: 康蒂思（上海）医疗器械有限公司 | F125: 国械注进20173776162 | G125: 720
A126: 124 | B126: 亲水涂层导引导丝 | C126: C3515-RSS/C3518-SSS C3515-RSA/C3518SSA C3515-SSS/C3515-SSA/C3518-RSS/C3518-RSA | D126: 个 | E126: 康蒂思（上海）医疗器械有限公司 | F126: 国械注进20173776162 | G126: 550
A127: 125 | B127: 导丝(商品名：Stabilizer) | C127: 507914.507914X.507714.507114.507114X，详见注册证 | D127: 个 | E127: 康蒂思（上海）医疗器械有限公司 | F127: 国械注进20173776606 | G127: 950
A128: 126 | B128: 导丝(商品名：Stabilizer) | C128: 507-114/507-114J /507-114X/507-114Y /507-180S/507-300S | D128: 个 | E128: 康蒂思（上海）医疗器械有限公司 | F128: 国械注进20173776606 | G128: 958
A129: 127 | B129: 封堵止血系统 | C129: EX500 | D129: 个 | E129: 康蒂思（上海）医疗器械有限公司 | F129: 国械注进20173771688 | G129: 2850
A130: 128 | B130: 封堵止血系统 | C130: EX600 EX700 | D130: 个 | E130: 康蒂思（上海）医疗器械有限公司 | F130: 国械注进20173771688 | G130: 2900
A131: 129 | B131: 回收导管 | C131: 466C210F | D131: 个 | E131: 康蒂思（上海）医疗器械有限公司 | F131: 国械注进20153032366 | G131: 2320
A132: 130 | B132: 可回收滤器/Optease | C132: 466-F210A 466F210B | D132: 个 | E132: 康蒂思（上海）医疗器械有限公司 | F132: 国械注进20153130706 | G132: 16240
A133: 131 | B133: 可回收腔静脉滤器 | C133: 466-F210AF；466-F210AJ；466-F210BJ | D133: 个 | E133: 康蒂思（上海）医疗器械有限公司 | F133: 国械注进20153130706 | G133: 21340
A134: 132 | B134: 可控导丝(商品名: SV) | C134: 503558/503558X 503658/503658X 503758/503758X | D134: 个 | E134: 康蒂思（上海）医疗器械有限公司 | F134: 国械注进20173776601 | G134: 911
A135: 133 | B135: 镍钛支架系统 S.M.A.R.T. Flex Stent System | C135: SF09020SV;SF10020SV等，详见注册证 | D135: 个 | E135: 康蒂思（上海）医疗器械有限公司 | F135: 国械注进20163130050 | G135: 19800
A136: 134 | B136: 镍钛支架系统 S.M.A.R.T. Flex Stent System | C136: SF05120SV;SF06120SV等，详见注册证 | D136: 个 | E136: 康蒂思（上海）医疗器械有限公司 | F136: 国械注进20163130050 | G136: 21800
A137: 135 | B137: 镍钛支架系统 S.M.A.R.T. Flex Stent System | C137: SF05200SV;SF06200SV等，详见注册证 | D137: 个 | E137: 康蒂思（上海）医疗器械有限公司 | F137: 国械注进20163130050 | G137: 24000
A138: 136 | B138: 镍钛支架系统（商品名：PRECISE) | C138: P0530RXCE/P0540RXCE /P0620RXCE/P0630RXCE /P1020RXCE/P1030RXCE /P1040RXCE/PC0520XCE /PC0530XCE/PC0540XCE | D138: 个 | E138: 康蒂思（上海）医疗器械有限公司 | F138: 国械注进20163462630 | G138: 11450
A139: 137 | B139: 镍钛支架系统(商品名:SMART) | C139: C06120MV C07120MV C08120MV C06150MV C07150MV C08150MV | D139: 个 | E139: 康蒂思（上海）医疗器械有限公司 | F139: 国械注进20153133625 | G139: 14872
A140: 138 | B140: 镍钛支架系统(商品名:SMART) | C140: C06020SV C09080SV C08020SB C06030SV C09020MV C08030SB C06040SV C09030MV C08040SB C06060SV C09040MV C08060SB | D140: 个 | E140: 康蒂思（上海）医疗器械有限公司 | F140: 国械注进20153133626 | G140: 9300
A141: 139 | B141: 镍钛支架系统(商品名:SMART) | C141: C12020SV;C12020SB C12030SV;C12030SB C12040SV;C12040SB C14030SV;C14030SB C14040SV;C14040SB C14060SV;C14060SB | D141: 个 | E141: 康蒂思（上海）医疗器械有限公司 | F141: 国械注进20153133626 | G141: 9300
A142: 140 | B142: 永久滤器/Trapease | C142: 466-P306A，466-P306B | D142: 个 | E142: 康蒂思（上海）医疗器械有限公司 | F142: 国械注进20153131374 | G142: 14224
A143: 141 | B143: 球囊扩张导管 | C143: "48002002S;48002003S等，详见注册证 | D143: 个 | E143: 康蒂思（上海）医疗器械有限公司 | F143: 国械注进20163031172 | G143: 9800
A144: 142 | B144: 球囊扩张导管 | C144: 长度：1-10CM；直径： 外径：4-12MM； 内径：无 | D144: 个 | E144: 康蒂思（上海）医疗器械有限公司 | F144: 国械注进20173771269 | G144: 2200
A145: 143 | B145: 球囊扩张导管 | C145: 长度2cm-22cm，直径3mm-12mm，内径0.035“ | D145: 个 | E145: 康蒂思（上海）医疗器械有限公司 | F145: 国械注进20173771423 | G145: 2536
A146: 144 | B146: 球囊扩张导管 | C146: 4362012S/4362012L/4362012X/4362015S/4362015L/4362015X/4362018S/4362018L/4362018X/4362022S/4362022L/4362022X | D146: 个 | E146: 康蒂思（上海）医疗器械有限公司 | F146: 国械注进20153033794 | G146: 6000
A147: 145 | B147: 球囊扩张导管 | C147: 435-452T, 435-452S, 435-452L, 435-452Y, 435-453T, ...... | D147: 个 | E147: 康蒂思（上海）医疗器械有限公司 | F147: 国械注进20173772063 | G147: 5800
A148: 146 | B148: 球囊扩张导管（商品名：Sleek OTW) | C148: 426-1201X 426-1501X 426-1502X 426-1504X 426-1508X 426-1510X 426-1512X 426-2004X 426-2008X 426-2010X 426-2012X 426-2015X 426-2022X 426-2504X 426-2508X | D148: 个 | E148: 康蒂思（上海）医疗器械有限公司 | F148: 国械注进20173777271 | G148: 7478
A149: 147 | B149: 造影导管 | C149: 各规格 | D149: 个 | E149: 康蒂思（上海）医疗器械有限公司 | F149: 国械注进20153030716 | G149: 172
A150: 148 | B150: 造影导管（商品名：Tempo AQUA） | C150: 452-407H0/452-507H0 452-412H0/452-512H0 452-413H0/452-513H0 | D150: 个 | E150: 康蒂思（上海）医疗器械有限公司 | F150: 国械注进20153030826 | G150: 550
A151: 149 | B151: 支架系统(商品名: PALMAZ GENESIS on OPTA PRO) | C151: PG1990PPS，PG1910PPS，PG2590PPS，PG2510PPS，PG2950PPS...... | D151: 个 | E151: 康蒂思（上海）医疗器械有限公司 | F151: 国械注进20163462897 | G151: 9800
A152: 150 | B152: 支架系统 | C152: PB1240PSS，PB1540PSS，PB1840PSS，PB2440PSS， PB1250PS | D152: 个 | E152: 康蒂思（上海）医疗器械有限公司 | F152: 国械注进20173461859 | G152: 10600
A153: 151 | B153: 压力延长管 | C153: PM6136、PM6148、PM6124 | D153: 个 | E153: 麦瑞通医疗器械（北京）有限公司 | F153: 国械注进20143145578 | G153: 65
A154: 152 | B154: 一次性压力传感器 | C154: MER100、MER200、K11-00096、K11-00137 | D154: 个 | E154: 麦瑞通医疗器械（北京）有限公司 | F154: 国械注进20163213113 | G154: 283.7
A155: 153 | B155: 连通板 | C155: 503HN-R | D155: 个 | E155: 麦瑞通医疗器械（北京）有限公司 | F155: 国械注进20183660275 | G155: 93
A156: 154 | B156: 血管成型术用套件 | C156: MAP152、MAP403、MAP302 | D156: 个 | E156: 麦瑞通医疗器械（北京）有限公司 | F156: 国械注进20183662011 | G156: 260
A157: 155 | B157: 充盈压力泵系统 | C157: IN4130 | D157: 个 | E157: 麦瑞通医疗器械（北京）有限公司 | F157: 国械注进20183662060 | G157: 740.88
A158: 156 | B158: 造影导丝 | C158: IQ35F150J3、IQ35F180J3 | D158: 个 | E158: 麦瑞通医疗器械（北京）有限公司 | F158: 国械注进20193031842 | G158: 82
A159: 157 | B159: 一次性使用冠状动脉造影注射器 | C159: CCS100 | D159: 个 | E159: 麦瑞通医疗器械（北京）有限公司 | F159: 国械注进20193142070 | G159: 93
A160: 158 | B160: 快速交换球囊扩张导管 | C160: NCSP2509X、NCSP2512X、NCSP27509X、NCSP27512X、NCSP3009X、NCSP3012X、NCSP3509X、NCSP3512X、NCSP4009X、NCSP4012X、NCSP4515X | D160: 个 | E160: 美敦力（上海）管理有限公司 | F160: 国械注进20173770403 | G160: 360 | H160: 是
A161: 159 | B161: 快速交换球囊扩张导管 | C161: 各规格 | D161: 个 | E161: 美敦力（上海）管理有限公司 | F161: 国械注进20173775077 | G161: 980
A162: 160 | B162: 血管造影导管 | C162: DXT5JL35至U6ULTRA45SHA共146个型号 | D162: 个 | E162: 美敦力（上海）管理有限公司 | F162: 国械注进20193030397 | G162: 315
A163: 161 | B163: 药物洗脱冠脉支架系统 | C163: RSINT27512X；RSINT27514X；RSINT27518X；RSINT27522X；RSINT27526X；RSINT27530X；RSINT30009X；RSINT30012X；RSINT30015X；RSINT30018X；RSINT30022X；RSINT30026X；RSINT30030X；RSINT35009X； | D163: 个 | E163: 美敦力（上海）管理有限公司 | F163: 国械注进20163130682 | G163: 648 | H163: 是
A164: 162 | B164: 药物洗脱冠脉支架系统 | C164: ERES22508X；ERES22512X；ERES22514X；ERES22518X；ERES22524X；ERES22530X；ERES25008X；ERES25012X；ERES25014X； | D164: 个 | E164: 美敦力（上海）管理有限公司 | F164: 国械注进20173466117 | G164: 6850
A165: 163 | B165: 指引导管 | C165: 直径：5F/6F/7F/8F；长度：45/47/55/60/70/80/85/90/100/110 cm | D165: 个 | E165: 美敦力（上海）管理有限公司 | F165: 国械注进20143035609 | G165: 576
A166: 164 | B166: 传送导管 | C166: C315H20,C315H40,C315HI | D166: 个 | E166: 美敦力（上海）管理有限公司 | F166: 国械注进20153033120 | G166: 950
A167: 165 | B167: 传送导管系统 | C167: 6248VI-90,6248VI-90S | D167: 个 | E167: 美敦力（上海）管理有限公司 | F167: 国械注进20193031598 | G167: 2600
A168: 166 | B168: 电极传送鞘管系统（带止血阀和灌注口） | C168: HLS-2507MCN,HLS-2508M | D168: 个 | E168: 美敦力（上海）管理有限公司 | F168: 国械注进20163032715 | G168: 402
A169: 167 | B169: 经导管植入式无导线起搏系统 | C169: MC1VR01 | D169: 个 | E169: 美敦力（上海）管理有限公司 | F169: 国械注进20193120297 | G169: 158000
A170: 168 | B170: 植入式除颤电极导线 | C170: 6947M | D170: 个 | E170: 美敦力（上海）管理有限公司 | F170: 国械注进20173217262 | G170: 11590
A171: 169 | B171: 植入式除颤电极导线 | C171: 6935M | D171: 个 | E171: 美敦力（上海）管理有限公司 | F171: 国械注进20173217262 | G171: 11900
A172: 170 | B172: 植入式心电事件监测器 | C172: LNQ11 | D172: 个 | E172: 美敦力（上海）管理有限公司 | F172: 国械注进20153121986 | G172: 32000
A173: 171 | B173: 植入式心律转复除颤器 | C173: DVBC3D1 | D173: 个 | E173: 美敦力（上海）管理有限公司 | F173: 国械注进20193121722 | G173: 79900
A174: 172 | B174: 植入式心律转复除颤器 | C174: DVBC3D1+Carelink | D174: 个 | E174: 美敦力（上海）管理有限公司 | F174: 国械注进20193121722 | G174: 99900
A175: 173 | B175: 植入式心律转复除颤器 | C175: DVBC3D4 | D175: 个 | E175: 美敦力（上海）管理有限公司 | F175: 国械注进20193121722 | G175: 96000
A176: 174 | B176: 植入式心律转复除颤器 | C176: DVBC3D4+Carelink | D176: 个 | E176: 美敦力（上海）管理有限公司 | F176: 国械注进20193121722 | G176: 116000
A177: 175 | B177: 植入式心律转复除颤器 | C177: DDBC3D1 | D177: 个 | E177: 美敦力（上海）管理有限公司 | F177: 国械注进20193121722 | G177: 129000
A178: 176 | B178: 植入式心律转复除颤器 | C178: DDBC3D1+Carelink | D178: 个 | E178: 美敦力（上海）管理有限公司 | F178: 国械注进20193121722 | G178: 136434
A179: 177 | B179: 植入式心律转复除颤器 | C179: DDBC3D4 | D179: 个 | E179: 美敦力（上海）管理有限公司 | F179: 国械注进20193121722 | G179: 144000
A180: 178 | B180: 植入式心律转复除颤器 | C180: DDBC3D4+Carelink | D180: 个 | E180: 美敦力（上海）管理有限公司 | F180: 国械注进20193121722 | G180: 158000
A181: 179 | B181: 植入式心外膜起搏电极导线 | C181: 4965 | D181: 个 | E181: 美敦力（上海）管理有限公司 | F181: 国械注进20163215105 | G181: 6622.86
A182: 180 | B182: 植入式心脏除颤电极导线 | C182: Sprint Quattro Secure S 6935 | D182: 个 | E182: 美敦力（上海）管理有限公司 | F182: 国械注进20173211026 | G182: 10450
A183: 181 | B183: 植入式心脏除颤电极导线 | C183: Sprint Quattro Secure 6947 | D183: 个 | E183: 美敦力（上海）管理有限公司 | F183: 国械注进20173211026 | G183: 10443
A184: 182 | B184: 植入式心脏起搏电极导线 | C184: 5076 | D184: 个 | E184: 美敦力（上海）管理有限公司 | F184: 国械注进20143126008 | G184: 4531
A185: 183 | B185: 植入式心脏起搏电极导线 | C185: 4074 | D185: 个 | E185: 美敦力（上海）管理有限公司 | F185: 国械注进20153122756 | G185: 3100
A186: 184 | B186: 植入式心脏起搏电极导线 | C186: 4574 | D186: 个 | E186: 美敦力（上海）管理有限公司 | F186: 国械注进20153122756 | G186: 3100
A187: 185 | B187: 植入式心脏起搏电极导线 | C187: 3830 | D187: 个 | E187: 美敦力（上海）管理有限公司 | F187: 国械注进20163121864 | G187: 3712
A188: 186 | B188: 植入式心脏起搏电极导线 | C188: 4195 | D188: 个 | E188: 美敦力（上海）管理有限公司 | F188: 国械注进20173211239 | G188: 14040
A189: 187 | B189: 植入式心脏起搏电极导线 | C189: ICQ09B | D189: 个 | E189: 美敦力（上海）管理有限公司 | F189: 国械注进20173211543 | G189: 4328
A190: 188 | B190: 植入式心脏起搏电极导线 | C190: ICM09JB | D190: 个 | E190: 美敦力（上海）管理有限公司 | F190: 国械注进20173211940 | G190: 2407
A191: 189 | B191: 植入式心脏起搏电极导线 | C191: ICM09B | D191: 个 | E191: 美敦力（上海）管理有限公司 | F191: 国械注进20173211940 | G191: 2349
A192: 190 | B192: 植入式心脏起搏电极导线 | C192: 4196 | D192: 个 | E192: 美敦力（上海）管理有限公司 | F192: 国械注进20173211943 | G192: 12360
A193: 191 | B193: 植入式心脏起搏器 | C193: A10A1 | D193: 个 | E193: 美敦力（上海）管理有限公司 | F193: 国械注进20143125740 | G193: 17034
A194: 192 | B194: 植入式心脏起搏器 | C194: A20A1 | D194: 个 | E194: 美敦力（上海）管理有限公司 | F194: 国械注进20143125740 | G194: 28416
A195: 193 | B195: 植入式心脏起搏器 | C195: C5TR01 | D195: 个 | E195: 美敦力（上海）管理有限公司 | F195: 国械注进20153121987 | G195: 80000
A196: 194 | B196: 植入式心脏起搏器 | C196: EN1SR01 | D196: 个 | E196: 美敦力（上海）管理有限公司 | F196: 国械注进20153122749 | G196: 41800
A197: 195 | B197: 植入式心脏起搏器 | C197: EN1SR01+Carelink | D197: 个 | E197: 美敦力（上海）管理有限公司 | F197: 国械注进20153122749 | G197: 58500
A198: 196 | B198: 植入式心脏起搏器 | C198: A3SR01 | D198: 个 | E198: 美敦力（上海）管理有限公司 | F198: 国械注进20153122749 | G198: 57000
A199: 197 | B199: 植入式心脏起搏器 | C199: A3SR01+Carelink | D199: 个 | E199: 美敦力（上海）管理有限公司 | F199: 国械注进20153122749 | G199: 72875
A200: 198 | B200: 植入式心脏起搏器 | C200: SES01 | D200: 个 | E200: 美敦力（上海）管理有限公司 | F200: 国械注进20153122773 | G200: 18500
... 355 more rows

Sheet 手术器械（北美）
A1: 山东北美手术器械供货明细
B2: 序号 | C2: 品名 | D2: 规格描述 | E2: 单位 | F2: 备注 | G2: 产品控制单价（元） | H2: 单价 | I2: 品牌 | J2: 生产厂家 | K2: 单价
A3: 妇产科 | B3: 1 | C3: 子宫颈扩张棒 | D3: 圆头3.5-25 | E3: 把 | G3: 22 | H3: 20.9 | I3: 新华 | J3: 新华手术器械有限公司 | K3: 20.9
B4: 2 | C4: 宫颈钳 | D4: 直、弯，25cm | E4: 把 | G4: 85 | H4: 80.75 | I4: 新华 | J4: 新华手术器械有限公司 | K4: 80.75
B5: 3 | C5: 单页产钳 | D5: 30cm | E5: 把 | G5: 432 | H5: 410.4 | I5: 新华 | J5: 新华手术器械有限公司 | K5: 410.4
B6: 4 | C6: 阴道拉钩 | D6: 38*90/165mm | E6: 把 | G6: 110 | H6: 104.5 | I6: 新华 | J6: 新华手术器械有限公司 | K6: 104.5
I7: 新华 | J7: 新华手术器械有限公司
A8: 泌尿外 | B8: 1 | C8: 医用尿道扩张器 | D8: F5-F20 | E8: 把 | G8: 39 | H8: 37.05 | I8: 新华 | J8: 新华手术器械有限公司 | K8: 37.05
B9: 2 | C9: 肾蒂钳 | D9: 唇头齿、凹凸齿，25cm | E9: 把 | G9: 820 | H9: 779 | I9: 新华 | J9: 新华手术器械有限公司 | K9: 779
I10: 新华 | J10: 新华手术器械有限公司
A11: 五官 | B11: 1 | C11: 钳式开口器 | D11: 大、小 | E11: 把 | G11: 248 | H11: 235.6 | I11: 新华 | J11: 新华手术器械有限公司 | K11: 235.6
B12: 2 | C12: 戴维氏半开口器 | D12: 全套含5个压舌板 | E12: 把 | G12: 4800 | H12: 4560 | I12: 新华 | J12: 新华手术器械有限公司 | K12: 4560
B13: 3 | C13: 全开口器 | D13: 大、中、小 | E13: 把 | G13: 4500 | H13: 4275 | I13: 新华 | J13: 新华手术器械有限公司 | K13: 4275
B14: 4 | C14: 唇腭裂修复器械包 | E14: 套 | G14: 14532 | H14: 13805.4 | I14: 新华 | J14: 新华手术器械有限公司 | K14: 13805.4
I15: 新华 | J15: 新华手术器械有限公司
A16: 手足外 | B16: 1 | C16: 手术剪 | D16: 12.5cm直尖 | E16: 把 | G16: 53 | H16: 50.35 | I16: 新华 | J16: 新华手术器械有限公司 | K16: 50.35
B17: 2 | C17: 手术剪 | D17: 12.5cm直尖圆 | E17: 把 | G17: 53 | H17: 50.35 | I17: 新华 | J17: 新华手术器械有限公司 | K17: 50.35
B18: 3 | C18: 手术剪 | D18: 12.5cm直圆 | E18: 把 | G18: 53 | H18: 50.35 | I18: 新华 | J18: 新华手术器械有限公司 | K18: 50.35
B19: 4 | C19: 手术剪 | D19: 12.5cm弯尖 | E19: 把 | G19: 58 | H19: 55.1 | I19: 新华 | J19: 新华手术器械有限公司 | K19: 55.1
B20: 5 | C20: 手术剪 | D20: 12.5cm弯尖圆 | E20: 把 | G20: 58 | H20: 55.1 | I20: 新华 | J20: 新华手术器械有限公司 | K20: 55.1
B21: 6 | C21: 手术剪 | D21: 12.5cm弯圆 | E21: 把 | G21: 58 | H21: 55.1 | I21: 新华 | J21: 新华手术器械有限公司 | K21: 55.1
B22: 7 | C22: 手术剪 | D22: 14cm直尖 | E22: 把 | G22: 37 | H22: 35.15 | I22: 新华 | J22: 新华手术器械有限公司 | K22: 35.15
B23: 8 | C23: 手术剪 | D23: 14cm直尖圆 | E23: 把 | G23: 37 | H23: 35.15 | I23: 新华 | J23: 新华手术器械有限公司 | K23: 35.15
B24: 9 | C24: 手术剪 | D24: 14cm直圆 | E24: 把 | G24: 37 | H24: 35.15 | I24: 新华 | J24: 新华手术器械有限公司 | K24: 35.15
B25: 10 | C25: 手术剪 | D25: 14cm弯尖 | E25: 把 | G25: 37 | H25: 35.15 | I25: 新华 | J25: 新华手术器械有限公司 | K25: 35.15
B26: 11 | C26: 手术剪 | D26: 14cm弯尖圆 | E26: 把 | G26: 37 | H26: 35.15 | I26: 新华 | J26: 新华手术器械有限公司 | K26: 35.15
B27: 12 | C27: 手术剪 | D27: 14cm弯圆 | E27: 把 | G27: 37 | H27: 35.15 | I27: 新华 | J27: 新华手术器械有限公司 | K27: 35.15
B28: 13 | C28: 精细手术剪 | D28: 12.5cm直尖(解剖) | E28: 把 | G28: 180 | H28: 171 | I28: 新华 | J28: 新华手术器械有限公司 | K28: 171
B29: 14 | C29: 精细手术剪 | D29: 12.5cm弯尖(解剖) | E29: 把 | G29: 180 | H29: 171 | I29: 新华 | J29: 新华手术器械有限公司 | K29: 171
B30: 15 | C30: 精细剪 | D30: 10cm直窄头 | E30: 把 | G30: 180 | H30: 171 | I30: 新华 | J30: 新华手术器械有限公司 | K30: 171
B31: 16 | C31: 精细剪 | D31: 10cm直宽头 | E31: 把 | G31: 180 | H31: 171 | I31: 新华 | J31: 新华手术器械有限公司 | K31: 171
B32: 17 | C32: 精细剪 | D32: 10cm弯窄头 | E32: 把 | G32: 180 | H32: 171 | I32: 新华 | J32: 新华手术器械有限公司 | K32: 171
B33: 18 | C33: 精细剪 | D33: 10cm弯宽头 | E33: 把 | G33: 180 | H33: 171 | I33: 新华 | J33: 新华手术器械有限公司 | K33: 171
B34: 19 | C34: 精细剪 | D34: 12cm直窄头 | E34: 把 | G34: 200 | H34: 190 | I34: 新华 | J34: 新华手术器械有限公司 | K34: 190
B35: 20 | C35: 精细剪 | D35: 12cm直宽头 | E35: 把 | G35: 200 | H35: 190 | I35: 新华 | J35: 新华手术器械有限公司 | K35: 190
B36: 21 | C36: 精细剪 | D36: 12cm弯窄头 | E36: 把 | G36: 200 | H36: 190 | I36: 新华 | J36: 新华手术器械有限公司 | K36: 190
B37: 22 | C37: 精细剪 | D37: 12cm弯宽头 | E37: 把 | G37: 200 | H37: 190 | I37: 新华 | J37: 新华手术器械有限公司 | K37: 190
B38: 23 | C38: 持针钳 | D38: 12.5cm细针 | E38: 把 | G38: 50.8 | H38: 48.26 | I38: 新华 | J38: 新华手术器械有限公司 | K38: 48.26
B39: 24 | C39: 持针钳 | D39: 14cm粗针 | E39: 把 | G39: 63 | H39: 59.85 | I39: 新华 | J39: 新华手术器械有限公司 | K39: 59.85
B40: 25 | C40: 持针钳 | D40: 14cm细针 | E40: 把 | G40: 47.4 | H40: 45.03 | I40: 新华 | J40: 新华手术器械有限公司 | K40: 45.03
B41: 26 | C41: 持针钳 | D41: 16cm粗针 | E41: 把 | G41: 52 | H41: 49.4 | I41: 新华 | J41: 新华手术器械有限公司 | K41: 49.4
B42: 27 | C42: 持针钳 | D42: 16cm细针 | E42: 把 | G42: 45 | H42: 42.75 | I42: 新华 | J42: 新华手术器械有限公司 | K42: 42.75
B43: 28 | C43: 止血钳 | D43: 12.5cm直全齿(精细) | E43: 把 | G43: 113 | H43: 107.35 | I43: 新华 | J43: 新华手术器械有限公司 | K43: 107.35
B44: 29 | C44: 止血钳 | D44: 12.5cm弯全齿(精细) | E44: 把 | G44: 113 | H44: 107.35 | I44: 新华 | J44: 新华手术器械有限公司 | K44: 107.35
B45: 30 | C45: 整形镊 | D45: 14cm无钩 头宽0.8 WD | E45: 把 | G45: 198 | H45: 188.1 | I45: 新华 | J45: 新华手术器械有限公司 | K45: 188.1
B46: 31 | C46: 整形镊 | D46: 14cm有钩 头宽1 WD | E46: 把 | G46: 198 | H46: 188.1 | I46: 新华 | J46: 新华手术器械有限公司 | K46: 188.1
B47: 32 | C47: 整形镊 | D47: 12cm无钩 头宽0.6 | E47: 把 | G47: 198 | H47: 188.1 | I47: 新华 | J47: 新华手术器械有限公司 | K47: 188.1
B48: 33 | C48: 整形镊 | D48: 12cm无钩 头宽0.8 | E48: 把 | G48: 198 | H48: 188.1 | I48: 新华 | J48: 新华手术器械有限公司 | K48: 188.1
B49: 34 | C49: 整形镊 | D49: 12cm无钩 头宽1 | E49: 把 | G49: 198 | H49: 188.1 | I49: 新华 | J49: 新华手术器械有限公司 | K49: 188.1
B50: 35 | C50: 整形镊 | D50: 12cm无钩 头宽1.2 | E50: 把 | G50: 198 | H50: 188.1 | I50: 新华 | J50: 新华手术器械有限公司 | K50: 188.1
B51: 36 | C51: 整形镊 | D51: 12cm有钩 头宽0.6 | E51: 把 | G51: 198 | H51: 188.1 | I51: 新华 | J51: 新华手术器械有限公司 | K51: 188.1
B52: 37 | C52: 整形镊 | D52: 12cm有钩 头宽0.8 | E52: 把 | G52: 198 | H52: 188.1 | I52: 新华 | J52: 新华手术器械有限公司 | K52: 188.1
B53: 38 | C53: 整形镊 | D53: 12cm有钩 头宽1 | E53: 把 | G53: 198 | H53: 188.1 | I53: 新华 | J53: 新华手术器械有限公司 | K53: 188.1
B54: 39 | C54: 整形镊 | D54: 12cm有钩 头宽1.2 | E54: 把 | G54: 198 | H54: 188.1 | I54: 新华 | J54: 新华手术器械有限公司 | K54: 188.1
B55: 40 | C55: 肌腱穿刺钳 | D55: 14cm直 | E55: 把 | G55: 280 | H55: 266 | I55: 新华 | J55: 新华手术器械有限公司 | K55: 266
B56: 41 | C56: 肌腱穿刺钳 | D56: 14cm弯 | E56: 把 | G56: 280 | H56: 266 | I56: 新华 | J56: 新华手术器械有限公司 | K56: 266
B57: 42 | C57: 肌腱夹持钳 | D57: 15cm | E57: 把 | G57: 395 | H57: 375.25 | I57: 新华 | J57: 新华手术器械有限公司 | K57: 375.25
B58: 43 | C58: 肌腱套取器 | D58: 25cm φ5.5 | E58: 把 | G58: 480 | H58: 456 | I58: 新华 | J58: 新华手术器械有限公司 | K58: 456
B59: 44 | C59: 肌腱套取器 | D59: 30cm φ7.5 | E59: 把 | G59: 580 | H59: 551 | I59: 新华 | J59: 新华手术器械有限公司 | K59: 551
B60: 45 | C60: 电凝镊 | D60: 11cm双极 直形 宽0.3 | E60: 把 | G60: 1200 | H60: 1140 | I60: 新华 | J60: 新华手术器械有限公司 | K60: 1140
B61: 46 | C61: 显微剪 | D61: 12.5cm直窄 刃长9 | E61: 把 | G61: 1155 | H61: 1097.25 | I61: 新华 | J61: 新华手术器械有限公司 | K61: 1097.25
B62: 47 | C62: 显微剪 | D62: 12.5cm弯窄 刃长9 | E62: 把 | G62: 1155 | H62: 1097.25 | I62: 新华 | J62: 新华手术器械有限公司 | K62: 1097.25
B63: 48 | C63: 显微剪 | D63: 14cm直 刃长11 | E63: 把 | G63: 1155 | H63: 1097.25 | I63: 新华 | J63: 新华手术器械有限公司 | K63: 1097.25
B64: 49 | C64: 显微剪 | D64: 14cm弯 刃长11 | E64: 把 | G64: 1155 | H64: 1097.25 | I64: 新华 | J64: 新华手术器械有限公司 | K64: 1097.25
B65: 50 | C65: 显微剪 | D65: 16cm直 刃长10 | E65: 把 | G65: 338 | H65: 321.1 | I65: 新华 | J65: 新华手术器械有限公司 | K65: 321.1
B66: 51 | C66: 显微剪 | D66: 16cm弯 刃长10 | E66: 把 | G66: 338 | H66: 321.1 | I66: 新华 | J66: 新华手术器械有限公司 | K66: 321.1
B67: 52 | C67: 显微剪 | D67: 18cm直 刃长10 | E67: 把 | G67: 1430 | H67: 1358.5 | I67: 新华 | J67: 新华手术器械有限公司 | K67: 1358.5
B68: 53 | C68: 显微剪 | D68: 18cm弯 刃长10 | E68: 把 | G68: 1430 | H68: 1358.5 | I68: 新华 | J68: 新华手术器械有限公司 | K68: 1358.5
B69: 54 | C69: 显微持针钳 | D69: 12.5cm直 头宽0.2 | E69: 把 | G69: 1080 | H69: 1026 | I69: 新华 | J69: 新华手术器械有限公司 | K69: 1026
B70: 55 | C70: 显微持针钳 | D70: 12.5cm弯 头宽0.2 | E70: 把 | G70: 1080 | H70: 1026 | I70: 新华 | J70: 新华手术器械有限公司 | K70: 1026
B71: 56 | C71: 显微持针钳 | D71: 14cm直 头宽0.2 | E71: 把 | G71: 1080 | H71: 1026 | I71: 新华 | J71: 新华手术器械有限公司 | K71: 1026
B72: 57 | C72: 显微持针钳 | D72: 14cm弯 头宽0.2 | E72: 把 | G72: 1080 | H72: 1026 | I72: 新华 | J72: 新华手术器械有限公司 | K72: 1026
B73: 58 | C73: 显微持针钳 | D73: 16cm直 头宽0.2 | E73: 把 | G73: 338 | H73: 321.1 | I73: 新华 | J73: 新华手术器械有限公司 | K73: 321.1
B74: 59 | C74: 显微持针钳 | D74: 16cm弯 头宽0.2 | E74: 把 | G74: 338 | H74: 321.1 | I74: 新华 | J74: 新华手术器械有限公司 | K74: 321.1
B75: 60 | C75: 显微镊 | D75: 12.5cm直 头宽0.3 | E75: 把 | G75: 1050 | H75: 997.5 | I75: 新华 | J75: 新华手术器械有限公司 | K75: 997.5
B76: 61 | C76: 显微镊 | D76: 12.5cm直 头宽0.1 | E76: 把 | G76: 1050 | H76: 997.5 | I76: 新华 | J76: 新华手术器械有限公司 | K76: 997.5
B77: 62 | C77: 显微镊 | D77: 14cm直 头宽0.15 | E77: 把 | G77: 1050 | H77: 997.5 | I77: 新华 | J77: 新华手术器械有限公司 | K77: 997.5
B78: 63 | C78: 显微镊 | D78: 14cm直 头宽0.3 | E78: 把 | G78: 1050 | H78: 997.5 | I78: 新华 | J78: 新华手术器械有限公司 | K78: 997.5
B79: 64 | C79: 显微镊 | D79: 16cm直 头宽0.15 | E79: 把 | G79: 1050 | H79: 997.5 | I79: 新华 | J79: 新华手术器械有限公司 | K79: 997.5
B80: 65 | C80: 显微镊 | D80: 16cm直 头宽0.3 | E80: 把 | G80: 1050 | H80: 997.5 | I80: 新华 | J80: 新华手术器械有限公司 | K80: 997.5
B81: 66 | C81: 显微镊 | D81: 14cm直平台 头宽0.4 | E81: 把 | G81: 980 | H81: 931 | I81: 新华 | J81: 新华手术器械有限公司 | K81: 931
B82: 67 | C82: 显微镊 | D82: 16cm直平台 头宽0.4 | E82: 把 | G82: 980 | H82: 931 | I82: 新华 | J82: 新华手术器械有限公司 | K82: 931
B83: 68 | C83: 显微镊 | D83: 16cm弯平台 头宽0.4 | E83: 把 | G83: 390 | H83: 370.5 | I83: 新华 | J83: 新华手术器械有限公司 | K83: 370.5
B84: 69 | C84: 显微止血夹 | D84: 合拢 方尾 直L12 | E84: 把 | G84: 77.8 | H84: 73.91 | I84: 新华 | J84: 新华手术器械有限公司 | K84: 73.91
B85: 70 | C85: 显微止血夹 | D85: 合拢 方尾 直L20 | E85: 把 | G85: 77.8 | H85: 73.91 | I85: 新华 | J85: 新华手术器械有限公司 | K85: 73.91
B86: 71 | C86: 显微止血夹 | D86: 合拢 方尾 直L25 | E86: 把 | G86: 77.8 | H86: 73.91 | I86: 新华 | J86: 新华手术器械有限公司 | K86: 73.91
B87: 72 | C87: 显微止血夹 | D87: 止血 方尾 直L15 | E87: 把 | G87: 77.8 | H87: 73.91 | I87: 新华 | J87: 新华手术器械有限公司 | K87: 73.91
B88: 73 | C88: 显微止血夹 | D88: 止血 圆尾 直L16 | E88: 把 | G88: 77.8 | H88: 73.91 | I88: 新华 | J88: 新华手术器械有限公司 | K88: 73.91
B89: 74 | C89: 显微止血夹 | D89: 止血 圆尾 直L18 | E89: 把 | G89: 77.8 | H89: 73.91 | I89: 新华 | J89: 新华手术器械有限公司 | K89: 73.91
B90: 75 | C90: 显微止血夹 | D90: 止血 弯L30 横齿 | E90: 把 | G90: 77.8 | H90: 73.91 | I90: 新华 | J90: 新华手术器械有限公司 | K90: 73.91
B91: 76 | C91: 显微止血夹 | D91: 止血 弯L37 横齿 | E91: 把 | G91: 77.8 | H91: 73.91 | I91: 新华 | J91: 新华手术器械有限公司 | K91: 73.91
B92: 77 | C92: 显微止血夹 | D92: 止血 直L40 斜齿 | E92: 把 | G92: 77.8 | H92: 73.91 | I92: 新华 | J92: 新华手术器械有限公司 | K92: 73.91
B93: 78 | C93: 显微止血夹 | D93: 止血 弯L57 横齿 | E93: 把 | G93: 77.8 | H93: 73.91 | I93: 新华 | J93: 新华手术器械有限公司 | K93: 73.91
B94: 79 | C94: 显微止血夹 | D94: 止血 直L60 横齿 | E94: 把 | G94: 77.8 | H94: 73.91 | I94: 新华 | J94: 新华手术器械有限公司 | K94: 73.91
B95: 80 | C95: 显微止血夹 | D95: 止血 直L65 横齿 | E95: 把 | G95: 77.8 | H95: 73.91 | I95: 新华 | J95: 新华手术器械有限公司 | K95: 73.91
B96: 81 | C96: 显微止血夹 | D96: 止血 弯L65 横齿 | E96: 把 | G96: 77.8 | H96: 73.91 | I96: 新华 | J96: 新华手术器械有限公司 | K96: 73.91
B97: 82 | C97: 显微止血夹 | D97: 止血 弯L70 横齿 | E97: 把 | G97: 77.8 | H97: 73.91 | I97: 新华 | J97: 新华手术器械有限公司 | K97: 73.91
B98: 83 | C98: 辊轴取皮刀 | D98: 8cm | E98: 把 | G98: 1950 | H98: 1852.5 | I98: 新华 | J98: 新华手术器械有限公司 | K98: 1852.5
B99: 84 | C99: 辊轴取皮刀 | D99: 16cm | E99: 把 | G99: 1950 | H99: 1852.5 | I99: 新华 | J99: 新华手术器械有限公司 | K99: 1852.5
B100: 85 | C100: 辊轴取皮刀 | D100: 刀片8cm（1×10） | E100: 把 | G100: 88 | H100: 83.6 | I100: 新华 | J100: 新华手术器械有限公司 | K100: 83.6
B101: 86 | C101: 辊轴取皮刀 | D101: 刀片16cm（1×10） | E101: 把 | G101: 88 | H101: 83.6 | I101: 新华 | J101: 新华手术器械有限公司 | K101: 83.6
B102: 87 | C102: 手术剪 | D102: 115，直圆 | E102: 把 | G102: 60 | H102: 57 | I102: 新华 | J102: 新华手术器械有限公司 | K102: 57
B103: 88 | D103: 115，弯尖 | E103: 把 | G103: 60 | H103: 57 | I103: 新华 | J103: 新华手术器械有限公司 | K103: 57
B104: 89 | C104: 止血钳 | D104: 125，直蚊精细 | E104: 把 | G104: 115 | H104: 109.25 | I104: 新华 | J104: 新华手术器械有限公司 | K104: 109.25
B105: 90 | D105: 125，弯蚊精细 | E105: 把 | G105: 115 | H105: 109.25 | I105: 新华 | J105: 新华手术器械有限公司 | K105: 109.25
B106: 91 | C106: 皮肤拉钩 | D106: 130*0.3*5，单齿锐 | E106: 把 | G106: 180 | H106: 171 | I106: 新华 | J106: 新华手术器械有限公司 | K106: 171
B107: 92 | D107: 130*0.3*5，双齿锐 | E107: 把 | G107: 180 | H107: 171 | I107: 新华 | J107: 新华手术器械有限公司 | K107: 171
B108: 93 | D108: 170*0.8*6双齿钝 | E108: 把 | G108: 190 | H108: 180.5 | I108: 新华 | J108: 新华手术器械有限公司 | K108: 180.5
B109: 94 | D109: 170*8*16双齿钝 | E109: 把 | G109: 190 | H109: 180.5 | I109: 新华 | J109: 新华手术器械有限公司 | K109: 180.5
B110: 95 | D110: 180*12*24双齿钝 | E110: 把 | G110: 190 | H110: 180.5 | I110: 新华 | J110: 新华手术器械有限公司 | K110: 180.5
B111: 96 | C111: 自动牵开器 | D111: 50，3*3齿 | E111: 把 | G111: 180 | H111: 171 | I111: 新华 | J111: 新华手术器械有限公司 | K111: 171
B112: 97 | D112: 70，4*4齿，直型可调式 | E112: 把 | G112: 1050 | H112: 997.5 | I112: 新华 | J112: 新华手术器械有限公司 | K112: 997.5
B113: 98 | C113: 剥离器 | D113: 170*3.5，肌腱，上层 | E113: 把 | G113: 480 | H113: 456 | I113: 新华 | J113: 新华手术器械有限公司 | K113: 456
B114: 99 | D114: 170*5，肌腱，上层 | E114: 把 | G114: 480 | H114: 456 | I114: 新华 | J114: 新华手术器械有限公司 | K114: 456
B115: 100 | D115: 170*3.5，肌腱，下层 | E115: 把 | G115: 480 | H115: 456 | I115: 新华 | J115: 新华手术器械有限公司 | K115: 456
B116: 101 | D116: 170*5，肌腱，下层 | E116: 把 | G116: 480 | H116: 456 | I116: 新华 | J116: 新华手术器械有限公司 | K116: 456
B117: 102 | D117: 220*6*4，掌上肌腱 | E117: 把 | G117: 480 | H117: 456 | I117: 新华 | J117: 新华手术器械有限公司 | K117: 456
B118: 103 | C118: 显微钩 | D118: 130*0.7*0.4，角弯90° | E118: 把 | G118: 150 | H118: 142.5 | I118: 新华 | J118: 新华手术器械有限公司 | K118: 142.5
B119: 104 | D119: 130*1*8,角弯90° | E119: 把 | G119: 150 | H119: 142.5 | I119: 新华 | J119: 新华手术器械有限公司 | K119: 142.5
B120: 105 | C120: 骨刀（平骨凿） | D120: 125*4，直 | E120: 把 | G120: 230 | H120: 218.5 | I120: 新华 | J120: 新华手术器械有限公司 | K120: 218.5
B121: 106 | D121: 125*6，直 | E121: 把 | G121: 230 | H121: 218.5 | I121: 新华 | J121: 新华手术器械有限公司 | K121: 218.5
B122: 107 | D122: 125*8，直 | E122: 把 | G122: 230 | H122: 218.5 | I122: 新华 | J122: 新华手术器械有限公司 | K122: 218.5
B123: 108 | C123: 平骨凿 | D123: 120*4，直形，半圆 | E123: 把 | G123: 230 | H123: 218.5 | I123: 新华 | J123: 新华手术器械有限公司 | K123: 218.5
B124: 109 | C124: 骨刮匙 | D124: 160*3*4，双头 | E124: 把 | G124: 254 | H124: 241.3 | I124: 新华 | J124: 新华手术器械有限公司 | K124: 241.3
B125: 110 | C125: 骨膜剥离器 | D125: 180*4*5，双头，角弯 | E125: 把 | G125: 220 | H125: 209 | I125: 新华 | J125: 新华手术器械有限公司 | K125: 209
B126: 111 | C126: 咬骨钳 | D126: 180*2*20°，弯角，双关节 | E126: 把 | G126: 890 | H126: 845.5 | I126: 新华 | J126: 新华手术器械有限公司 | K126: 845.5
B127: 112 | C127: 咬骨剪 | D127: 180，弯，双关节 | E127: 把 | G127: 890 | H127: 845.5 | I127: 新华 | J127: 新华手术器械有限公司 | K127: 845.5
B128: 113 | C128: 整形镊 | D128: 110*0.2，直，有齿 | E128: 把 | G128: 195 | H128: 185.25 | I128: 新华 | J128: 新华手术器械有限公司 | K128: 185.25
B129: 114 | C129: 骨锉 | D129: 190，指用 | E129: 把 | G129: 230 | H129: 218.5 | I129: 新华 | J129: 新华手术器械有限公司 | K129: 218.5
B130: 115 | C130: 整形镊 | D130: 110*0.2，直，无齿 | E130: 把 | G130: 195 | H130: 185.25 | I130: 新华 | J130: 新华手术器械有限公司 | K130: 185.25
B131: 116 | C131: 灭菌盒 | E131: 个 | I131: 新华 | J131: 新华手术器械有限公司
I132: 新华 | J132: 新华手术器械有限公司
A133: 神经外 | B133: 1 | C133: 乳突牵开器 | D133: 105x3x3 | E133: 件 | G133: 725 | H133: 688.75 | I133: 新华 | J133: 新华手术器械有限公司 | K133: 688.75
B134: 2 | C134: 乳突牵开器 | D134: 170x18，固定式3x4钩，直型 | E134: 件 | G134: 980 | H134: 931 | I134: 新华 | J134: 新华手术器械有限公司 | K134: 931
B135: 3 | C135: 乳突牵开器 | D135: 170x9,单构，弯型 | E135: 件 | G135: 850 | H135: 807.5 | I135: 新华 | J135: 新华手术器械有限公司 | K135: 807.5
B136: 4 | C136: 后颅凹牵开器 | D136: 280x30，活动式，4x4钩，钝钩，直型 | E136: 件 | G136: 1200 | H136: 1140 | I136: 新华 | J136: 新华手术器械有限公司 | K136: 1140
B137: 5 | C137: 椎板牵开器 | D137: 300x45，活动式，5x5,钝钩，直型 | E137: 件 | G137: 1200 | H137: 1140 | I137: 新华 | J137: 新华手术器械有限公司 | K137: 1140
B138: 6 | C138: 脑自固定牵开器 | D138: 90x60 | E138: 件 | G138: 430 | H138: 408.5 | I138: 新华 | J138: 新华手术器械有限公司 | K138: 408.5
B139: 7 | C139: 颅骨骨膜剥离器 | D139: 200x8,直头，铝柄 | E139: 把 | G139: 390 | H139: 370.5 | I139: 新华 | J139: 新华手术器械有限公司 | K139: 370.5
B140: 8 | C140: 颅骨骨膜剥离器 | D140: 160x11.弯头，铝柄 | E140: 把 | G140: 390 | H140: 370.5 | I140: 新华 | J140: 新华手术器械有限公司 | K140: 370.5
B141: 9 | C141: 颅骨骨膜剥离器 | D141: 220x10.微弯头 | E141: 把 | G141: 390 | H141: 370.5 | I141: 新华 | J141: 新华手术器械有限公司 | K141: 370.5
B142: 10 | C142: 颅骨骨膜剥离器 | D142: 220x15,微弯头 | E142: 把 | G142: 390 | H142: 370.5 | I142: 新华 | J142: 新华手术器械有限公司 | K142: 370.5
B143: 11 | C143: 椎板剥离器 | D143: 220x15 | E143: 把 | G143: 390 | H143: 370.5 | I143: 新华 | J143: 新华手术器械有限公司 | K143: 370.5
B144: 12 | C144: 椎板剥离器 | D144: 220x20 | E144: 把 | G144: 390 | H144: 370.5 | I144: 新华 | J144: 新华手术器械有限公司 | K144: 370.5
B145: 13 | C145: 颅骨骨撬 | D145: 190 | E145: 把 | G145: 390 | H145: 370.5 | I145: 新华 | J145: 新华手术器械有限公司 | K145: 370.5
B146: 14 | C146: 脑膜剥离器 | D146: 240 | E146: 把 | G146: 268 | H146: 254.6 | I146: 新华 | J146: 新华手术器械有限公司 | K146: 254.6
B147: 15 | C147: 双头剥离器 | D147: 240带孔 | E147: 把 | G147: 268 | H147: 254.6 | I147: 新华 | J147: 新华手术器械有限公司 | K147: 254.6
B148: 16 | C148: 双头剥离器 | D148: 280 | E148: 把 | G148: 268 | H148: 254.6 | I148: 新华 | J148: 新华手术器械有限公司 | K148: 254.6
B149: 17 | C149: 直型神经根拉构 | D149: 240 | E149: 把 | G149: 272 | H149: 258.4 | I149: 新华 | J149: 新华手术器械有限公司 | K149: 258.4
B150: 18 | C150: 角型神经拉构 | D150: 120°120x90°x10 | E150: 把 | G150: 272 | H150: 258.4 | I150: 新华 | J150: 新华手术器械有限公司 | K150: 258.4
B151: 19 | C151: 直型神经根拉构 | D151: 190 | E151: 把 | G151: 240 | H151: 228 | I151: 新华 | J151: 新华手术器械有限公司 | K151: 228
B152: 20 | C152: 角型朝上神经拉钩 | D152: 185 | E152: 把 | G152: 240 | H152: 228 | I152: 新华 | J152: 新华手术器械有限公司 | K152: 228
B153: 21 | C153: 角型朝下神经拉钩 | D153: 183 | E153: 把 | G153: 240 | H153: 228 | I153: 新华 | J153: 新华手术器械有限公司 | K153: 228
B154: 22 | C154: 脑压板 | D154: 200x7x9 | E154: 把 | G154: 297 | H154: 282.15 | I154: 新华 | J154: 新华手术器械有限公司 | K154: 282.15
B155: 23 | C155: 脑压板 | D155: 200x11x13 | E155: 把 | G155: 297 | H155: 282.15 | I155: 新华 | J155: 新华手术器械有限公司 | K155: 282.15
B156: 24 | C156: 脑压板 | D156: 200x15*18 | E156: 把 | G156: 297 | H156: 282.15 | I156: 新华 | J156: 新华手术器械有限公司 | K156: 282.15
B157: 25 | C157: 脑压板 | D157: 200x20x22 | E157: 把 | G157: 297 | H157: 282.15 | I157: 新华 | J157: 新华手术器械有限公司 | K157: 282.15
B158: 26 | C158: 脑压板 | D158: 230x7x9 | E158: 把 | G158: 297 | H158: 282.15 | I158: 新华 | J158: 新华手术器械有限公司 | K158: 282.15
B159: 27 | C159: 脑压板 | D159: 230，11x13 | E159: 把 | G159: 297 | H159: 282.15 | I159: 新华 | J159: 新华手术器械有限公司 | K159: 282.15
B160: 28 | C160: 脑吸引管 | D160: 200x中3，直 | E160: 把 | G160: 298 | H160: 283.1 | I160: 新华 | J160: 新华手术器械有限公司 | K160: 283.1
B161: 29 | C161: 脑吸引管 | D161: 260x中3，弯 | E161: 把 | G161: 298 | H161: 283.1 | I161: 新华 | J161: 新华手术器械有限公司 | K161: 283.1
B162: 30 | C162: 脑吸引管 | D162: 200x中5，直 | E162: 把 | G162: 298 | H162: 283.1 | I162: 新华 | J162: 新华手术器械有限公司 | K162: 283.1
B163: 31 | C163: 脑吸引管 | D163: 200x中4，直 | E163: 把 | G163: 298 | H163: 283.1 | I163: 新华 | J163: 新华手术器械有限公司 | K163: 283.1
B164: 32 | C164: 脑吸引管 | D164: 260x中4，弯 | E164: 把 | G164: 298 | H164: 283.1 | I164: 新华 | J164: 新华手术器械有限公司 | K164: 283.1
B165: 33 | C165: 脑吸引管 | D165: 260x中5，弯 | E165: 把 | G165: 298 | H165: 283.1 | I165: 新华 | J165: 新华手术器械有限公司 | K165: 283.1
B166: 34 | C166: 沟状探针 | D166: 150 | E166: 把 | G166: 220 | H166: 209 | I166: 新华 | J166: 新华手术器械有限公司 | K166: 209
B167: 35 | C167: 脑膜挑针 | D167: 150，锐 | E167: 把 | G167: 240 | H167: 228 | I167: 新华 | J167: 新华手术器械有限公司 | K167: 228
B168: 36 | C168: 吸引针 | D168: 123x2.7 | E168: 把 | G168: 243 | H168: 230.85 | I168: 新华 | J168: 新华手术器械有限公司 | K168: 230.85
B169: 37 | C169: 吸引针 | D169: 123x3.2 | E169: 把 | G169: 243 | H169: 230.85 | I169: 新华 | J169: 新华手术器械有限公司 | K169: 230.85
B170: 38 | C170: 吸引针 | D170: 123x3.6 | E170: 把 | G170: 243 | H170: 230.85 | I170: 新华 | J170: 新华手术器械有限公司 | K170: 230.85
B171: 39 | C171: 颅锥 | D171: T型柄，多型号螺纹钻头 | E171: 把 | I171: 新华 | J171: 新华手术器械有限公司
B172: 40 | C172: 线锯导板 | D172: 340 | E172: 把 | G172: 110 | H172: 104.5 | I172: 新华 | J172: 新华手术器械有限公司 | K172: 104.5
B173: 41 | C173: 线锯手把 | D173: 6cm | E173: 把 | G173: 100 | H173: 95 | I173: 新华 | J173: 新华手术器械有限公司 | K173: 95
B174: 42 | C174: 脑膜镊 | D174: 200x2x3 | E174: 把 | G174: 348 | H174: 330.6 | I174: 新华 | J174: 新华手术器械有限公司 | K174: 330.6
B175: 43 | C175: 脑部解剖镊 | D175: 200，直形 | E175: 把 | G175: 348 | H175: 330.6 | I175: 新华 | J175: 新华手术器械有限公司 | K175: 330.6
B176: 44 | C176: 脑部解剖镊 | D176: 200，枪形 | E176: 把 | G176: 348 | H176: 330.6 | I176: 新华 | J176: 新华手术器械有限公司 | K176: 330.6
B177: 45 | C177: 精细无齿镊 | D177: 200，直型 | E177: 把 | G177: 348 | H177: 330.6 | I177: 新华 | J177: 新华手术器械有限公司 | K177: 330.6
B178: 46 | C178: 精细无齿镊 | D178: 200,弯型 | E178: 把 | G178: 285 | H178: 270.75 | I178: 新华 | J178: 新华手术器械有限公司 | K178: 270.75
B179: 47 | C179: 枪形精细无齿镊 | D179: 200 | E179: 把 | G179: 348 | H179: 330.6 | I179: 新华 | J179: 新华手术器械有限公司 | K179: 330.6
B180: 48 | C180: 侧弯尖球头脑膜剪 | D180: 150 | E180: 把 | G180: 386 | H180: 366.7 | I180: 新华 | J180: 新华手术器械有限公司 | K180: 366.7
B181: 49 | C181: 圆弯头脑膜剪 | D181: 180 | E181: 把 | G181: 320 | H181: 304 | I181: 新华 | J181: 新华手术器械有限公司 | K181: 304
B182: 50 | C182: 三叉神经剪 | D182: 170 | E182: 把 | G182: 216 | H182: 205.2 | I182: 新华 | J182: 新华手术器械有限公司 | K182: 205.2
B183: 51 | C183: 刮匙 | D183: 250x3 | E183: 把 | G183: 345 | H183: 327.75 | I183: 新华 | J183: 新华手术器械有限公司 | K183: 327.75
B184: 52 | C184: 刮匙 | D184: 250x8 | E184: 把 | G184: 345 | H184: 327.75 | I184: 新华 | J184: 新华手术器械有限公司 | K184: 327.75
B185: 53 | C185: 脑刮匙 | D185: 210x3 | E185: 把 | G185: 345 | H185: 327.75 | I185: 新华 | J185: 新华手术器械有限公司 | K185: 327.75
B186: 54 | C186: 脑刮匙 | D186: 210x5 | E186: 把 | G186: 345 | H186: 327.75 | I186: 新华 | J186: 新华手术器械有限公司 | K186: 327.75
B187: 55 | C187: 脑刮匙 | D187: 210x8 | E187: 把 | G187: 345 | H187: 327.75 | I187: 新华 | J187: 新华手术器械有限公司 | K187: 327.75
B188: 56 | C188: 胆脂瘤刮匙 | D188: 260 | E188: 把 | G188: 243 | H188: 230.85 | I188: 新华 | J188: 新华手术器械有限公司 | K188: 230.85
B189: 57 | C189: 活组织取样钳 | D189: 150x3 | E189: 把 | G189: 950 | H189: 902.5 | I189: 新华 | J189: 新华手术器械有限公司 | K189: 902.5
B190: 58 | C190: 活组织取样钳 | D190: 150x6 | E190: 把 | G190: 950 | H190: 902.5 | I190: 新华 | J190: 新华手术器械有限公司 | K190: 902.5
B191: 59 | C191: 角形组织钳 | D191: 220 | E191: 把 | G191: 451 | H191: 428.45 | I191: 新华 | J191: 新华手术器械有限公司 | K191: 428.45
B192: 60 | C192: 颅骨咬骨钳 | D192: 200 | E192: 把 | G192: 920 | H192: 874 | I192: 新华 | J192: 新华手术器械有限公司 | K192: 874
B193: 61 | C193: 咬骨钳 | D193: 180x3x20°，弯头，双关节 | E193: 把 | G193: 890 | H193: 845.5 | I193: 新华 | J193: 新华手术器械有限公司 | K193: 845.5
B194: 62 | C194: 咬骨钳 | D194: 220x6，直头，左侧角"双关节 | E194: 把 | G194: 890 | H194: 845.5 | I194: 新华 | J194: 新华手术器械有限公司 | K194: 845.5
B195: 63 | C195: 咬骨钳 | D195: 240x4,直头，左侧角“双关节 | E195: 把 | G195: 890 | H195: 845.5 | I195: 新华 | J195: 新华手术器械有限公司 | K195: 845.5
B196: 64 | C196: 后颅凹咬骨钳 | D196: 205*5.5 | E196: 把 | G196: 890 | H196: 845.5 | I196: 新华 | J196: 新华手术器械有限公司 | K196: 845.5
B197: 65 | C197: 后颅凹咬骨钳 | D197: 230x7，双关节 | E197: 把 | G197: 890 | H197: 845.5 | I197: 新华 | J197: 新华手术器械有限公司 | K197: 845.5
B198: 66 | C198: 棘突咬骨钳 | D198: 240x16，直，双关节 | E198: 把 | G198: 890 | H198: 845.5 | I198: 新华 | J198: 新华手术器械有限公司 | K198: 845.5
B199: 67 | C199: 椎板咬骨钳 | D199: 180x3/10x90°，超薄型 | E199: 把 | G199: 3280 | H199: 3116 | I199: 新华 | J199: 新华手术器械有限公司 | K199: 3116
B200: 68 | C200: 椎板咬骨钳 | D200: 180x4/10x90°，超薄型 | E200: 把 | G200: 3280 | H200: 3116 | I200: 新华 | J200: 新华手术器械有限公司 | K200: 3116
... 1842 more rows
